Workbook

Sheet Matrix FinTech Index - Graph
B2: Matrix U.S. FinTech Index
B46: *The Matrix FinTech Index uses a market-cap weighted approach
B47: As of: 12/1/2017

Sheet Matrix FinTech Index - Data
B2: Matrix U.S. FinTech Index Data
B3: Methodology: market-cap weighted indices for the Incumbents and Fintechs were constructed by weighting the share price by market cap
B4: Source: CapIQ, Yahoo Finance
B5: As of: 12/1/2017
C7: Market Cap Data | AA7: S&P 500 Data | AC7: Stock Price Data
C8: Incumbents | O8: FinTechs | AA8: S&P 500 Index | AC8: Incumbents | AO8: FinTechs | BA8: Summary
B9: Date | C9: JPM | D9: BAC | E9: WFC | F9: V | G9: C | H9: MA | I9: GS | J9: MS | K9: AXP | L9: PNC | M9: Total | O9: PYPL | P9: SQ | Q9: LC | R9: BL | S9: ONDK | T9: SHOP | U9: ENV | V9: GDOT | W9: QTWO | X9: MKTX | Y9: Total | AA9: SPX | AC9: JPM | AD9: BAC | AE9: WFC | AF9: V | AG9: C | AH9: MA | AI9: GS | AJ9: MS | AK9: AXP | AL9: PNC | AM9: Index | AO9: PYPL | AP9: SQ | AQ9: LC | AR9: BL | AS9: ONDK | AT9: SHOP | AU9: ENV | AV9: GDOT | AW9: QTWO | AX9: MKTX | AY9: Index | BA9: Date | BB9: S&P 500 Index | BC9: =C8 -> Incumbents | BD9: =O8 -> FinTechs
B10: Portfolio % | C10: =C12/$M$12 -> 0.1902078533 | D10: =D12/$M$12 -> 0.1415253736 | E10: 0.176248147 | F10: 0.1199556063 | G10: 0.1065633542 | H10: 0.0738461374 | I10: 0.06090144171 | J10: 0.05136637769 | K10: 0.04372381693 | L10: 0.0356618918 | M10: 1 | O10: =O12/$Y$12 -> 0.6797421211 | P10: =P12/$Y$12 -> 0.06534880407 | Q10: 0.03200546295 | R10: 0.01905948063 | S10: 0.004713073899 | T10: 0.05316216877 | U10: 0.02229003653 | V10: 0.01735530538 | W10: 0.01698156745 | X10: 0.0893419792 | Y10: 1
B11: Index weight | C11: =C10*$M$11/AC12 -> 2.372556543 | D11: =D10*$M$11/AD12 -> 6.70101169 | E11: =E10*$M$11/AE12 -> 3.330463978 | F11: =F10*$M$11/AF12 -> 1.551417567 | G11: 1.889756271 | H11: 0.7225649664 | I11: 0.2777210254 | J11: 1.241933667 | K11: 0.6069380389 | L11: =L10*$M$11/AL12 -> 0.3226152658 | M11: 1000 | O11: =O10*$Y$11/AO12 -> 17.30504426 | P11: =P10*$Y$11/AP12 -> 5.050139418 | Q11: 5.654675433 | R11: 0.707478839 | S11: 1.024581282 | T11: 1.275790048 | U11: 0.6174525696 | V11: 0.7198384348 | W11: 0.5756463541 | X11: 0.5389514209 | Y11: 1000
B12: 2016-11-30 | C12: 286831.1876 | D12: 213418.5853 | E12: 265780.116 | F12: 180891.632 | G12: 160696.2747 | H12: 111359.0996 | I12: 91838.652 | J12: 77459.88851 | K12: 65934.9975 | L12: 53777.71 | M12: =SUM(C12:L12) -> 1507988.143 | O12: 47397.05158 | P12: 4556.640733 | Q12: 2231.676589 | R12: 1328.979268 | S12: 328.633168 | T12: 3706.891153 | U12: 1554.239436 | V12: 1210.150554 | W12: 1184.090559 | X12: 6229.6366 | Y12: =SUM(O12:X12) -> 69727.98964 | AA12: 2198.81 | AC12: 80.169998 | AD12: 21.120001 | AE12: 52.919998 | AF12: 77.32 | AG12: 56.389999 | AH12: 102.199997 | AI12: 219.289993 | AJ12: 41.360001 | AK12: 72.040001 | AL12: 110.540001 | AM12: =SUMPRODUCT($C$11:$L$11,AC12:AL12) -> 1000 | AO12: 39.279999 | AP12: 12.94 | AQ12: 5.66 | AR12: 26.940001 | AS12: 4.6 | AT12: 41.669998 | AU12: 36.099998 | AV12: 24.110001 | AW12: 29.5 | AX12: 165.770004 | AY12: =SUMPRODUCT($O$11:$X$11,AO12:AX12) -> 1000 | BA12: =B12 -> 2016-11-30 | BB12: 0 | BC12: 0 | BD12: 0
B13: 2016-12-01 | C13: 292627.2026 | D13: 217258.5031 | E13: 272911.782 | F13: 176469.9405 | G13: 163204.0371 | H13: 109158.0685 | I13: 94912.644 | J13: 78958.14554 | K13: 66383.47264 | L13: 54779.9 | M13: 1526663.696 | O13: 46262.80442 | P13: 4475.649437 | Q13: 2101.56117 | R13: 1321.579606 | S13: 315.773609 | T13: 3528.974611 | U13: 1474.590047 | V13: 1190.575327 | W13: 1151.979628 | X13: 6121.782 | Y13: 67945.26985 | AA13: 2191.08 | AC13: 81.790001 | AD13: 21.5 | AE13: 54.34 | AF13: 75.43 | AG13: 57.27 | AH13: 100.18 | AI13: 226.630005 | AJ13: 42.16 | AK13: 72.529999 | AL13: 112.599998 | AM13: =SUMPRODUCT($C$11:$L$11,AC13:AL13) -> 1012.384427 | AO13: 38.34 | AP13: 12.71 | AQ13: 5.33 | AR13: 26.790001 | AS13: 4.42 | AT13: 39.669998 | AU13: 34.25 | AV13: 23.719999 | AW13: 28.700001 | AX13: 162.899994 | AY13: =SUMPRODUCT($O$11:$X$11,AO13:AX13) -> 974.4332373 | BA13: 2016-12-01 | BB13: =(AA13-$AA$12)/$AA$12 -> -0.00351553795 | BC13: =(AM13-$AM$12)/$AM$12 -> 0.01238442737 | BD13: =(AY13-$AY$12)/$AY$12 -> -0.02556676273
B14: 2016-12-02 | C14: 291947.423 | D14: 214530.1405 | E14: 269094.834 | F14: 177148.4011 | G14: 159641.8746 | H14: 110160.5183 | I14: 93543.168 | J14: 78340.11452 | K14: 65770.25154 | L14: 54040.42 | M14: 1514217.146 | O14: 46600.66528 | P14: 4598.897061 | Q14: 2030.589123 | R14: 1341.805349 | S14: 315.059189 | T14: 3473.820483 | U14: 1474.590047 | V14: 1198.10426 | W14: 1147.965762 | X14: 6084.202 | Y14: 68265.69855 | AA14: 2191.95 | AC14: 81.599998 | AD14: 21.23 | AE14: 53.580002 | AF14: 75.720001 | AG14: 56.02 | AH14: 101.099998 | AI14: 223.360001 | AJ14: 41.830002 | AK14: 71.860001 | AL14: 111.080002 | AM14: 1004.130685 | AO14: 38.619999 | AP14: 13.06 | AQ14: 5.15 | AR14: 27.200001 | AS14: 4.41 | AT14: 39.049999 | AU14: 34.25 | AV14: 23.870001 | AW14: 28.6 | AX14: 161.899994 | AY14: 979.0286321 | BA14: 2016-12-02 | BB14: =(AA14-$AA$12)/$AA$12 -> -0.003119869384 | BC14: =(AM14-$AM$12)/$AM$12 -> 0.004130685342 | BD14: =(AY14-$AY$12)/$AY$12 -> -0.0209713679
B15: 2016-12-05 | C15: 297886.5495 | D15: 220694.2189 | E15: 272962.005 | F15: 180868.2368 | G15: 163232.5344 | H15: 112830.0858 | I15: 95716.74 | J15: 78827.04805 | K15: 65925.84495 | L15: 54244.75 | M15: 1543188.013 | O15: 47047.12426 | P15: 4648.196111 | Q15: 2081.846712 | R15: 1326.512714 | S15: 303.62847 | T15: 3609.037054 | U15: 1474.590047 | V15: 1224.204563 | W15: 1194.125224 | X15: 6165.3748 | Y15: 69074.63996 | AA15: 2204.71 | AC15: 83.260002 | AD15: 21.84 | AE15: 54.349998 | AF15: 77.309998 | AG15: 57.279999 | AH15: 103.550003 | AI15: 228.550003 | AJ15: 42.09 | AK15: 72.029999 | AL15: 111.5 | AM15: 1023.342277 | AO15: 38.990002 | AP15: 13.2 | AQ15: 5.28 | AR15: 26.889999 | AS15: 4.25 | AT15: 40.57 | AU15: 34.25 | AV15: 24.389999 | AW15: 29.75 | AX15: 164.059998 | AY15: 990.6300721 | BA15: 2016-12-05 | BB15: 0.002683269587 | BC15: 0.0233422768 | BD15: -0.009369927914
B16: 2016-12-06 | C16: 299424.998 | D16: 223927.8339 | E16: 278988.765 | F16: 180400.3329 | G16: 165056.3616 | H16: 111141.1757 | I16: 96901.944 | J16: 79613.633 | K16: 66182.11645 | L16: 54239.885 | M16: 1555877.046 | O16: 47035.05781 | P16: 4672.845636 | Q16: 2239.562372 | R16: 1272.741838 | S16: 305.77173 | T16: 3638.393284 | U16: 1455.215871 | V16: 1244.783647 | W16: 1210.180689 | X16: 6252.5604 | Y16: 69327.11327 | AA16: 2212.23 | AC16: 83.690002 | AD16: 22.16 | AE16: 55.549999 | AF16: 77.110001 | AG16: 57.919998 | AH16: 102 | AI16: 231.380005 | AJ16: 42.509998 | AK16: 72.309998 | AL16: 111.489998 | AM16: 1031.756821 | AO16: 38.98 | AP16: 13.27 | AQ16: 5.68 | AR16: 25.799999 | AS16: 4.28 | AT16: 40.900002 | AU16: 33.799999 | AV16: 24.799999 | AW16: 30.15 | AX16: 166.380005 | AY16: 994.2508748 | BA16: 2016-12-06 | BB16: 0.006103301331 | BC16: 0.03175682132 | BD16: -0.005749125168
B17: 2016-12-07 | C17: 300784.557 | D17: 228070.903 | E17: 287677.344 | F17: 185547.2754 | G17: 168305.0538 | H17: 114682.4387 | I17: 98652.528 | J17: 79857.09976 | K17: 67994.32211 | L17: 54813.955 | M17: 1586385.477 | O17: 47602.18139 | P17: 4972.161294 | Q17: 2310.534419 | R17: 1293.460891 | S17: 301.48521 | T17: 3622.380795 | U17: 1472.437361 | V17: 1261.347301 | W17: 1222.222288 | X17: 6143.2026 | Y17: 70201.41354 | AA17: 2241.35 | AC17: 84.07 | AD17: 22.57 | AE17: 57.279999 | AF17: 79.309998 | AG17: 59.060001 | AH17: 105.25 | AI17: 235.559998 | AJ17: 42.639999 | AK17: 74.290001 | AL17: 112.669998 | AM17: 1051.988033 | AO17: 39.450001 | AP17: 14.12 | AQ17: 5.86 | AR17: 26.219999 | AS17: 4.22 | AT17: 40.720001 | AU17: 34.200001 | AV17: 25.129999 | AW17: 30.450001 | AX17: 163.470001 | AY17: 1006.789618 | BA17: 2016-12-07 | BB17: 0.01934682851 | BC17: 0.0519880332 | BD17: 0.00678961841
B18: 2016-12-08 | C18: 304541.2334 | D18: 231910.8207 | E18: 287727.567 | F18: 184476.6922 | G18: 171411.2595 | H18: 114213.9024 | I18: 101119.26 | J18: 81617.55177 | K18: 68561.78044 | L18: 55859.93 | M18: 1601439.997 | O18: 47795.24473 | P18: 4908.776802 | Q18: 2219.847915 | R18: 1286.55454 | S18: 289.340072 | T18: 3792.291093 | U18: 1498.269595 | V18: 1264.358874 | W18: 1278.416417 | X18: 6198.4452 | Y18: 70531.54524 | AA18: 2246.19 | AC18: 85.120003 | AD18: 22.950001 | AE18: 57.290001 | AF18: 79.279999 | AG18: 60.150002 | AH18: 104.82 | AI18: 241.449997 | AJ18: 43.580002 | AK18: 74.910004 | AL18: 114.82 | AM18: 1062.634644 | AO18: 39.610001 | AP18: 13.94 | AQ18: 5.63 | AR18: 26.08 | AS18: 4.05 | AT18: 42.630001 | AU18: 34.799999 | AV18: 25.190001 | AW18: 31.85 | AX18: 164.940002 | AY18: 1011.524184 | BA18: 2016-12-08 | BB18: 0.02154801916 | BC18: 0.06263464425 | BD18: 0.01152418439
B19: 2016-12-09 | C19: 305865.0146 | D19: 233325.5272 | E19: 286974.222 | F19: 184150.9261 | G19: 171097.7892 | H19: 113767.1584 | I19: 101286.78 | J19: 81898.47497 | K19: 68433.64469 | L19: 55957.23 | M19: 1602756.767 | O19: 47843.51057 | P19: 4891.169998 | Q19: 2180.419 | R19: 1272.741838 | S19: 307.20057 | T19: 3755.818202 | U19: 1506.88034 | V19: 1270.883949 | W19: 1278.416417 | X19: 6274.7326 | Y19: 70581.77348 | AA19: 2259.53 | AC19: 85.489998 | AD19: 23.09 | AE19: 57.139999 | AF19: 79.139999 | AG19: 60.040001 | AH19: 104.410004 | AI19: 241.850006 | AJ19: 43.73 | AK19: 74.769997 | AL19: 115.019997 | AM19: 1063.50664 | AO19: 39.650002 | AP19: 13.89 | AQ19: 5.53 | AR19: 25.799999 | AS19: 4.3 | AT19: 42.220001 | AU19: 35 | AV19: 25.32 | AW19: 31.85 | AX19: 166.970001 | AY19: 1012.244546 | BA19: 2016-12-09 | BB19: 0.02761493717 | BC19: 0.06350663969 | BD19: 0.01224454582
B20: 2016-12-12 | C20: 303145.8965 | D20: 228475.1048 | E20: 280143.894 | F20: 182661.7096 | G20: 169701.4215 | H20: 112535.8885 | I20: 99326.796 | J20: 80493.859 | K20: 67344.49079 | L20: 55495.055 | M20: 1579324.116 | O20: 47578.04847 | P20: 4877.084556 | Q20: 2105.504061 | R20: 1309.918964 | S20: 304.34289 | T20: 3739.805713 | U20: 1517.643771 | V20: 1263.355016 | W20: 1266.374818 | X20: 6320.5802 | Y20: 70282.65846 | AA20: 2256.96 | AC20: 84.730003 | AD20: 22.610001 | AE20: 55.779999 | AF20: 78.5 | AG20: 59.549999 | AH20: 103.279999 | AI20: 237.169998 | AJ20: 42.98 | AK20: 73.580002 | AL20: 114.07 | AM20: 1047.962283 | AO20: 39.43 | AP20: 13.85 | AQ20: 5.34 | AR20: 25.549999 | AS20: 4.26 | AT20: 42.040001 | AU20: 35.25 | AV20: 25.17 | AW20: 31.549999 | AX20: 168.190002 | AY20: 1007.244727 | BA20: 2016-12-12 | BB20: 0.02644612313 | BC20: 0.04796228295 | BD20: 0.007244726566
B21: 2016-12-13 | C21: 303253.2301 | D21: 228475.1048 | E21: 280445.232 | F21: 184290.4242 | G21: 170385.3567 | H21: 112579.4733 | I21: 99904.74 | J21: 79707.27406 | K21: 67582.45719 | L21: 55801.55 | M21: 1582424.842 | O21: 47578.04847 | P21: 4954.554491 | Q21: 2133.104302 | R21: 1285.822608 | S21: 303.62847 | T21: 3760.266115 | U21: 1534.865261 | V21: 1264.358874 | W21: 1250.319352 | X21: 6348.3894 | Y21: 70413.35734 | AA21: 2271.72 | AC21: 84.760002 | AD21: 22.610001 | AE21: 55.84 | AF21: 79.199997 | AG21: 59.790001 | AH21: 103.32 | AI21: 238.550003 | AJ21: 42.560001 | AK21: 73.839996 | AL21: 114.699997 | AM21: 1050.024417 | AO21: 39.43 | AP21: 14.07 | AQ21: 5.41 | AR21: 25.08 | AS21: 4.25 | AT21: 42.27 | AU21: 35.650002 | AV21: 25.190001 | AW21: 31.15 | AX21: 168.929993 | AY21: 1009.132196 | BA21: 2016-12-13 | BB21: 0.03315884501 | BC21: 0.0500244171 | BD21: 0.00913219578
B22: 2016-12-14 | C22: 303145.8965 | D22: 229081.4076 | E22: 274719.81 | F22: 184127.5413 | G22: 169416.4485 | H22: 112535.8885 | I22: 100482.684 | J22: 80269.12045 | K22: 67792.96592 | L22: 55558.3 | M22: 1577130.063 | O22: 47722.84598 | P22: 4870.041834 | Q22: 2050.30358 | R22: 1264.802381 | S22: 300.056371 | T22: 3714.007814 | U22: 1545.628692 | V22: 1250.304865 | W22: 1234.263887 | X22: 6182.6616 | Y22: 70134.917 | AA22: 2253.28 | AC22: 84.730003 | AD22: 22.67 | AE22: 54.700001 | AF22: 79.129997 | AG22: 59.450001 | AH22: 103.279999 | AI22: 239.929993 | AJ22: 42.860001 | AK22: 74.07 | AL22: 114.199997 | AM22: 1046.512674 | AO22: 39.549999 | AP22: 13.83 | AQ22: 5.2 | AR22: 24.67 | AS22: 4.2 | AT22: 41.75 | AU22: 35.900002 | AV22: 24.91 | AW22: 30.75 | AX22: 164.520004 | AY22: 1005.150342 | BA22: 2016-12-14 | BB22: 0.02477249057 | BC22: 0.04651267437 | BD22: 0.005150341553
B23: 2016-12-15 | C23: 307689.686 | D23: 234032.8805 | E23: 277180.737 | F23: 184988.494 | G23: 171639.2379 | H23: 113701.7813 | I23: 101768.4 | J23: 80550.04364 | K23: 68589.2381 | L23: 56253.995 | M23: 1596394.493 | O23: 47710.77952 | P23: 4975.682655 | Q23: 2018.760448 | R23: 1263.777005 | S23: 299.341951 | T23: 3772.720273 | U23: 1616.667336 | V23: 1231.733496 | W23: 1220.215355 | X23: 6280.3696 | Y23: 70390.04764 | AA23: 2262.03 | AC23: 86 | AD23: 23.16 | AE23: 55.189999 | AF23: 79.5 | AG23: 60.23 | AH23: 104.349998 | AI23: 243 | AJ23: 43.009998 | AK23: 74.940002 | AL23: 115.629997 | AM23: 1059.29068 | AO23: 39.540001 | AP23: 14.13 | AQ23: 5.12 | AR23: 24.65 | AS23: 4.19 | AT23: 42.41 | AU23: 37.549999 | AV23: 24.540001 | AW23: 30.4 | AX23: 167.119995 | AY23: 1008.809868 | BA23: 2016-12-15 | BB23: 0.02875191581 | BC23: 0.05929068038 | BD23: 0.00880986756
B24: 2016-12-16 | C24: 303897.2318 | D24: 228980.3572 | E24: 277934.082 | F24: 182312.5598 | G24: 170271.3675 | H24: 112699.3314 | I24: 100051.32 | J24: 79988.19725 | K24: 68644.15342 | L24: 55879.39 | M24: 1580657.99 | O24: 47445.31742 | P24: 5063.716672 | Q24: 2101.56117 | R24: 1285.822608 | S24: 303.62847 | T24: 3740.695296 | U24: 1577.918985 | V24: 1203.625478 | W24: 1214.194556 | X24: 6102.6162 | Y24: 70039.09685 | AA24: 2258.07 | AC24: 84.940002 | AD24: 22.66 | AE24: 55.34 | AF24: 78.349998 | AG24: 59.75 | AH24: 103.43 | AI24: 238.899994 | AJ24: 42.709999 | AK24: 75 | AL24: 114.860001 | AM24: 1048.845634 | AO24: 39.32 | AP24: 14.38 | AQ24: 5.33 | AR24: 25.08 | AS24: 4.25 | AT24: 42.049999 | AU24: 36.650002 | AV24: 23.98 | AW24: 30.25 | AX24: 162.389999 | AY24: 1003.764762 | BA24: 2016-12-16 | BB24: 0.02695094165 | BC24: 0.04884563351 | BD24: 0.003764761576
B25: 2016-12-19 | C25: 305650.3474 | D25: 227161.4488 | E25: 277331.406 | F25: 181730.835 | G25: 170014.8918 | H25: 112819.1896 | I25: 100122.516 | J25: 80212.93581 | K25: 68232.2885 | L25: 56336.7 | M25: 1579612.559 | O25: 47590.11493 | P25: 5056.673951 | Q25: 2038.474906 | R25: 1343.243713 | S25: 304.34289 | T25: 3724.682807 | U25: 1567.155554 | V25: 1194.088829 | W25: 1220.215355 | X25: 6037.227 | Y25: 70076.21993 | AA25: 2262.53 | AC25: 85.43 | AD25: 22.48 | AE25: 55.220001 | AF25: 78.099998 | AG25: 59.66 | AH25: 103.540001 | AI25: 239.070007 | AJ25: 42.830002 | AK25: 74.550003 | AL25: 115.800003 | AM25: 1048.150288 | AO25: 39.439999 | AP25: 14.36 | AQ25: 5.17 | AR25: 26.200001 | AS25: 4.26 | AT25: 41.869999 | AU25: 36.400002 | AV25: 23.790001 | AW25: 30.4 | AX25: 160.649994 | AY25: 1004.266016 | BA25: 2016-12-19 | BB25: 0.02897931154 | BC25: 0.04815028808 | BD25: 0.004266016397
B26: 2016-12-20 | C26: 309585.9132 | D26: 229485.6095 | E26: 281751.03 | F26: 182335.8288 | G26: 173263.584 | H26: 113908.8089 | I26: 101806.092 | J26: 81467.72607 | K26: 68699.06875 | L26: 57441.055 | M26: 1599744.716 | O26: 47952.1087 | P26: 5098.930279 | Q26: 2054.246472 | R26: 1384.258788 | S26: 312.201509 | T26: 3684.651585 | U26: 1556.392123 | V26: 1196.598474 | W26: 1240.284687 | X26: 5902.3148 | Y26: 70381.98742 | AA26: 2270.76 | AC26: 86.529999 | AD26: 22.709999 | AE26: 56.099998 | AF26: 78.360001 | AG26: 60.799999 | AH26: 104.540001 | AI26: 243.089996 | AJ26: 43.5 | AK26: 75.059998 | AL26: 118.07 | AM26: 1061.50278 | AO26: 39.740002 | AP26: 14.48 | AQ26: 5.21 | AR26: 27 | AS26: 4.37 | AT26: 41.419998 | AU26: 36.150002 | AV26: 23.84 | AW26: 30.9 | AX26: 157.059998 | AY26: 1008.628983 | BA26: 2016-12-20 | BB26: 0.03272224521 | BC26: 0.06150278024 | BD26: 0.008628982635
B27: 2016-12-21 | C27: 310373.0263 | D27: 228677.2058 | E27: 279792.333 | F27: 181823.911 | G27: 173121.0975 | H27: 113505.6498 | I27: 101115.072 | J27: 81224.2593 | K27: 68937.03515 | L27: 57231.86 | M27: 1595801.45 | O27: 48374.43477 | P27: 5063.716672 | Q27: 2050.30358 | R27: 1438.603763 | S27: 314.344769 | T27: 3629.497457 | U27: 1543.476005 | V27: 1198.10426 | W27: 1212.187623 | X27: 5774.9186 | Y27: 70599.5875 | AA27: 2265.18 | AC27: 86.75 | AD27: 22.629999 | AE27: 55.709999 | AF27: 78.139999 | AG27: 60.75 | AH27: 104.169998 | AI27: 241.440002 | AJ27: 43.369999 | AK27: 75.32 | AL27: 117.639999 | AM27: 1058.886024 | AO27: 40.09 | AP27: 14.38 | AQ27: 5.2 | AR27: 28.059999 | AS27: 4.4 | AT27: 40.799999 | AU27: 35.849998 | AV27: 23.870001 | AW27: 30.200001 | AX27: 153.669998 | AY27: 1011.720189 | BA27: 2016-12-21 | BB27: 0.03018450889 | BC27: 0.05888602397 | BD27: 0.01172018901
B28: 2016-12-22 | C28: 310873.9165 | D28: 227767.7516 | E28: 279993.225 | F28: 181265.4552 | G28: 172380.1677 | H28: 113658.1965 | I28: 100562.256 | J28: 80138.02296 | K28: 68259.74617 | L28: 57129.695 | M28: 1592028.433 | O28: 47879.70995 | P28: 4947.511769 | Q28: 2073.960929 | R28: 1424.248486 | S28: 305.05731 | T28: 3573.453746 | U28: 1515.491085 | V28: 1204.629336 | W28: 1176.062826 | X28: 5644.516 | Y28: 69744.64143 | AA28: 2260.96 | AC28: 86.889999 | AD28: 22.540001 | AE28: 55.75 | AF28: 77.900002 | AG28: 60.490002 | AH28: 104.309998 | AI28: 240.119995 | AJ28: 42.790001 | AK28: 74.580002 | AL28: 117.43 | AM28: 1056.38202 | AO28: 39.68 | AP28: 14.05 | AQ28: 5.26 | AR28: 27.780001 | AS28: 4.27 | AT28: 40.169998 | AU28: 35.200001 | AV28: 24 | AW28: 29.299999 | AX28: 150.199997 | AY28: 999.4668093 | BA28: 2016-12-22 | BB28: 0.02826528895 | BC28: 0.05638201988 | BD28: -0.0005331907328
B29: 2016-12-23 | C29: 311446.3624 | D29: 228374.0544 | E29: 281047.908 | F29: 181847.18 | G29: 173805.0327 | H29: 114094.0442 | I29: 100918.236 | J29: 80643.6847 | K29: 68616.69576 | L29: 57387.54 | M29: 1598180.738 | O29: 47759.04536 | P29: 4954.554491 | Q29: 2054.246472 | R29: 1404.766326 | S29: 327.204328 | T29: 3677.534923 | U29: 1515.491085 | V29: 1195.594616 | W29: 1170.042026 | X29: 5615.0157 | Y29: 69673.49532 | AA29: 2263.79 | AC29: 87.050003 | AD29: 22.6 | AE29: 55.959999 | AF29: 78.150002 | AG29: 60.990002 | AH29: 104.709999 | AI29: 240.970001 | AJ29: 43.060001 | AK29: 74.970001 | AL29: 117.959999 | AM29: 1060.463923 | AO29: 39.580002 | AP29: 14.07 | AQ29: 5.21 | AR29: 27.4 | AS29: 4.58 | AT29: 41.34 | AU29: 35.200001 | AV29: 23.82 | AW29: 29.15 | AX29: 149.419998 | AY29: 998.459764 | BA29: 2016-12-23 | BB29: 0.02955234877 | BC29: 0.06046392338 | BD29: -0.001540235957
B30: 2016-12-27 | C30: 311732.5854 | D30: 228475.1048 | E30: 280997.685 | F30: 182312.5598 | G30: 174090.0057 | H30: 114192.11 | I30: 101165.328 | J30: 80756.05398 | K30: 68625.84832 | L30: 57557.815 | M30: 1599905.096 | O30: 47927.97578 | P30: 4929.904966 | Q30: 2156.761651 | R30: 1376.568461 | S30: 328.633168 | T30: 3882.138946 | U30: 1530.559888 | V30: 1193.084972 | W30: 1172.04896 | X30: 5617.8342 | Y30: 70115.511 | AA30: 2268.88 | AC30: 87.129997 | AD30: 22.610001 | AE30: 55.950001 | AF30: 78.349998 | AG30: 61.09 | AH30: 104.800003 | AI30: 241.559998 | AJ30: 43.119999 | AK30: 74.980003 | AL30: 118.309998 | AM30: 1061.609069 | AO30: 39.720001 | AP30: 14 | AQ30: 5.47 | AR30: 26.85 | AS30: 4.6 | AT30: 43.639999 | AU30: 35.549999 | AV30: 23.77 | AW30: 29.200001 | AX30: 149.490005 | AY30: 1004.811481 | BA30: 2016-12-27 | BB30: 0.03186723728 | BC30: 0.06160906912 | BD30: 0.004811481395
B31: 2016-12-28 | C31: 309478.5796 | D31: 225645.6918 | E31: 277833.636 | F31: 182196.2149 | G31: 171097.7892 | H31: 112971.7363 | I31: 100784.22 | J31: 79819.64334 | K31: 68067.54254 | L31: 56949.69 | M31: 1584844.744 | O31: 47746.9789 | P31: 4912.298163 | Q31: 2054.246472 | R31: 1380.15728 | S31: 325.061068 | T31: 3844.776473 | U31: 1532.712574 | V31: 1188.065683 | W31: 1164.021227 | X31: 5577.9994 | Y31: 69726.31724 | AA31: 2249.92 | AC31: 86.5 | AD31: 22.33 | AE31: 55.32 | AF31: 78.300003 | AG31: 60.040001 | AH31: 103.68 | AI31: 240.649994 | AJ31: 42.619999 | AK31: 74.370003 | AL31: 117.059998 | AM31: 1051.621604 | AO31: 39.57 | AP31: 13.95 | AQ31: 5.21 | AR31: 26.92 | AS31: 4.55 | AT31: 43.220001 | AU31: 35.599998 | AV31: 23.67 | AW31: 29 | AX31: 148.429993 | AY31: 999.2279134 | BA31: 2016-12-28 | BB31: 0.02324439128 | BC31: 0.0516216044 | BD31: -0.0007720865989
B32: 2016-12-29 | C32: 307296.1295 | D32: 222311.0264 | E32: 275422.932 | F32: 182266.0219 | G32: 169216.9674 | H32: 113069.802 | I32: 99749.784 | J32: 78939.41733 | K32: 67655.67762 | L32: 56482.65 | M32: 1572410.408 | O32: 48217.5708 | P32: 4834.828227 | Q32: 2038.474906 | R32: 1375.543085 | S32: 327.918748 | T32: 3834.10148 | U32: 1528.407202 | V32: 1183.548323 | W32: 1168.035093 | X32: 5469.0174 | Y32: 69977.44527 | AA32: 2249.26 | AC32: 85.889999 | AD32: 22 | AE32: 54.84 | AF32: 78.330002 | AG32: 59.380001 | AH32: 103.769997 | AI32: 238.179993 | AJ32: 42.150002 | AK32: 73.919998 | AL32: 116.099998 | AM32: 1043.376204 | AO32: 39.959999 | AP32: 13.73 | AQ32: 5.17 | AR32: 26.83 | AS32: 4.59 | AT32: 43.099998 | AU32: 35.5 | AV32: 23.58 | AW32: 29.1 | AX32: 145.529999 | AY32: 1002.831936 | BA32: 2016-12-29 | BB32: 0.02294422892 | BC32: 0.04337620437 | BD32: 0.002831936457
B33: 2016-12-30 | C33: 308727.2443 | D33: 223321.5311 | E33: 276778.953 | F33: 181544.6831 | G33: 169359.4539 | H33: 112503.2 | I33: 100281.66 | J33: 79126.69946 | K33: 67802.11848 | L33: 56901.04 | M33: 1576346.583 | O33: 47626.3143 | P33: 4799.61462 | Q33: 2070.018038 | R33: 1416.55816 | S33: 330.776428 | T33: 3813.641078 | U33: 1517.643771 | V33: 1182.042536 | W33: 1158.000428 | X33: 5521.2536 | Y33: 69435.86296 | AA33: 2238.83 | AC33: 86.290001 | AD33: 22.1 | AE33: 55.110001 | AF33: 78.019997 | AG33: 59.43 | AH33: 103.25 | AI33: 239.449997 | AJ33: 42.25 | AK33: 74.080002 | AL33: 116.959999 | AM33: 1045.983828 | AO33: 39.470001 | AP33: 13.63 | AQ33: 5.25 | AR33: 27.629999 | AS33: 4.63 | AT33: 42.869999 | AU33: 35.25 | AV33: 23.549999 | AW33: 28.85 | AX33: 146.919998 | AY33: 995.042666 | BA33: 2016-12-30 | BB33: 0.01820075404 | BC33: 0.04598382827 | BD33: -0.004957334014
B34: 2017-01-03 | C34: 312090.3641 | D34: 227666.7011 | E34: 281248.8 | F34: 184988.494 | G34: 172665.1407 | H34: 114834.9854 | I34: 101169.516 | J34: 80624.95649 | K34: 68964.49281 | L34: 57392.405 | M34: 1601645.856 | O34: 48567.49812 | P34: 4862.999113 | Q34: 2137.047193 | R34: 1429.888059 | S34: 332.919687 | T34: 3809.193164 | U34: 1509.033026 | V34: 1186.057967 | W34: 1145.958829 | X34: 5643.7644 | Y34: 70624.35956 | AA34: 2257.83 | AC34: 87.230003 | AD34: 22.530001 | AE34: 56 | AF34: 79.5 | AG34: 60.59 | AH34: 105.389999 | AI34: 241.570007 | AJ34: 43.049999 | AK34: 75.349998 | AL34: 117.970001 | AM34: 1062.773064 | AO34: 40.25 | AP34: 13.81 | AQ34: 5.42 | AR34: 27.889999 | AS34: 4.66 | AT34: 42.82 | AU34: 35.049999 | AV34: 23.629999 | AW34: 28.549999 | AX34: 150.179993 | AY34: 1012.080177 | BA34: 2017-01-03 | BB34: 0.0268417917 | BC34: 0.06277306372 | BD34: 0.01208017723
B35: 2017-01-04 | C35: 310945.4723 | D35: 231910.8207 | E35: 281499.915 | F35: 186500.9786 | G35: 175001.9193 | H35: 115924.6048 | I35: 101822.844 | J35: 81692.46463 | K35: 69797.3752 | L35: 57878.905 | M35: 1612975.299 | O35: 49472.48256 | P35: 5017.938983 | Q35: 2263.219721 | R35: 1418.096225 | S35: 364.354164 | T35: 3926.618082 | U35: 1571.460926 | V35: 1212.158269 | W35: 1164.021227 | X35: 5746.7336 | Y35: 72157.08375 | AA35: 2270.75 | AC35: 86.910004 | AD35: 22.950001 | AE35: 56.049999 | AF35: 80.150002 | AG35: 61.41 | AH35: 106.389999 | AI35: 243.130005 | AJ35: 43.619999 | AK35: 76.260002 | AL35: 118.970001 | AM35: 1070.29146 | AO35: 41 | AP35: 14.25 | AQ35: 5.74 | AR35: 27.66 | AS35: 5.1 | AT35: 44.139999 | AU35: 36.5 | AV35: 24.15 | AW35: 29 | AX35: 152.919998 | AY35: 1034.06805 | BA35: 2017-01-04 | BB35: 0.0327176973 | BC35: 0.07029146015 | BD35: 0.0340680504
B36: 2017-01-05 | C36: 308083.2426 | D36: 229182.4581 | E36: 277130.514 | F36: 188688.2639 | G36: 171952.7082 | H36: 116578.3764 | I36: 101064.816 | J36: 80943.33611 | K36: 68937.03515 | L36: 57105.37 | M36: 1599666.12 | O36: 49544.88131 | P36: 5127.101165 | Q36: 2227.733698 | R36: 1380.15728 | S36: 340.063887 | T36: 4241.530361 | U36: 1588.682416 | V36: 1243.277861 | W36: 1196.132157 | X36: 5738.8418 | Y36: 72628.40194 | AA36: 2269 | AC36: 86.110001 | AD36: 22.68 | AE36: 55.18 | AF36: 81.089996 | AG36: 60.34 | AH36: 106.989998 | AI36: 241.320007 | AJ36: 43.220001 | AK36: 75.32 | AL36: 117.379997 | AM36: 1061.473522 | AO36: 41.060001 | AP36: 14.56 | AQ36: 5.65 | AR36: 26.92 | AS36: 4.76 | AT36: 47.68 | AU36: 36.900002 | AV36: 24.77 | AW36: 29.799999 | AX36: 152.710007 | AY36: 1040.848023 | BA36: 2017-01-05 | BB36: 0.03192181225 | BC36: 0.06147352185 | BD36: 0.04084802252
B37: 2017-01-06 | C37: 308119.0205 | D37: 229182.4581 | E37: 276427.392 | F37: 191294.3911 | G37: 172551.1515 | H37: 117417.3833 | I37: 102564.12 | J37: 82123.21352 | K37: 69074.32345 | L37: 57917.825 | M37: 1606671.279 | O37: 50015.47322 | P37: 5282.041035 | Q37: 2219.847915 | R37: 1392.974491 | S37: 345.064826 | T37: 4172.14291 | U37: 1582.224357 | V37: 1258.335727 | W37: 1208.173756 | X37: 5905.697 | Y37: 73381.97524 | AA37: 2276.98 | AC37: 86.120003 | AD37: 22.68 | AE37: 55.040001 | AF37: 82.209999 | AG37: 60.549999 | AH37: 107.760002 | AI37: 244.899994 | AJ37: 43.849998 | AK37: 75.470001 | AL37: 119.050003 | AM37: 1066.128271 | AO37: 41.450001 | AP37: 15 | AQ37: 5.63 | AR37: 27.17 | AS37: 4.83 | AT37: 46.900002 | AU37: 36.75 | AV37: 25.07 | AW37: 30.1 | AX37: 157.149994 | AY37: 1051.648399 | BA37: 2017-01-06 | BB37: 0.03555104807 | BC37: 0.06612827059 | BD37: 0.05164839852
B38: 2017-01-09 | C38: 308333.6877 | D38: 227868.802 | E38: 272409.552 | F38: 190224.0174 | G38: 171610.7406 | H38: 117188.5632 | I38: 101722.332 | J38: 79988.19725 | K38: 69431.27305 | L38: 57504.3 | M38: 1596281.465 | O38: 49955.14092 | P38: 5303.169199 | Q38: 2231.676589 | R38: 1393.999868 | S38: 341.492727 | T38: 4209.057687 | U38: 1571.460926 | V38: 1238.760501 | W38: 1224.229222 | X38: 5892.1682 | Y38: 73361.15584 | AA38: 2268.9 | AC38: 86.18 | AD38: 22.549999 | AE38: 54.240002 | AF38: 81.75 | AG38: 60.220001 | AH38: 107.550003 | AI38: 242.889999 | AJ38: 42.709999 | AK38: 75.860001 | AL38: 118.199997 | AM38: 1059.234566 | AO38: 41.400002 | AP38: 15.06 | AQ38: 5.66 | AR38: 27.190001 | AS38: 4.78 | AT38: 47.18 | AU38: 36.5 | AV38: 24.68 | AW38: 30.5 | AX38: 156.789993 | AY38: 1051.177087 | BA38: 2017-01-09 | BB38: 0.03187633311 | BC38: 0.05923456647 | BD38: 0.05117708748
B39: 2017-01-10 | C39: 309228.1345 | D39: 231809.7702 | E39: 274318.026 | F39: 189200.1818 | G39: 171639.2379 | H39: 116937.9508 | I39: 101588.316 | J39: 80643.6847 | K39: 70154.3248 | L39: 57732.955 | M39: 1603252.582 | O39: 49569.01423 | P39: 5250.348789 | Q39: 2267.162613 | R39: 1369.390823 | S39: 351.494606 | T39: 4270.614486 | U39: 1554.239436 | V39: 1253.316438 | W39: 1216.201489 | X39: 5864.7348 | Y39: 72966.51771 | AA39: 2268.9 | AC39: 86.43 | AD39: 22.940001 | AE39: 54.619999 | AF39: 81.309998 | AG39: 60.23 | AH39: 107.32 | AI39: 242.570007 | AJ39: 43.060001 | AK39: 76.650002 | AL39: 118.669998 | AM39: 1063.853679 | AO39: 41.080002 | AP39: 14.91 | AQ39: 5.75 | AR39: 26.709999 | AS39: 4.92 | AT39: 47.869999 | AU39: 36.099998 | AV39: 24.969999 | AW39: 30.299999 | AX39: 156.059998 | AY39: 1045.528226 | BA39: 2017-01-10 | BB39: 0.03187633311 | BC39: 0.06385367853 | BD39: 0.04552822565
B40: 2017-01-11 | C40: 311553.6961 | D40: 233123.4263 | E40: 275222.04 | F40: 190340.3624 | G40: 170869.8108 | H40: 117471.8643 | I40: 102924.288 | J40: 81786.10569 | K40: 70392.2912 | L40: 59027.045 | M40: 1612710.93 | O40: 49810.34341 | P40: 5246.827428 | Q40: 2239.562372 | R40: 1370.928889 | S40: 360.782065 | T40: 4311.652352 | U40: 1565.002867 | V40: 1248.799078 | W40: 1200.146024 | X40: 5899.6842 | Y40: 73253.72869 | AA40: 2275.32 | AC40: 87.080002 | AD40: 23.07 | AE40: 54.799999 | AF40: 81.800003 | AG40: 59.959999 | AH40: 107.809998 | AI40: 245.759995 | AJ40: 43.669998 | AK40: 76.910004 | AL40: 121.330002 | AM40: 1070.129941 | AO40: 41.279999 | AP40: 14.9 | AQ40: 5.68 | AR40: 26.74 | AS40: 5.05 | AT40: 48.330002 | AU40: 36.349998 | AV40: 24.879999 | AW40: 29.9 | AX40: 156.990005 | AY40: 1049.64469 | BA40: 2017-01-11 | BB40: 0.03479609425 | BC40: 0.07012994058 | BD40: 0.04964469011
B41: 2017-01-12 | C41: 308548.3549 | D41: 231607.6693 | E41: 273715.35 | F41: 189339.7957 | G41: 168789.5079 | H41: 118452.5217 | I41: 102120.192 | J41: 81711.19284 | K41: 70364.83354 | L41: 57372.945 | M41: 1602022.363 | O41: 50148.20427 | P41: 5190.485657 | Q41: 2208.01924 | R41: 1357.086301 | S41: 346.493666 | T41: 4333.955541 | U41: 1588.682416 | V41: 1254.822225 | W41: 1182.083625 | X41: 5875.633 | Y41: 73485.46594 | AA41: 2270.44 | AC41: 86.239998 | AD41: 22.92 | AE41: 54.5 | AF41: 81.370003 | AG41: 59.23 | AH41: 108.709999 | AI41: 243.839996 | AJ41: 43.630001 | AK41: 76.879997 | AL41: 117.93 | AM41: 1063.038373 | AO41: 41.560001 | AP41: 14.74 | AQ41: 5.6 | AR41: 26.469999 | AS41: 4.85 | AT41: 48.580002 | AU41: 36.900002 | AV41: 25 | AW41: 29.450001 | AX41: 156.350006 | AY41: 1052.974766 | BA41: 2017-01-12 | BB41: 0.03257671195 | BC41: 0.06303837278 | BD41: 0.0529747661
B42: 2017-01-13 | C42: 308756.04 | D42: 232517.1235 | E42: 277441.0068 | F42: 188874.4159 | G42: 169929.3999 | H42: 118441.6255 | I42: 102312.84 | J42: 82048.30067 | K42: 70126.86714 | L42: 57613.15 | M42: 1608060.769 | O42: 50196.47011 | P42: 5194.007018 | Q42: 2211.962132 | R42: 1378.619215 | S42: 355.781125 | T42: 4328.232901 | U42: 1616.667336 | V42: 1268.876234 | W42: 1210.180689 | X42: 5894.423 | Y42: 73655.21976 | AA42: 2274.64 | AC42: 86.699997 | AD42: 23.01 | AE42: 55.310001 | AF42: 81.169998 | AG42: 59.630001 | AH42: 108.699997 | AI42: 244.300003 | AJ42: 43.810001 | AK42: 76.620003 | AL42: 118.790001 | AM42: 1068.339854 | AO42: 41.599998 | AP42: 14.75 | AQ42: 5.61 | AR42: 26.889999 | AS42: 4.98 | AT42: 48.099998 | AU42: 37.549999 | AV42: 25.280001 | AW42: 30.15 | AX42: 156.850006 | AY42: 1054.867242 | BA42: 2017-01-13 | BB42: 0.03448683606 | BC42: 0.06833985353 | BD42: 0.05486724183
B43: 2017-01-17 | C43: 297538.26 | D43: 221660.3946 | E43: 269766.3596 | F43: 189083.8368 | G43: 166367.2374 | H43: 118114.7397 | I43: 98727.912 | J43: 78061.8 | K43: 70108.56203 | L43: 55256.05 | M43: 1564685.152 | O43: 49798.27695 | P43: 5172.878854 | Q43: 2164.647434 | R43: 1373.492331 | S43: 346.493666 | T43: 4456.010255 | U43: 1575.766298 | V43: 1266.366589 | W43: 1196.132157 | X43: 5844.0658 | Y43: 73194.13034 | AA43: 2267.89 | AC43: 83.550003 | AD43: 22.049999 | AE43: 53.779999 | AF43: 81.260002 | AG43: 58.380001 | AH43: 108.400002 | AI43: 235.740005 | AJ43: 42.150002 | AK43: 76.599998 | AL43: 113.93 | AM43: 1040.87944 | AO43: 41.27 | AP43: 14.69 | AQ43: 5.49 | AR43: 26.790001 | AS43: 4.85 | AT43: 49.52 | AU43: 36.599998 | AV43: 25.23 | AW43: 29.799999 | AX43: 155.509995 | AY43: 1048.236474 | BA43: 2017-01-17 | BB43: 0.03141699374 | BC43: 0.04087944038 | BD43: 0.04823647398
B44: 2017-01-18 | C44: 298927.128 | D44: 227490.9174 | E44: 272224.2897 | F44: 189851.7136 | G44: 159108.036 | H44: 118398.0407 | I44: 97183.492 | J44: 79376.72 | K44: 70923.13932 | L44: 56415.2 | M44: 1569898.677 | O44: 49894.80863 | P44: 5155.27205 | Q44: 2164.647434 | R44: 1392.974491 | S44: 342.921566 | T44: 4497.402919 | U44: 1597.29316 | V44: 1277.409025 | W44: 1210.180689 | X44: 5881.6458 | Y44: 73414.55576 | AA44: 2271.89 | AC44: 83.940002 | AD44: 22.629999 | AE44: 54.27 | AF44: 81.589996 | AG44: 57.389999 | AH44: 108.660004 | AI44: 234.289993 | AJ44: 42.860001 | AK44: 77.489998 | AL44: 116.32 | AM44: 1047.942515 | AO44: 41.349998 | AP44: 14.64 | AQ44: 5.49 | AR44: 27.17 | AS44: 4.8 | AT44: 49.98 | AU44: 37.099998 | AV44: 25.450001 | AW44: 30.15 | AX44: 156.509995 | AY44: 1051.380331 | BA44: 2017-01-18 | BB44: 0.03323615956 | BC44: 0.04794251504 | BD44: 0.05138033123
B45: 2017-01-19 | C45: 296647.96 | D45: 226485.6549 | E45: 273779.2838 | F45: 190177.4795 | G45: 157084.184 | H45: 118256.3902 | I45: 95988.868 | J45: 78617.4 | K45: 70190.93502 | L45: 56070.85 | M45: 1563299.005 | O45: 49798.27695 | P45: 5186.964296 | Q45: 2278.991287 | R45: 1378.619215 | S45: 342.921566 | T45: 4558.592074 | U45: 1575.766298 | V45: 1269.378163 | W45: 1208.173756 | X45: 5833.5434 | Y45: 73431.22701 | AA45: 2263.69 | AC45: 83.300003 | AD45: 22.530001 | AE45: 54.580002 | AF45: 81.730003 | AG45: 56.66 | AH45: 108.529999 | AI45: 231.410004 | AJ45: 42.450001 | AK45: 76.690002 | AL45: 115.610001 | AM45: 1043.506565 | AO45: 41.27 | AP45: 14.73 | AQ45: 5.78 | AR45: 26.889999 | AS45: 4.8 | AT45: 50.66 | AU45: 36.599998 | AV45: 25.290001 | AW45: 30.1 | AX45: 155.229996 | AY45: 1051.617233 | BA45: 2017-01-19 | BB45: 0.02950686962 | BC45: 0.0435065652 | BD45: 0.05161723314
B46: 2017-01-20 | C46: 297965.604 | D46: 227591.4437 | E46: 276237.1777 | F46: 190433.4384 | G46: 155559.364 | H46: 119814.5459 | I46: 96316.56 | J46: 78876.68 | K46: 69742.45988 | L46: 56914.75 | M46: 1569452.024 | O46: 50305.06824 | P46: 5243.306067 | Q46: 2267.162613 | R46: 1450.908285 | S46: 350.780186 | T46: 4507.301165 | U46: 1590.835102 | V46: 1283.934101 | W46: 1254.333219 | X46: 5895.9262 | Y46: 74149.55518 | AA46: 2271.31 | AC46: 83.669998 | AD46: 22.639999 | AE46: 55.07 | AF46: 81.839996 | AG46: 56.110001 | AH46: 109.959999 | AI46: 232.199997 | AJ46: 42.59 | AK46: 76.199997 | AL46: 117.349998 | AM46: 1047.575181 | AO46: 41.689999 | AP46: 14.89 | AQ46: 5.75 | AR46: 28.299999 | AS46: 4.91 | AT46: 50.09 | AU46: 36.950001 | AV46: 25.58 | AW46: 31.25 | AX46: 156.889999 | AY46: 1061.888282 | BA46: 2017-01-20 | BB46: 0.03297238051 | BC46: 0.04757518081 | BD46: 0.0618882822
B47: 2017-01-23 | C47: 298108.052 | D47: 226787.2336 | E47: 272123.9675 | F47: 191154.7772 | G47: 154367.232 | H47: 119454.9715 | I47: 96511.516 | J47: 77709.92 | K47: 69531.95114 | L47: 56711.05 | M47: 1562460.671 | O47: 50220.60302 | P47: 5144.707968 | Q47: 2322.363094 | R47: 1407.329768 | S47: 348.636926 | T47: 4448.811531 | U47: 1586.529729 | V47: 1285.439887 | W47: 1268.381751 | X47: 5839.5562 | Y47: 73872.35988 | AA47: 2265.2 | AC47: 83.709999 | AD47: 22.559999 | AE47: 54.25 | AF47: 82.150002 | AG47: 55.68 | AH47: 109.629997 | AI47: 232.669998 | AJ47: 41.959999 | AK47: 75.970001 | AL47: 116.93 | AM47: 1042.905946 | AO47: 41.619999 | AP47: 14.61 | AQ47: 5.89 | AR47: 27.450001 | AS47: 4.88 | AT47: 49.439999 | AU47: 36.849998 | AV47: 25.610001 | AW47: 31.6 | AX47: 155.389999 | AY47: 1057.946085 | BA47: 2017-01-23 | BB47: 0.03019360472 | BC47: 0.04290594645 | BD47: 0.05794608464
B48: 2017-01-24 | C48: 301704.864 | D48: 230707.7576 | E48: 274381.217 | F48: 193667.8284 | G48: 157305.976 | H48: 119770.9612 | I48: 96930.464 | J48: 79135.96 | K48: 70868.224 | L48: 57550.1 | M48: 1582023.352 | O48: 50630.86263 | P48: 5162.314772 | Q48: 2326.305985 | R48: 1418.096225 | S48: 349.351346 | T48: 4447.01185 | U48: 1588.682416 | V48: 1310.536332 | W48: 1290.458015 | X48: 5951.1688 | Y48: 74474.78838 | AA48: 2280.07 | AC48: 84.720001 | AD48: 22.950001 | AE48: 54.700001 | AF48: 83.230003 | AG48: 56.740002 | AH48: 109.919998 | AI48: 233.679993 | AJ48: 42.73 | AK48: 77.43 | AL48: 118.660004 | AM48: 1055.983618 | AO48: 41.959999 | AP48: 14.66 | AQ48: 5.9 | AR48: 27.66 | AS48: 4.89 | AT48: 49.419998 | AU48: 36.900002 | AV48: 26.110001 | AW48: 32.150002 | AX48: 158.360001 | AY48: 1066.58024 | BA48: 2017-01-24 | BB48: 0.03695635366 | BC48: 0.05598361754 | BD48: 0.06658023976
B49: 2017-01-25 | C49: 306370.036 | D49: 234929.8604 | E49: 284012.1482 | F49: 195226.8509 | G49: 159939.756 | H49: 120065.1584 | I49: 98411.3 | J49: 81228.72 | K49: 70373.98609 | L49: 58689.85 | M49: 1609247.666 | O49: 50329.20116 | P49: 5141.186607 | Q49: 2405.163815 | R49: 1440.141828 | S49: 352.209025 | T49: 4621.580911 | U49: 1605.903905 | V49: 1335.130847 | W49: 1326.582812 | X49: 6613.7042 | Y49: 75170.80511 | AA49: 2298.37 | AC49: 86.029999 | AD49: 23.370001 | AE49: 56.619999 | AF49: 83.900002 | AG49: 57.689999 | AH49: 110.190002 | AI49: 237.25 | AJ49: 43.860001 | AK49: 76.889999 | AL49: 121.010002 | AM49: 1074.155628 | AO49: 41.709999 | AP49: 14.6 | AQ49: 6.1 | AR49: 28.09 | AS49: 4.93 | AT49: 51.360001 | AU49: 37.299999 | AV49: 26.6 | AW49: 33.049999 | AX49: 175.990005 | AY49: 1076.521636 | BA49: 2017-01-25 | BB49: 0.0452790373 | BC49: 0.07415562776 | BD49: 0.07652163607
B50: 2017-01-26 | C50: 308934.1 | D50: 235633.5442 | E50: 286821.1698 | F50: 193691.0974 | G50: 159024.864 | H50: 119182.5667 | I50: 99377.784 | J50: 81525.04 | K50: 70410.59631 | L50: 58990.55 | M50: 1613591.312 | O50: 50075.80551 | P50: 5074.280754 | Q50: 2413.049598 | R50: 1426.811929 | S50: 344.350406 | T50: 4590.086493 | U50: 1620.972709 | V50: 1340.150136 | W50: 1296.478815 | X50: 6779.8078 | Y50: 74961.79415 | AA50: 2296.68 | AC50: 86.75 | AD50: 23.440001 | AE50: 57.18 | AF50: 83.239998 | AG50: 57.360001 | AH50: 109.379997 | AI50: 239.580002 | AJ50: 44.02 | AK50: 76.93 | AL50: 121.629997 | AM50: 1077.035263 | AO50: 41.5 | AP50: 14.41 | AQ50: 6.12 | AR50: 27.83 | AS50: 4.82 | AT50: 51.009998 | AU50: 37.650002 | AV50: 26.700001 | AW50: 32.299999 | AX50: 180.410004 | AY50: 1073.536507 | BA50: 2017-01-26 | BB50: 0.04451043974 | BC50: 0.07703526267 | BD50: 0.07353650711
B51: 2017-01-27 | C51: 309575.116 | D51: 234829.3341 | E51: 283861.6649 | F51: 194924.354 | G51: 158331.764 | H51: 119683.7916 | I51: 98286.86 | J51: 80839.8 | K51: 70337.37588 | L51: 58995.4 | M51: 1609665.461 | O51: 48605.89 | P51: 5116.537083 | Q51: 2420.935381 | R51: 1417.070848 | S51: 341.492727 | T51: 4637.77804 | U51: 1629.583453 | V51: 1337.138563 | W51: 1314.541213 | X51: 6757.6356 | Y51: 73578.60291 | AA51: 2294.69 | AC51: 86.93 | AD51: 23.360001 | AE51: 56.59 | AF51: 83.769997 | AG51: 57.110001 | AH51: 109.839996 | AI51: 236.949997 | AJ51: 43.650002 | AK51: 76.849998 | AL51: 121.639999 | AM51: 1074.408208 | AO51: 40.27 | AP51: 14.53 | AQ51: 6.14 | AR51: 27.639999 | AS51: 4.78 | AT51: 51.540001 | AU51: 37.849998 | AV51: 26.639999 | AW51: 32.75 | AX51: 179.820007 | AY51: 1053.492539 | BA51: 2017-01-27 | BB51: 0.04360540474 | BC51: 0.0744082079 | BD51: 0.05349253854
B52: 2017-01-30 | C52: 306370.036 | D52: 230707.7576 | E52: 281303.4488 | F52: 194761.4711 | G52: 156945.564 | H52: 119095.3971 | I52: 97021.72 | J52: 79858.24 | K52: 70730.93569 | L52: 58384.3 | M52: 1595178.87 | O52: 48111.02 | P52: 5088.366197 | Q52: 2385.449358 | R52: 1381.182657 | S52: 347.922506 | T52: 4562.191436 | U52: 1588.682416 | V52: 1346.173283 | W52: 1294.471882 | X52: 6814.7572 | Y52: 72920.21694 | AA52: 2280.9 | AC52: 86.029999 | AD52: 22.950001 | AE52: 56.080002 | AF52: 83.699997 | AG52: 56.610001 | AH52: 109.300003 | AI52: 233.899994 | AJ52: 43.119999 | AK52: 77.279999 | AL52: 120.379997 | AM52: 1064.732512 | AO52: 39.860001 | AP52: 14.45 | AQ52: 6.05 | AR52: 26.940001 | AS52: 4.87 | AT52: 50.700001 | AU52: 36.900002 | AV52: 26.82 | AW52: 32.25 | AX52: 181.339996 | AY52: 1044.084242 | BA52: 2017-01-30 | BB52: 0.03733383057 | BC52: 0.06473251204 | BD52: 0.04408424188
B53: 2017-01-31 | C53: 301384.356 | D53: 227591.4437 | E53: 282557.4763 | F53: 192457.8408 | G53: 154783.092 | H53: 114942.73 | I53: 95121.936 | J53: 78691.48 | K53: 69907.20585 | L53: 58423.1 | M53: 1575860.661 | O53: 48014.46 | P53: 5148.229329 | Q53: 2432.764056 | R53: 1393.48718 | S53: 359.353225 | T53: 4572.989523 | U53: 1627.430767 | V53: 1345.169425 | W53: 1274.40255 | X53: 7036.855 | Y53: 73205.14106 | AA53: 2278.87 | AC53: 84.629997 | AD53: 22.639999 | AE53: 56.330002 | AF53: 82.709999 | AG53: 55.830002 | AH53: 106.330002 | AI53: 229.320007 | AJ53: 42.490002 | AK53: 76.379997 | AL53: 120.459999 | AM53: 1052.435481 | AO53: 39.779999 | AP53: 14.62 | AQ53: 6.17 | AR53: 27.18 | AS53: 5.03 | AT53: 50.82 | AU53: 37.799999 | AV53: 26.799999 | AW53: 31.75 | AX53: 187.25 | AY53: 1048.162399 | BA53: 2017-01-31 | BB53: 0.03641060392 | BC53: 0.05243548139 | BD53: 0.04816239908
B54: 2017-02-01 | C54: 302523.94 | D54: 230104.6001 | E54: 280450.7101 | F54: 191829.578 | G54: 155393.02 | H54: 113505 | I54: 95681.916 | J54: 79080.4 | K54: 70255.00289 | L54: 58752.9 | M54: 1577577.067 | O54: 47447.17 | P54: 5056.673951 | Q54: 2491.907428 | R54: 1375.030396 | S54: 369.355104 | T54: 4606.283622 | U54: 1629.583453 | V54: 1331.617345 | W54: 1262.360951 | X54: 7070.3012 | Y54: 72640.28345 | AA54: 2279.55 | AC54: 84.949997 | AD54: 22.889999 | AE54: 55.91 | AF54: 82.440002 | AG54: 56.049999 | AH54: 105 | AI54: 230.669998 | AJ54: 42.700001 | AK54: 76.760002 | AL54: 121.139999 | AM54: 1053.592744 | AO54: 39.310001 | AP54: 14.36 | AQ54: 6.32 | AR54: 26.82 | AS54: 5.17 | AT54: 51.189999 | AU54: 37.849998 | AV54: 26.530001 | AW54: 31.450001 | AX54: 188.139999 | AY54: 1040.068508 | BA54: 2017-02-01 | BB54: 0.03671986211 | BC54: 0.05359274423 | BD54: 0.04006850796
B55: 2017-02-02 | C55: 301241.908 | D55: 228395.6537 | E55: 279648.1325 | F55: 190995.2667 | G55: 155198.952 | H55: 113656.34 | I55: 95574.068 | J55: 78024.76 | K55: 70026.18905 | L55: 58204.85 | M55: 1570966.12 | O55: 47773.06 | P55: 5056.673951 | Q55: 2456.421405 | R55: 1382.208034 | S55: 355.066705 | T55: 4707.965601 | U55: 1620.972709 | V55: 1321.076838 | W55: 1234.263887 | X55: 7068.798 | Y55: 72976.50713 | AA55: 2280.85 | AC55: 84.589996 | AD55: 22.719999 | AE55: 55.75 | AF55: 82.300003 | AG55: 55.98 | AH55: 105.139999 | AI55: 230.410004 | AJ55: 42.130001 | AK55: 76.510002 | AL55: 120.010002 | AM55: 1049.521859 | AO55: 39.580002 | AP55: 14.36 | AQ55: 6.23 | AR55: 26.959999 | AS55: 4.97 | AT55: 52.32 | AU55: 37.650002 | AV55: 26.32 | AW55: 30.75 | AX55: 188.100006 | AY55: 1044.868578 | BA55: 2017-02-02 | BB55: 0.037311091 | BC55: 0.04952185891 | BD55: 0.04486857839
B56: 2017-02-03 | C56: 310465.416 | D56: 234125.6503 | E56: 287272.6197 | F56: 199767.5888 | G56: 160133.824 | H56: 115212.98 | I56: 99946.06 | J56: 82284.36 | K56: 71426.52978 | L56: 59247.6 | M56: 1619882.629 | O56: 47785.13 | P56: 5028.503065 | Q56: 2499.793211 | R56: 1408.867833 | S56: 367.926264 | T56: 4689.96879 | U56: 1648.957629 | V56: 1328.103843 | W56: 1278.416417 | X56: 7187.9266 | Y56: 73223.59365 | AA56: 2297.42 | AC56: 87.18 | AD56: 23.290001 | AE56: 57.27 | AF56: 86.080002 | AG56: 57.759998 | AH56: 106.580002 | AI56: 240.949997 | AJ56: 44.43 | AK56: 78.040001 | AL56: 122.160004 | AM56: 1082.223162 | AO56: 39.59 | AP56: 14.28 | AQ56: 6.34 | AR56: 27.48 | AS56: 5.15 | AT56: 52.119999 | AU56: 38.299999 | AV56: 26.459999 | AW56: 31.85 | AX56: 191.270004 | AY56: 1048.400557 | BA56: 2017-02-03 | BB56: 0.04484698541 | BC56: 0.08222316202 | BD56: 0.04840055731
B57: 2017-02-06 | C57: 309005.324 | D57: 232416.704 | E57: 283661.0205 | F57: 199187.4088 | G57: 159801.136 | H57: 114978.633 | I57: 99543.704 | J57: 82654.76 | K57: 71225.17359 | L57: 59368.85 | M57: 1611842.714 | O57: 47966.18 | P57: 5070.759394 | Q57: 2460.364296 | R57: 1397.588687 | S57: 370.783944 | T57: 4740.359859 | U57: 1629.583453 | V57: 1321.578767 | W57: 1288.451082 | X57: 7150.7224 | Y57: 73396.37188 | AA57: 2292.56 | AC57: 86.769997 | AD57: 23.120001 | AE57: 56.549999 | AF57: 85.830002 | AG57: 57.639999 | AH57: 106.589996 | AI57: 239.979996 | AJ57: 44.630001 | AK57: 77.82 | AL57: 122.410004 | AM57: 1077.032021 | AO57: 39.740002 | AP57: 14.4 | AQ57: 6.24 | AR57: 27.26 | AS57: 5.19 | AT57: 52.68 | AU57: 37.849998 | AV57: 26.33 | AW57: 32.099998 | AX57: 190.279999 | AY57: 1050.875593 | BA57: 2017-02-06 | BB57: 0.04263669894 | BC57: 0.07703202055 | BD57: 0.05087559264
B58: 2017-02-07 | C58: 308827.264 | D58: 230205.1263 | E58: 282607.6374 | F58: 199071.3728 | G58: 158553.556 | H58: 114989.42 | I58: 99394.376 | J58: 83099.24 | K58: 71133.64806 | L58: 58912.95 | M58: 1606794.591 | O58: 48304.14 | P58: 5070.759394 | Q58: 2487.964537 | R58: 1407.842456 | S58: 374.356043 | T58: 4780.852683 | U58: 1614.51465 | V58: 1315.053692 | W58: 1298.485748 | X58: 7115.3972 | Y58: 73769.3664 | AA58: 2293.08 | AC58: 86.720001 | AD58: 22.9 | AE58: 56.34 | AF58: 85.779999 | AG58: 57.189999 | AH58: 106.599998 | AI58: 239.619995 | AJ58: 44.869999 | AK58: 77.720001 | AL58: 121.470001 | AM58: 1073.653169 | AO58: 40.02 | AP58: 14.4 | AQ58: 6.31 | AR58: 27.459999 | AS58: 5.24 | AT58: 53.130001 | AU58: 37.5 | AV58: 26.200001 | AW58: 32.349998 | AX58: 189.339996 | AY58: 1056.211239 | BA58: 2017-02-07 | BB58: 0.0428731905 | BC58: 0.07365316931 | BD58: 0.05621123882
B59: 2017-02-08 | C59: 306120.752 | D59: 227893.0224 | E59: 279046.1993 | F59: 197470.0759 | G59: 156141.568 | H59: 115118.864 | I59: 98610.404 | J59: 81321.32 | K59: 71206.86849 | L59: 58908.1 | M59: 1591837.174 | O59: 49342.16 | P59: 5095.408918 | Q59: 2444.59273 | R59: 1391.949115 | S59: 377.928143 | T59: 4802.448855 | U59: 1614.51465 | V59: 1317.061407 | W59: 1264.367885 | X59: 7045.1226 | Y59: 74695.5543 | AA59: 2294.67 | AC59: 85.959999 | AD59: 22.67 | AE59: 55.630001 | AF59: 85.089996 | AG59: 56.32 | AH59: 106.720001 | AI59: 237.729996 | AJ59: 43.91 | AK59: 77.800003 | AL59: 121.459999 | AM59: 1063.644486 | AO59: 40.880001 | AP59: 14.47 | AQ59: 6.2 | AR59: 27.15 | AS59: 5.29 | AT59: 53.369999 | AU59: 37.5 | AV59: 26.24 | AW59: 31.5 | AX59: 187.470001 | AY59: 1069.494846 | BA59: 2017-02-08 | BB59: 0.04359630891 | BC59: 0.06364448585 | BD59: 0.06949484614
B60: 2017-02-09 | C60: 310536.64 | D60: 232416.704 | E60: 284563.9203 | F60: 198607.1563 | G60: 158747.624 | H60: 115744.51 | I60: 100194.94 | J60: 83062.2 | K60: 71554.66553 | L60: 59359.15 | M60: 1614787.51 | O60: 49305.62344 | P60: 5186.964296 | Q60: 2543.165018 | R60: 1399.639441 | S60: 390.073282 | T60: 4914.02908 | U60: 1642.499571 | V60: 1340.150136 | W60: 1286.444149 | X60: 7077.4414 | Y60: 75086.02982 | AA60: 2307.87 | AC60: 87.199997 | AD60: 23.120001 | AE60: 56.73 | AF60: 85.580002 | AG60: 57.259998 | AH60: 107.300003 | AI60: 241.550003 | AJ60: 44.849998 | AK60: 78.18 | AL60: 122.389999 | AM60: 1078.980059 | AO60: 40.830002 | AP60: 14.73 | AQ60: 6.45 | AR60: 27.299999 | AS60: 5.46 | AT60: 54.610001 | AU60: 38.150002 | AV60: 26.700001 | AW60: 32.049999 | AX60: 188.330002 | AY60: 1074.731174 | BA60: 2017-02-09 | BB60: 0.04959955612 | BC60: 0.07898005864 | BD60: 0.07473117398
B61: 2017-02-10 | C61: 309824.4 | D61: 232014.5989 | E61: 285216.0146 | F61: 199349.7865 | G61: 159773.412 | H61: 115712.149 | I61: 100680.256 | J61: 82784.4 | K61: 71829.24214 | L61: 59703.5 | M61: 1616887.759 | O61: 49003.72764 | P61: 5144.707968 | Q61: 2633.851522 | R61: 1407.842456 | S61: 405.79052 | T61: 4968.919351 | U61: 1646.804943 | V61: 1337.138563 | W61: 1288.451082 | X61: 7020.6956 | Y61: 74857.92964 | AA61: 2316.1 | AC61: 87 | AD61: 23.08 | AE61: 56.860001 | AF61: 85.900002 | AG61: 57.630001 | AH61: 107.269997 | AI61: 242.720001 | AJ61: 44.700001 | AK61: 78.480003 | AL61: 123.099998 | AM61: 1080.394245 | AO61: 40.580002 | AP61: 14.61 | AQ61: 6.68 | AR61: 27.459999 | AS61: 5.68 | AT61: 55.220001 | AU61: 38.25 | AV61: 26.639999 | AW61: 32.099998 | AX61: 186.820007 | AY61: 1071.449828 | BA61: 2017-02-10 | BB61: 0.0533424898 | BC61: 0.08039424522 | BD61: 0.07144982803
B62: 2017-02-13 | C62: 313919.78 | D62: 235231.4391 | E62: 286319.5588 | F62: 200602.9749 | G62: 163432.98 | H62: 116801.636 | I62: 102152.796 | J62: 83821.52 | K62: 72222.80196 | L62: 60343.7 | M62: 1634849.187 | O62: 49716.20174 | P62: 5105.973001 | Q62: 2633.851522 | R62: 1399.639441 | S62: 400.075161 | T62: 5043.606115 | U62: 1623.125395 | V62: 1354.204145 | W62: 1280.42335 | X62: 7132.684 | Y62: 75689.78387 | AA62: 2328.25 | AC62: 88.150002 | AD62: 23.4 | AE62: 57.080002 | AF62: 86.440002 | AG62: 58.950001 | AH62: 108.279999 | AI62: 246.270004 | AJ62: 45.259998 | AK62: 78.910004 | AL62: 124.419998 | AM62: 1092.429981 | AO62: 41.169998 | AP62: 14.5 | AQ62: 6.68 | AR62: 27.299999 | AS62: 5.6 | AT62: 56.049999 | AU62: 37.700001 | AV62: 26.98 | AW62: 31.9 | AX62: 189.800003 | AY62: 1083.364052 | BA62: 2017-02-13 | BB62: 0.05886820598 | BC62: 0.09242998068 | BD62: 0.0833640521
B63: 2017-02-14 | C63: 318941.072 | D63: 241866.172 | E63: 290834.0578 | F63: 201554.4698 | G63: 165872.692 | H63: 117448.856 | I63: 103476.008 | J63: 85266.08 | K63: 72680.42965 | L63: 61158.5 | M63: 1659098.337 | O63: 50259.6142 | P63: 5046.109869 | Q63: 2602.30839 | R63: 1411.943964 | S63: 406.50494 | T63: 5043.606115 | U63: 1638.194198 | V63: 1350.690643 | W63: 1276.409483 | X63: 7142.8306 | Y63: 76178.2124 | AA63: 2337.58 | AC63: 89.559998 | AD63: 24.059999 | AE63: 57.98 | AF63: 86.849998 | AG63: 59.830002 | AH63: 108.879997 | AI63: 249.460007 | AJ63: 46.040001 | AK63: 79.410004 | AL63: 126.099998 | AM63: 1108.628053 | AO63: 41.619999 | AP63: 14.33 | AQ63: 6.6 | AR63: 27.540001 | AS63: 5.69 | AT63: 56.049999 | AU63: 38.049999 | AV63: 26.91 | AW63: 31.799999 | AX63: 190.070007 | AY63: 1090.356123 | BA63: 2017-02-14 | BB63: 0.06311141026 | BC63: 0.1086280533 | BD63: 0.09035612254
B64: 2017-02-15 | C64: 322609.108 | D64: 247093.5373 | E64: 293693.2405 | F64: 203155.7661 | G64: 167730.2 | H64: 118204.6818 | I64: 103923.992 | J64: 86099.48 | K64: 72854.32817 | L64: 61963.6 | M64: 1677327.934 | O64: 50561.51001 | P64: 5039.067147 | Q64: 2480.078754 | R64: 1448.857531 | S64: 401.504001 | T64: 5438.196672 | U64: 1651.110315 | V64: 1344.667496 | W64: 1320.562013 | X64: 7203.7102 | Y64: 76889.26414 | AA64: 2349.25 | AC64: 90.589996 | AD64: 24.58 | AE64: 58.549999 | AF64: 87.540001 | AG64: 60.5 | AH64: 109.660004 | AI64: 250.539993 | AJ64: 46.490002 | AK64: 79.599998 | AL64: 127.760002 | AM64: 1120.864561 | AO64: 41.869999 | AP64: 14.31 | AQ64: 6.29 | AR64: 28.26 | AS64: 5.62 | AT64: 60.610001 | AU64: 38.349998 | AV64: 26.790001 | AW64: 32.900002 | AX64: 191.690002 | AY64: 1100.688867 | BA64: 2017-02-15 | BB64: 0.06841882655 | BC64: 0.1208645606 | BD64: 0.1006888666
B65: 2017-02-16 | C65: 322395.436 | D65: 247093.5373 | E65: 291536.3132 | F65: 202854.0726 | G65: 167397.512 | H65: 117816.6306 | I65: 103467.712 | J65: 85395.72 | K65: 72771.95518 | L65: 61575.6 | M65: 1672304.489 | O65: 50899.63331 | P65: 4891.169998 | Q65: 2278.991287 | R65: 1457.573235 | S65: 357.924385 | T65: 5466.437834 | U65: 1653.263002 | V65: 1342.659781 | W65: 1430.943336 | X65: 7203.3344 | Y65: 76981.93057 | AA65: 2347.22 | AC65: 90.529999 | AD65: 24.58 | AE65: 58.119999 | AF65: 87.410004 | AG65: 60.380001 | AH65: 109.300003 | AI65: 249.440002 | AJ65: 46.110001 | AK65: 79.510002 | AL65: 126.959999 | AM65: 1117.5114 | AO65: 42.150002 | AP65: 13.89 | AQ65: 5.78 | AR65: 28.43 | AS65: 5.01 | AT65: 60.970001 | AU65: 38.400002 | AV65: 26.75 | AW65: 35.650002 | AX65: 191.679993 | AY65: 1102.063663 | BA65: 2017-02-16 | BB65: 0.06749559989 | BC65: 0.1175114004 | BD65: 0.102063663
B66: 2017-02-17 | C66: 321327.076 | D66: 246490.3798 | E66: 291385.8299 | F66: 202970.1086 | G66: 166815.308 | H66: 117945.981 | I66: 103857.624 | J66: 85469.8 | K66: 71840.29212 | L66: 61527.1 | M66: 1669629.499 | O66: 50670.1925 | P66: 5095.408918 | Q66: 2219.847915 | R66: 1509.354767 | S66: 350.151912 | T66: 5515.74964 | U66: 1672.637177 | V66: 1348.180999 | W66: 1444.991868 | X66: 7255.9464 | Y66: 77082.46209 | AA66: 2351.16 | AC66: 90.230003 | AD66: 24.52 | AE66: 58.09 | AF66: 87.459999 | AG66: 60.169998 | AH66: 109.419998 | AI66: 250.380005 | AJ66: 46.150002 | AK66: 79.709999 | AL66: 126.860001 | AM66: 1116.464947 | AO66: 41.959999 | AP66: 14.47 | AQ66: 5.63 | AR66: 29.440001 | AS66: 4.89 | AT66: 61.52 | AU66: 38.849998 | AV66: 26.860001 | AW66: 36 | AX66: 193.080002 | AY66: 1103.462866 | BA66: 2017-02-17 | BB66: 0.06928747823 | BC66: 0.1164649465 | BD66: 0.1034628661
B67: 2017-02-21 | C67: 324104.812 | D67: 249104.0625 | E67: 292188.4075 | F67: 204037.6394 | G67: 167868.82 | H67: 118743.6771 | I67: 104430.048 | J67: 86229.12 | K67: 72074.62252 | L67: 61861.75 | M67: 1680642.959 | O67: 51237.75662 | P67: 5151.750689 | Q67: 2239.562372 | R67: 1517.045094 | S67: 371.633625 | T67: 5655.615853 | U67: 1636.041512 | V67: 1355.208003 | W67: 1448.676284 | X67: 7244.392135 | Y67: 77857.68219 | AA67: 2365.38 | AC67: 91.010002 | AD67: 24.780001 | AE67: 58.25 | AF67: 87.919998 | AG67: 60.549999 | AH67: 110.160004 | AI67: 251.759995 | AJ67: 46.560001 | AK67: 79.970001 | AL67: 127.550003 | AM67: 1123.829999 | AO67: 42.43 | AP67: 14.63 | AQ67: 5.68 | AR67: 29.59 | AS67: 5.19 | AT67: 63.080002 | AU67: 38 | AV67: 27 | AW67: 35.799999 | AX67: 192.740005 | AY67: 1114.368312 | BA67: 2017-02-21 | BB67: 0.07575461272 | BC67: 0.1238299985 | BD67: 0.1143683123
B68: 2017-02-22 | C68: 324282.872 | D68: 249204.5887 | E68: 292740.1796 | F68: 203759.1531 | G68: 168062.888 | H68: 117967.5746 | I68: 104417.604 | J68: 86155.04 | K68: 71975.48273 | L68: 61963.6 | M68: 1680528.983 | O68: 51225.68079 | P68: 5482.792535 | Q68: 2223.790806 | R68: 1486.283788 | S68: 379.510252 | T68: 5701.341346 | U68: 1631.73614 | V68: 1352.73814 | W68: 1462.839321 | X68: 7330.089002 | Y68: 78276.80212 | AA68: 2362.82 | AC68: 91.059998 | AD68: 24.790001 | AE68: 58.360001 | AF68: 87.800003 | AG68: 60.619999 | AH68: 109.440002 | AI68: 251.729996 | AJ68: 46.52 | AK68: 79.860001 | AL68: 127.760002 | AM68: 1123.750829 | AO68: 42.419998 | AP68: 15.04 | AQ68: 5.64 | AR68: 28.99 | AS68: 5.3 | AT68: 63.59 | AU68: 37.900002 | AV68: 26.780001 | AW68: 36.150002 | AX68: 195.020004 | AY68: 1117.588643 | BA68: 2017-02-22 | BB68: 0.0745903466 | BC68: 0.1237508295 | BD68: 0.1175886433
B69: 2017-02-23 | C69: 324532.156 | D69: 247093.5373 | E69: 293392.2739 | F69: 204641.0265 | G69: 168062.888 | H69: 119368.8708 | I69: 104193.612 | J69: 86266.16 | K69: 72146.72418 | L69: 62147.9 | M69: 1681845.149 | O69: 51358.51494 | P69: 6251.987498 | Q69: 2192.247674 | R69: 1502.177129 | S69: 395.979565 | T69: 5624.235613 | U69: 1651.110315 | V69: 1458.81544 | W69: 1436.536539 | X69: 7323.699323 | Y69: 79195.30404 | AA69: 2363.81 | AC69: 91.129997 | AD69: 24.58 | AE69: 58.490002 | AF69: 88.18 | AG69: 60.619999 | AH69: 110.739998 | AI69: 251.190002 | AJ69: 46.580002 | AK69: 80.050003 | AL69: 128.139999 | AM69: 1124.633979 | AO69: 42.529999 | AP69: 17.15 | AQ69: 5.56 | AR69: 29.299999 | AS69: 5.53 | AT69: 62.73 | AU69: 38.349998 | AV69: 28.879999 | AW69: 35.5 | AX69: 194.850006 | AY69: 1130.377146 | BA69: 2017-02-23 | BB69: 0.07504059014 | BC69: 0.1246339792 | BD69: 0.1303771462
B70: 2017-02-24 | C70: 321683.196 | D70: 242908.7054 | E70: 289981.3191 | F70: 205221.2063 | G70: 165023.4482 | H70: 119649.13 | I70: 102600.78 | J70: 84321.56 | K70: 71885.35566 | L70: 61536.8 | M70: 1664811.501 | O70: 52010.60989 | P70: 6354.060764 | Q70: 2148.875868 | R70: 1533.963812 | S70: 390.967166 | T70: 5536.370941 | U70: 1661.873746 | V70: 1489.12324 | W70: 1454.746157 | X70: 7374.4062 | Y70: 79954.99778 | AA70: 2367.34 | AC70: 90.330002 | AD70: 24.23 | AE70: 57.810001 | AF70: 88.43 | AG70: 59.560001 | AH70: 111 | AI70: 247.350006 | AJ70: 45.529999 | AK70: 79.760002 | AL70: 126.879997 | AM70: 1113.745468 | AO70: 43.07 | AP70: 17.43 | AQ70: 5.45 | AR70: 29.92 | AS70: 5.46 | AT70: 61.75 | AU70: 38.599998 | AV70: 29.48 | AW70: 35.950001 | AX70: 196.179993 | AY70: 1141.192661 | BA70: 2017-02-24 | BB70: 0.07664600397 | BC70: 0.1137454676 | BD70: 0.1411926615
B71: 2017-02-27 | C71: 322039.316 | D71: 246317.2469 | E71: 291235.3466 | F71: 204223.297 | G71: 166297.9745 | H71: 119185.6244 | I71: 97894.99391 | J71: 85544.99897 | K71: 72254.87667 | L71: 62143.05 | M71: 1667136.725 | O71: 51491.3491 | P71: 6583.735993 | Q71: 2200.133457 | R71: 1515.507029 | S71: 412.448878 | T71: 5373.193692 | U71: 1681.247922 | V71: 1515.96719 | W71: 1507.351721 | X71: 7329.6741 | Y71: 79610.60908 | AA71: 2369.75 | AC71: 90.43 | AD71: 24.57 | AE71: 58.060001 | AF71: 88 | AG71: 60.02 | AH71: 110.57 | AI71: 249.330002 | AJ71: 45.84 | AK71: 80.169998 | AL71: 128.130005 | AM71: 1118.572153 | AO71: 42.639999 | AP71: 17.93 | AQ71: 5.58 | AR71: 29.559999 | AS71: 5.76 | AT71: 59.93 | AU71: 39.049999 | AV71: 29.93 | AW71: 37.25 | AX71: 194.990005 | AY71: 1135.451172 | BA71: 2017-02-27 | BB71: 0.07774205138 | BC71: 0.118572153 | BD71: 0.1354511716
B72: 2017-02-28 | C72: 322715.944 | D72: 247420.0103 | E72: 290332.4468 | F72: 204084.0538 | G72: 165716.1256 | H72: 119067.0531 | I72: 97396.35097 | J72: 85227.75094 | K72: 72155.73689 | L72: 61853.66211 | M72: 1665969.135 | O72: 50718.49583 | P72: 6359.749436 | Q72: 2105.504061 | R72: 1462.700119 | S72: 382.374481 | T72: 5308.640055 | U72: 1664.026433 | V72: 1484.563927 | W72: 1454.746157 | X72: 7338.6957 | Y72: 78279.4962 | AA72: 2363.64 | AC72: 90.620003 | AD72: 24.68 | AE72: 57.880001 | AF72: 87.940002 | AG72: 59.810001 | AH72: 110.459999 | AI72: 248.059998 | AJ72: 45.669998 | AK72: 80.059998 | AL72: 127.230003 | AM72: 1117.670206 | AO72: 42 | AP72: 17.32 | AQ72: 5.34 | AR72: 28.530001 | AS72: 5.34 | AT72: 59.209999 | AU72: 38.650002 | AV72: 29.309999 | AW72: 35.950001 | AX72: 195.229996 | AY72: 1116.548381 | BA72: 2017-02-28 | BB72: 0.07496327559 | BC72: 0.1176702063 | BD72: 0.1165483815
B73: 2017-03-01 | C73: 333328.32 | D73: 255640.6103 | E73: 298851.1649 | F73: 206520.8091 | G73: 170509.4527 | H73: 121061.2053 | I73: 99222.09084 | J73: 87355.17892 | K73: 73832.1005 | L73: 63613.5478 | M73: 1709934.48 | O73: 51237.75662 | P73: 6323.030329 | Q73: 2116.83372 | R73: 1481.669592 | S73: 379.510252 | T73: 5348.0895 | U73: 1717.843588 | V73: 1507.863122 | W73: 1420.350212 | X73: 7433.0466 | Y73: 78965.99353 | AA73: 2395.96 | AC73: 93.599998 | AD73: 25.5 | AE73: 59.73 | AF73: 88.989998 | AG73: 61.540001 | AH73: 112.309998 | AI73: 252.710007 | AJ73: 46.810001 | AK73: 81.919998 | AL73: 130.850006 | AM73: 1147.635589 | AO73: 42.43 | AP73: 17.219999 | AQ73: 5.29 | AR73: 28.9 | AS73: 5.3 | AT73: 59.650002 | AU73: 39.900002 | AV73: 29.77 | AW73: 35.099998 | AX73: 197.740005 | AY73: 1125.950346 | BA73: =B73 -> 2017-03-01 | BB73: 0.08966213543 | BC73: 0.1476355889 | BD73: 0.1259503463
B74: 2017-03-02 | C74: 328128.968 | D74: 252933.8274 | E74: 293747.7296 | F74: 205453.2782 | G74: 167988.1072 | H74: 120004.8436 | I74: 98574.24766 | J74: 86366.11153 | K74: 72191.78772 | L74: 61989.78586 | M74: =SUM(C74:L74) -> 1687378.687 | O74: 51648.33492 | P74: 6238.601917 | Q74: 2100.827416 | R74: 1485.258411 | S74: 364.16042 | T74: 5349.882656 | U74: 1601.598533 | V74: 1519.51272 | W74: 1426.420085 | X74: 7215.4005 | Y74: =SUM(O74:X74) -> 78949.99758 | AA74: 2381.92 | AC74: 92.139999 | AD74: 25.23 | AE74: 58.709999 | AF74: 88.529999 | AG74: 60.630001 | AH74: 111.330002 | AI74: 251.059998 | AJ74: 46.279999 | AK74: 80.099998 | AL74: 127.510002 | AM74: =SUMPRODUCT($C$11:$L$11,AC74:AL74) -> 1132.525236 | AO74: 42.77 | AP74: 16.99 | AQ74: 5.25 | AR74: 28.969999 | AS74: 5.08 | AT74: 59.669998 | AU74: 37.200001 | AV74: 30 | AW74: 35.25 | AX74: 191.949997 | AY74: 1125.760228 | BA74: 2017-03-02 | BB74: 0.08327686339 | BC74: 0.1325252365 | BD74: 0.1257602283
B75: 2017-03-03 | C75: 331433.998 | D75: 255039.103 | E75: 294648.3359 | F75: 206056.6652 | G75: 169013.2697 | H75: 120446.7909 | I75: 99292.76465 | J75: 87392.50222 | K75: 71993.50815 | L75: 62145.8328 | M75: 1697462.77 | O75: 51962.30656 | P75: 6201.882659 | Q75: 2052.808503 | R75: 1466.288938 | S75: 351.257098 | T75: 5405.47051 | U75: 1586.529729 | V75: 1497.226533 | W75: 1452.722866 | X75: 7286.8215 | Y75: 79263.3149 | AA75: 2383.12 | AC75: 92.800003 | AD75: 25.440001 | AE75: 58.889999 | AF75: 88.790001 | AG75: 61 | AH75: 111.739998 | AI75: 252.889999 | AJ75: 46.830002 | AK75: 79.879997 | AL75: 127.830002 | AM75: 1138.657671 | AO75: 43.029999 | AP75: 16.889999 | AQ75: 5.13 | AR75: 28.6 | AS75: 4.9 | AT75: 60.290001 | AU75: 36.849998 | AV75: 29.559999 | AW75: 35.900002 | AX75: 193.850006 | AY75: 1130.286089 | BA75: 2017-03-03 | BB75: 0.08382261314 | BC75: 0.1386576712 | BD75: 0.130286089
B76: 2017-03-06 | C76: 328291.0894 | D76: 253134.3298 | E76: 293247.5157 | F76: 206404.7731 | G76: 167018.359 | H76: 120037.1812 | I76: 98947.24828 | J76: 86907.29935 | K76: 71651.02526 | L76: 62029.1544 | M76: 1687667.975 | O76: 51769.09324 | P76: 6190.866882 | Q76: 2020.795895 | R76: 1426.811929 | S76: 359.142461 | T76: 5318.502416 | U76: 1575.766298 | V76: 1505.330601 | W76: 1428.443375 | X76: 7247.352 | Y76: 78842.1051 | AA76: 2375.31 | AC76: 91.919998 | AD76: 25.25 | AE76: 58.610001 | AF76: 88.940002 | AG76: 60.279999 | AH76: 111.360001 | AI76: 252.009995 | AJ76: 46.57 | AK76: 79.5 | AL76: 127.589996 | AM76: 1132.086238 | AO76: 42.869999 | AP76: 16.860001 | AQ76: 5.05 | AR76: 27.83 | AS76: 5.01 | AT76: 59.32 | AU76: 36.599998 | AV76: 29.719999 | AW76: 35.299999 | AX76: 192.800003 | AY76: 1124.293362 | BA76: 2017-03-06 | BB76: 0.08027069187 | BC76: 0.1320862376 | BD76: 0.1242933622
B77: 2017-03-07 | C77: 326469.631 | D77: 252733.3249 | E77: 291696.471 | F77: 206683.2594 | G77: 167627.915 | H77: 119606.0132 | I77: 98511.42651 | J77: 86459.41977 | K77: 71723.12692 | L77: 61936.784 | M77: 1683447.372 | O77: 51793.24491 | P77: 6154.147624 | Q77: 2024.797471 | R77: 1409.89321 | S77: 354.841354 | T77: 5391.125258 | U77: 1537.017947 | V77: 1495.200516 | W77: 1424.396794 | X77: 7237.5786 | Y77: 78822.24368 | AA77: 2368.39 | AC77: 91.410004 | AD77: 25.209999 | AE77: 58.299999 | AF77: 89.059998 | AG77: 60.5 | AH77: 110.959999 | AI77: 250.899994 | AJ77: 46.330002 | AK77: 79.580002 | AL77: 127.400002 | AM77: 1129.269564 | AO77: 42.889999 | AP77: 16.76 | AQ77: 5.06 | AR77: 27.5 | AS77: 4.95 | AT77: 60.130001 | AU77: 35.700001 | AV77: 29.52 | AW77: 35.200001 | AX77: 192.539993 | AY77: =SUMPRODUCT($O$11:$X$11,AO77:AX77) -> 1124.032071 | BA77: 2017-03-07 | BB77: 0.077123535 | BC77: 0.1292695641 | BD77: 0.1240320705
B78: 2017-03-08 | C78: 325755.3336 | D78: 253234.581 | E78: 291246.1677 | F78: 206451.1875 | G78: 169318.0477 | H78: 119627.5716 | I78: 98252.28924 | J78: 86571.38966 | K78: 71236.44071 | L78: 62009.708 | M78: 1683702.717 | O78: 51672.48658 | P78: 6179.851105 | Q78: 2124.836872 | R78: 1390.923738 | S78: 362.726717 | T78: 5461.058364 | U78: 1513.338399 | V78: 1487.096449 | W78: 1432.489957 | X78: 7178.5623 | Y78: 78803.37048 | AA78: 2362.98 | AC78: 91.209999 | AD78: 25.26 | AE78: 58.209999 | AF78: 88.959999 | AG78: 61.110001 | AH78: 110.980003 | AI78: 250.240005 | AJ78: 46.389999 | AK78: 79.040001 | AL78: 127.550003 | AM78: 1129.454289 | AO78: 42.790001 | AP78: 16.83 | AQ78: 5.31 | AR78: 27.129999 | AS78: 5.06 | AT78: 60.91 | AU78: 35.150002 | AV78: 29.360001 | AW78: 35.400002 | AX78: 190.970001 | AY78: 1123.729039 | BA78: 2017-03-08 | BB78: =(AA78-$AA$12)/$AA$12 -> 0.07466311323 | BC78: =(AM78-$AM$12)/$AM$12 -> 0.1294542886 | BD78: =(AY78-$AY$12)/$AY$12 -> 0.1237290391
B79: 2017-03-09 | C79: 327041.0689 | D79: 254136.842 | E79: 293697.819 | F79: 206799.2954 | G79: 170537.1598 | H79: 119422.7668 | I79: 98228.7313 | J79: 87112.57749 | K79: 71470.77111 | L79: 61975.6768 | M79: 1690422.709 | O79: 51829.4724 | P79: 6267.977324 | Q79: 2148.846328 | R79: 1381.695346 | S79: 348.389693 | T79: 5593.751951 | U79: 1502.574968 | V79: 1512.928165 | W79: 1418.326921 | X79: 7221.4149 | Y79: 79225.378 | AA79: 2364.87 | AC79: 91.57 | AD79: 25.35 | AE79: 58.700001 | AF79: 89.110001 | AG79: 61.549999 | AH79: 110.790001 | AI79: 250.179993 | AJ79: 46.68 | AK79: 79.300003 | AL79: 127.480003 | AM79: 1133.94907 | AO79: 42.919998 | AP79: 17.07 | AQ79: 5.37 | AR79: 26.950001 | AS79: 4.86 | AT79: 62.389999 | AU79: 34.900002 | AV79: 29.870001 | AW79: 35.049999 | AX79: 192.110001 | AY79: 1129.711545 | BA79: 2017-03-09 | BB79: 0.07552266908 | BC79: 0.1339490698 | BD79: 0.129711545
B80: 2017-03-10 | C80: 326005.3377 | D80: 253735.8371 | E80: 294448.3245 | F80: 208238.1414 | G80: 170370.9173 | H80: 119875.4932 | I80: 97521.99329 | J80: 86758.00615 | K80: 71542.87277 | L80: 61479.7936 | M80: 1689976.717 | O80: 51914.00323 | P80: 6209.226511 | Q80: 2124.836872 | R80: 1392.343333 | S80: 349.106544 | T80: 5786.814268 | U80: 1511.185712 | V80: 1521.538737 | W80: 1424.396794 | X80: 7198.485 | Y80: 79431.937 | AA80: 2372.6 | AC80: 91.279999 | AD80: 25.309999 | AE80: 58.849998 | AF80: 89.730003 | AG80: 61.490002 | AH80: 111.209999 | AI80: 248.380005 | AJ80: 46.490002 | AK80: 79.379997 | AL80: 126.459999 | AM80: 1133.62814 | AO80: 42.990002 | AP80: 16.91 | AQ80: 5.31 | AR80: 27.15 | AS80: 4.87 | AT80: 64.150002 | AU80: 35.099998 | AV80: 30.040001 | AW80: 35.200001 | AX80: 191.5 | AY80: 1132.176247 | BA80: 2017-03-10 | BB80: 0.07903820703 | BC80: 0.1336281397 | BD80: 0.1321762474
B81: 2017-03-13 | C81: 326291.0566 | D81: 253635.5859 | E81: 293697.819 | F81: 209120.0147 | G81: 170481.7456 | H81: 120220.4276 | I81: 97435.6142 | J81: 86328.78823 | K81: 71389.65674 | L81: 61450.624 | M81: 1690051.333 | O81: 51430.96994 | P81: 6216.570362 | Q81: 2104.828992 | R81: 1407.215508 | S81: 348.389693 | T81: 5857.176157 | U81: 1513.338399 | V81: 1527.616788 | W81: 1428.443375 | X81: 7205.2512 | Y81: 79039.80041 | AA81: 2373.47 | AC81: 91.360001 | AD81: 25.299999 | AE81: 58.700001 | AF81: 90.110001 | AG81: 61.529999 | AH81: 111.529999 | AI81: 248.160004 | AJ81: 46.259998 | AK81: 79.209999 | AL81: 126.400002 | AM81: 1133.678437 | AO81: 42.59 | AP81: 16.93 | AQ81: 5.26 | AR81: 27.440001 | AS81: 4.86 | AT81: 64.93 | AU81: 35.150002 | AV81: 30.16 | AW81: 35.299999 | AX81: 191.679993 | AY81: 1126.534328 | BA81: 2017-03-13 | BB81: 0.0794338756 | BC81: 0.1336784374 | BD81: 0.1265343275
B82: 2017-03-14 | C82: 326826.7797 | D82: 253836.0883 | E82: 293998.0212 | F82: 207820.4119 | G82: 170232.3818 | H82: 119099.3907 | I82: 97262.85602 | J82: 86198.15668 | K82: 71822.26671 | L82: 61363.1152 | M82: 1688459.468 | O82: 50839.25415 | P82: 6157.81955 | Q82: 2104.828992 | R82: 1404.138506 | S82: 339.787478 | T82: 5757.947853 | U82: 1519.796457 | V82: 1680.581068 | W82: 1422.373503 | X82: 7188.7116 | Y82: 78415.23916 | AA82: 2365.45 | AC82: 91.510002 | AD82: 25.32 | AE82: 58.759998 | AF82: 89.550003 | AG82: 61.439999 | AH82: 110.489998 | AI82: 247.720001 | AJ82: 46.189999 | AK82: 79.690002 | AL82: 126.220001 | AM82: 1132.60196 | AO82: 42.099998 | AP82: 16.77 | AQ82: 5.26 | AR82: 27.379999 | AS82: 4.74 | AT82: 63.830002 | AU82: 35.299999 | AV82: 33.18 | AW82: 35.150002 | AX82: 191.240005 | AY82: 1117.621083 | BA82: 2017-03-14 | BB82: 0.07578644812 | BC82: 0.1326019597 | BD82: 0.1176210833
B83: 2017-03-15 | C83: 327612.5068 | D83: 252432.5713 | E83: 293747.8527 | F83: 208679.078 | G83: 168214.4059 | H83: 120748.6085 | I83: 96893.78172 | J83: 85563.66062 | K83: 71407.68216 | L83: 60881.8168 | M83: 1686181.964 | O83: 51189.45329 | P83: 6223.914214 | Q83: 2140.843176 | R83: 1443.113863 | S83: 332.618966 | T83: 5849.057477 | U83: 1549.934064 | V83: 1691.217657 | W83: 1434.513248 | X83: 7184.2008 | Y83: 79038.86675 | AA83: 2385.26 | AC83: 91.730003 | AD83: 25.18 | AE83: 58.709999 | AF83: 89.919998 | AG83: 60.84 | AH83: 112.019997 | AI83: 246.779999 | AJ83: 45.849998 | AK83: 79.230003 | AL83: 125.230003 | AM83: 1131.283055 | AO83: 42.389999 | AP83: 16.950001 | AQ83: 5.35 | AR83: 28.139999 | AS83: 4.64 | AT83: 64.839996 | AU83: 36 | AV83: 33.389999 | AW83: 35.450001 | AX83: 191.119995 | AY83: 1126.472677 | BA83: 2017-03-15 | BB83: 0.08479586686 | BC83: 0.1312830552 | BD83: 0.126472677
B84: 2017-03-16 | C84: 327291.073 | D84: 252501.1978 | E84: 296799.9084 | F84: 208957.5643 | G84: 169071.5141 | H84: 121449.2565 | I84: 97459.17213 | J84: 86459.41977 | K84: 71894.36837 | L84: 61120.0352 | M84: 1693003.51 | O84: 51201.52912 | P84: 6319.384285 | Q84: 2196.86524 | R84: 1499.525563 | S84: 339.787478 | T84: 5862.58861 | U84: 1541.323319 | V84: 1683.620094 | W84: 1430.466666 | X84: 7171.4202 | Y84: 79246.51058 | AA84: 2381.38 | AC84: 91.639999 | AD84: 25.219999 | AE84: 59.32 | AF84: 90.040001 | AG84: 61.150002 | AH84: 112.669998 | AI84: 248.220001 | AJ84: 46.330002 | AK84: 79.769997 | AL84: 125.720001 | AM84: 1136.092682 | AO84: 42.400002 | AP84: 17.209999 | AQ84: 5.49 | AR84: 29.24 | AS84: 4.74 | AT84: 64.989998 | AU84: 35.799999 | AV84: 33.240002 | AW84: 35.349998 | AX84: 190.779999 | AY84: 1129.350244 | BA84: 2017-03-16 | BB84: 0.08303127601 | BC84: 0.1360926824 | BD84: 0.1293502442
B85: 2017-03-17 | C85: 323862.4454 | D85: 248896.8984 | E85: 293547.7179 | F85: 209421.7082 | G85: 166914.9192 | H85: 121621.7238 | I85: 97036.99969 | J85: 84014.74375 | K85: 71425.70757 | L85: 60453.996 | M85: 1677196.86 | O85: 52022.68572 | P85: 6345.087765 | Q85: 2144.844752 | R85: 1555.42443 | S85: 340.50433 | T85: 6043.003708 | U85: 1521.949143 | V85: 1676.529034 | W85: 1456.769448 | X85: 7143.9795 | Y85: 80250.77783 | AA85: 2378.25 | AC85: 90.68 | AD85: 24.860001 | AE85: 58.669998 | AF85: 90.239998 | AG85: 60.369999 | AH85: 112.830002 | AI85: 243.940002 | AJ85: 45.02 | AK85: 79.25 | AL85: 124.349998 | AM85: 1124.616577 | AO85: 43.080002 | AP85: 17.280001 | AQ85: 5.36 | AR85: 30.33 | AS85: 4.75 | AT85: 66.989998 | AU85: 35.349998 | AV85: 33.099998 | AW85: 36 | AX85: 190.050003 | AY85: 1143.671169 | BA85: 2017-03-17 | BB85: 0.08160777875 | BC85: 0.1246165769 | BD85: 0.1436711686
B86: 2017-03-20 | C86: 321540.9788 | D86: 244691.8824 | E86: 288344.2131 | F86: 206961.7457 | G86: 164758.6033 | H86: 121168.9973 | I86: 96320.9769 | J86: 83212.29285 | K86: 71065.19927 | L86: 60181.7464 | M86: 1658246.636 | O86: 52119.29238 | P86: 6330.400062 | Q86: 2156.84948 | R86: 1545.167757 | S86: 333.184782 | T86: 6211.691824 | U86: 1483.200792 | V86: 1670.957488 | W86: 1448.676284 | X86: 7135.7097 | Y86: 80435.13055 | AA86: 2373.47 | AC86: 90.029999 | AD86: 24.440001 | AE86: 57.630001 | AF86: 89.18 | AG86: 59.59 | AH86: 112.410004 | AI86: 242.139999 | AJ86: 44.59 | AK86: 78.849998 | AL86: 123.790001 | AM86: 1111.916962 | AO86: 43.16 | AP86: 17.24 | AQ86: 5.39 | AR86: 30.129999 | AS86: 4.63 | AT86: 68.860001 | AU86: 34.450001 | AV86: 32.990002 | AW86: 35.799999 | AX86: 189.830002 | AY86: 1146.275868 | BA86: 2017-03-20 | BB86: 0.0794338756 | BC86: 0.1119169618 | BD86: 0.1462758676
B87: 2017-03-21 | C87: 312112.253 | D87: 230474.9236 | E87: 279438.2145 | F87: 204362.5401 | G87: 160473.0548 | H87: 119336.5332 | I87: 92685.17229 | J87: 79610.59459 | K87: 69770.58455 | L87: 57707.192 | M87: 1605971.063 | O87: 51491.3491 | P87: 6062.349479 | Q87: 2088.822688 | R87: 1513.884905 | S87: 323.829702 | T87: 6061.045217 | U87: 1437.994382 | V87: 1644.112763 | W87: 1434.513248 | X87: 6932.7237 | Y87: 78990.62518 | AA87: 2344.02 | AC87: 87.389999 | AD87: 23.02 | AE87: 55.849998 | AF87: 88.059998 | AG87: 58.040001 | AH87: 110.709999 | AI87: 233 | AJ87: 42.66 | AK87: 77.529999 | AL87: 118.699997 | AM87: 1076.936086 | AO87: 42.639999 | AP87: 16.51 | AQ87: 5.22 | AR87: 29.52 | AS87: 4.5 | AT87: 67.190002 | AU87: 33.400002 | AV87: 32.459999 | AW87: 35.450001 | AX87: 184.429993 | AY87: 1125.792347 | BA87: 2017-03-21 | BB87: 0.06604026724 | BC87: 0.07693608571 | BD87: 0.1257923469
B88: 2017-03-22 | C88: 312612.2612 | D88: 229673.9682 | E88: 276836.4621 | F88: 205430.071 | G88: 159726.5399 | H88: 120134.194 | I88: 91917.43674 | J88: 78770.82039 | K88: 69896.57296 | L88: 57682.884 | M88: 1602681.211 | O88: 52155.51988 | P88: 6025.630221 | Q88: 2084.821112 | R88: 1467.729878 | S88: 322.390459 | T88: 6017.745594 | U88: 1407.856775 | V88: 1637.528208 | W88: 1416.30363 | X88: 7065.0405 | Y88: 79600.56625 | AA88: 2348.45 | AC88: 87.529999 | AD88: 22.940001 | AE88: 55.330002 | AF88: 88.519997 | AG88: 57.77 | AH88: 111.449997 | AI88: 231.070007 | AJ88: 42.209999 | AK88: 77.669998 | AL88: 118.650002 | AM88: 1074.712423 | AO88: 43.189999 | AP88: 16.41 | AQ88: 5.21 | AR88: 28.620001 | AS88: 4.48 | AT88: 66.709999 | AU88: 32.700001 | AV88: 32.330002 | AW88: 35 | AX88: 187.949997 | AY88: 1134.591231 | BA88: 2017-03-22 | BB88: 0.06805499338 | BC88: 0.07471242306 | BD88: 0.1345912311
B89: 2017-03-23 | C89: 312112.253 | D89: 230975.5207 | E89: 276436.1925 | F89: 206219.1156 | G89: 160500.7035 | H89: 120295.882 | I89: 92247.6028 | J89: 79479.96305 | K89: 70049.5589 | L89: 57989.1648 | M89: 1606305.957 | O89: 52095.14072 | P89: 6099.068737 | Q89: 2080.819536 | R89: 1475.422382 | S89: 343.259484 | T89: 6096.226161 | U89: 1405.704089 | V89: 1671.970496 | W89: 1420.350212 | X89: 7029.33 | Y89: 79717.29181 | AA89: 2345.96 | AC89: 87.389999 | AD89: 23.07 | AE89: 55.25 | AF89: 88.860001 | AG89: 58.049999 | AH89: 111.599998 | AI89: 231.899994 | AJ89: 42.59 | AK89: 77.839996 | AL89: 119.279999 | AM89: 1077.158815 | AO89: 43.139999 | AP89: 16.610001 | AQ89: 5.2 | AR89: 28.77 | AS89: 4.77 | AT89: 67.580002 | AU89: 32.650002 | AV89: 33.009998 | AW89: 35.099998 | AX89: 187 | AY89: 1136.196832 | BA89: 2017-03-23 | BB89: 0.06692256266 | BC89: 0.07715881547 | BD89: 0.1361968324
B90: 2017-03-24 | C90: 311755.1043 | D90: 231476.1179 | E90: 279338.1471 | F90: 206984.9529 | G90: 160556.0009 | H90: 120705.4917 | I90: 90859.31417 | J90: 79237.36161 | K90: 70373.52911 | L90: 58047.504 | M90: 1609333.524 | O90: 52083.06488 | P90: 6091.724886 | Q90: 2080.819536 | R90: 1479.525051 | S90: 332.465161 | T90: 6222.51673 | U90: 1389.868416 | V90: 1660.320899 | W90: 1428.443375 | X90: 7055.643 | Y90: 79824.39194 | AA90: 2343.98 | AC90: 87.290001 | AD90: 23.120001 | AE90: 55.830002 | AF90: 89.190002 | AG90: 58.07 | AH90: 111.980003 | AI90: 228.410004 | AJ90: 42.459999 | AK90: 78.199997 | AL90: 119.400002 | AM90: 1079.139159 | AO90: 43.130001 | AP90: 16.59 | AQ90: 5.2 | AR90: 28.85 | AS90: 4.62 | AT90: 68.980003 | AU90: 32 | AV90: 32.779999 | AW90: 35.299999 | AX90: 187.699997 | AY90: 1137.537314 | BA90: 2017-03-24 | BB90: 0.06602207558 | BC90: 0.07913915916 | BD90: 0.1375373139
B91: 2017-03-27 | C91: 311576.53 | D91: 230575.043 | E91: 277136.6643 | F91: 206427.9803 | G91: 161274.8671 | H91: 120662.3749 | I91: 89693.78819 | J91: 77595.1365 | K91: 69833.57875 | L91: 57464.112 | M91: 1602240.075 | O91: 52022.68572 | P91: 6334.071988 | Q91: 2104.828992 | R91: 1471.832547 | S91: 338.941755 | T91: 6350.61145 | U91: 1365.980053 | V91: 1667.918462 | W91: 1450.699575 | X91: 6953.7741 | Y91: 80061.34464 | AA91: 2341.59 | AC91: 87.239998 | AD91: 23.030001 | AE91: 55.389999 | AF91: 88.949997 | AG91: 58.330002 | AH91: 111.940002 | AI91: 225.479996 | AJ91: 41.580002 | AK91: 77.599998 | AL91: 118.199997 | AM91: 1074.384183 | AO91: 43.080002 | AP91: 17.25 | AQ91: 5.26 | AR91: 28.700001 | AS91: 4.71 | AT91: 70.400002 | AU91: 31.450001 | AV91: 32.93 | AW91: 35.849998 | AX91: 184.990005 | AY91: 1140.766592 | BA91: 2017-03-27 | BB91: 0.064935124 | BC91: 0.07438418326 | BD91: 0.1407665924
B92: 2017-03-28 | C92: 316433.7524 | D92: 235080.4173 | E92: 279988.5852 | F92: 206822.5026 | G92: 164288.5754 | H92: 121233.6725 | I92: 91225.28138 | J92: 79293.34656 | K92: 70769.4927 | L92: 58470.4632 | M92: 1623606.089 | O92: 52107.21655 | P92: 6326.728136 | Q92: 2180.858936 | R92: 1490.294558 | S92: 344.063042 | T92: 6528.320321 | U92: 1376.8384 | V92: 1673.490009 | W92: 1438.55983 | X92: 6988.3569 | Y92: 80454.72668 | AA92: 2358.57 | AC92: 88.599998 | AD92: 23.48 | AE92: 55.959999 | AF92: 89.120003 | AG92: 59.419998 | AH92: 112.470001 | AI92: 229.330002 | AJ92: 42.490002 | AK92: 78.639999 | AL92: 120.269997 | AM92: 1088.729626 | AO92: 43.150002 | AP92: 17.23 | AQ92: 5.45 | AR92: 29.059999 | AS92: 4.78 | AT92: 72.370003 | AU92: 31.700001 | AV92: 33.040001 | AW92: 35.549999 | AX92: 185.910004 | AY92: 1146.347738 | BA92: 2017-03-28 | BB92: 0.07265748291 | BC92: 0.08872962599 | BD92: 0.1463477379
B93: 2017-03-29 | C93: 315255.1616 | D93: 233778.8647 | E93: 278537.6079 | F93: 206961.7457 | G93: 164205.6293 | H93: 120791.7253 | I93: 90875.22579 | J93: 79871.85768 | K93: 70418.52497 | L93: 58018.3344 | M93: 1618714.677 | O93: 52215.89904 | P93: 6323.05621 | Q93: 2180.858936 | R93: 1504.6539 | S93: 345.502637 | T93: 6559.892963 | U93: 1376.8384 | V93: 1661.840411 | W93: 1430.466666 | X93: 6958.2849 | Y93: 80557.29406 | AA93: 2361.13 | AC93: 88.269997 | AD93: 23.35 | AE93: 55.669998 | AF93: 89.18 | AG93: 59.389999 | AH93: 112.059998 | AI93: 228.449997 | AJ93: 42.799999 | AK93: 78.25 | AL93: 119.339996 | AM93: 1085.453708 | AO93: 43.240002 | AP93: 17.219999 | AQ93: 5.45 | AR93: 29.34 | AS93: 4.8 | AT93: 72.720001 | AU93: 31.700001 | AV93: 32.810001 | AW93: 35.349998 | AX93: 185.110001 | AY93: 1147.80794 | BA93: 2017-03-29 | BB93: 0.07382174904 | BC93: 0.08545370842 | BD93: 0.1478079404
B94: 2017-03-30 | C94: 317969.4918 | D94: 238985.075 | E94: 281389.5288 | F94: 206567.2235 | G94: 167302.2837 | H94: 121449.2565 | I94: 91977.10531 | J94: 81047.54156 | K94: 71282.44553 | L94: 59083.0248 | M94: 1637052.976 | O94: 52578.17401 | P94: 6359.775468 | Q94: 2188.862088 | R94: 1509.269403 | S94: 353.420406 | T94: 6228.831258 | U94: 1379.010069 | V94: 1686.152615 | W94: 1424.396794 | X94: 6989.4846 | Y94: 80697.37671 | AA94: 2368.06 | AC94: 89.029999 | AD94: 23.870001 | AE94: 56.240002 | AF94: 89.010002 | AG94: 60.509998 | AH94: 112.669998 | AI94: 231.220001 | AJ94: 43.43 | AK94: 79.209999 | AL94: 121.529999 | AM94: 1097.774215 | AO94: 43.540001 | AP94: 17.32 | AQ94: 5.47 | AR94: 29.43 | AS94: 4.91 | AT94: 69.050003 | AU94: 31.75 | AV94: 33.290001 | AW94: 35.200001 | AX94: 185.940002 | AY94: 1149.849158 | BA94: 2017-03-30 | BB94: 0.07697345382 | BC94: 0.0977742147 | BD94: 0.1498491584
B95: 2017-03-31 | C95: 313719.4222 | D95: 236181.731 | E95: 278487.5742 | F95: 206242.3228 | G95: 165394.5234 | H95: 121233.6725 | I95: 91380.41965 | J95: 79946.50427 | K95: 71192.45381 | L95: 58455.8784 | M95: 1622234.502 | O95: 51950.23073 | P95: 6345.087765 | Q95: 2196.86524 | R95: 1526.192913 | S95: 362.777769 | T95: 6142.232011 | U95: 1402.898432 | V95: 1689.698145 | W95: 1410.233757 | X95: 7047.7491 | Y95: 80073.96586 | AA95: 2362.72 | AC95: 87.839996 | AD95: 23.59 | AE95: 55.66 | AF95: 88.870003 | AG95: 59.82 | AH95: 112.470001 | AI95: 229.720001 | AJ95: 42.84 | AK95: 79.110001 | AL95: 120.239998 | AM95: 1087.851075 | AO95: 43.02 | AP95: 17.280001 | AQ95: 5.49 | AR95: 29.76 | AS95: 5.04 | AT95: 68.089996 | AU95: 32.299999 | AV95: 33.360001 | AW95: 34.849998 | AX95: 187.490005 | AY95: 1140.927393 | BA95: 2017-03-31 | BB95: 0.07454486745 | BC95: 0.08785107477 | BD95: 0.1409273927
B96: 2017-04-03 | C96: 312576.5464 | D96: 236181.731 | E96: 277637.0013 | F96: 207379.4752 | G96: 165007.4416 | H96: 120985.7509 | I96: 91078.09891 | J96: 79703.90284 | K96: 70724.49683 | L96: 58261.4144 | M96: 1619535.859 | O96: 51181.25013 | P96: 6253.28962 | Q96: 2116.83372 | R96: 1509.782236 | S96: 341.183854 | T96: 6245.068617 | U96: 1411.58511 | V96: 1651.292852 | W96: 1416.30363 | X96: 7034.9685 | Y96: 79161.55827 | AA96: 2358.84 | AC96: 87.519997 | AD96: 23.59 | AE96: 55.490002 | AF96: 89.360001 | AG96: 59.68 | AH96: 112.239998 | AI96: 228.960007 | AJ96: 42.709999 | AK96: 78.589996 | AL96: 119.839996 | AM96: 1086.037944 | AO96: 42.630001 | AP96: 17.030001 | AQ96: 5.29 | AR96: 29.440001 | AS96: 4.74 | AT96: 69.230003 | AU96: 32.5 | AV96: 33.32 | AW96: 35 | AX96: 187.149994 | AY96: 1132.703411 | BA96: 2017-04-03 | BB96: 0.0727802766 | BC96: 0.08603794385 | BD96: 0.132703411
B97: 2017-04-04 | C97: 311826.5341 | D97: 234679.9396 | E97: 276186.024 | F97: 206033.458 | G97: 165007.4416 | H97: 120824.0629 | I97: 91197.43604 | J97: 79330.66986 | K97: 70427.52414 | L97: 57925.964 | M97: 1613439.054 | O97: 51289.30344 | P97: 6256.961546 | Q97: 2092.824264 | R97: 1526.192913 | S97: 339.024462 | T97: 6181.923333 | U97: 1409.413441 | V97: 1646.336991 | W97: 1446.652994 | X97: 6986.8533 | Y97: 79175.48668 | AA97: 2360.16 | AC97: 87.309998 | AD97: 23.440001 | AE97: 55.200001 | AF97: 88.779999 | AG97: 59.68 | AH97: 112.089996 | AI97: 229.259995 | AJ97: 42.509998 | AK97: 78.260002 | AL97: 119.150002 | AM97: 1081.972551 | AO97: 42.720001 | AP97: 17.040001 | AQ97: 5.23 | AR97: 29.76 | AS97: 4.71 | AT97: 68.529999 | AU97: 32.450001 | AV97: 33.220001 | AW97: 35.75 | AX97: 185.869995 | AY97: 1132.913705 | BA97: 2017-04-04 | BB97: 0.07338060133 | BC97: 0.08197255142 | BD97: 0.1329137052
B98: 2017-04-05 | C98: 306611.0532 | D98: 231976.715 | E98: 275085.2826 | F98: 206613.6379 | G98: 164758.6033 | H98: 120802.5045 | I98: 90560.97134 | J98: 77893.72288 | K98: 69977.56552 | L98: 57507.8664 | M98: 1601787.923 | O98: 51493.40413 | P98: 6150.475698 | Q98: 2096.82584 | R98: 1522.603077 | S98: 332.546288 | T98: 6124.190502 | U98: 1426.786796 | V98: 1623.540031 | W98: 1454.746157 | X98: 6769.959 | Y98: 78995.07752 | AA98: 2352.95 | AC98: 86.190002 | AD98: 23.17 | AE98: 54.98 | AF98: 89.029999 | AG98: 59.59 | AH98: 112.07 | AI98: 227.660004 | AJ98: 41.740002 | AK98: 77.760002 | AL98: 118.290001 | AM98: 1074.995087 | AO98: 42.889999 | AP98: 16.75 | AQ98: 5.24 | AR98: 29.690001 | AS98: 4.62 | AT98: 67.889999 | AU98: 32.849998 | AV98: 32.759998 | AW98: 35.950001 | AX98: 180.100006 | AY98: 1130.410526 | BA98: 2017-04-05 | BB98: 0.07010155493 | BC98: 0.07499508667 | BD98: 0.130410526
B99: 2017-04-06 | C99: 307642.695 | D99: 232877.7899 | E99: 277036.5969 | F99: 206752.881 | G99: 165588.0643 | H99: 121190.5557 | I99: 90950.80597 | J99: 78546.8806 | K99: 70121.55228 | L99: 57979.4416 | M99: 1608687.263 | O99: 51505.41006 | P99: 6242.273843 | Q99: 2136.8416 | R99: 1537.988086 | S99: 333.266085 | T99: 6181.021257 | U99: 1465.876845 | V99: 1633.947339 | W99: 1460.81603 | X99: 6824.0886 | Y99: 79321.52974 | AA99: 2357.49 | AC99: 86.480003 | AD99: 23.26 | AE99: 55.369999 | AF99: 89.089996 | AG99: 59.889999 | AH99: 112.43 | AI99: 228.639999 | AJ99: 42.09 | AK99: 77.919998 | AL99: 119.260002 | AM99: 1079.622112 | AO99: 42.900002 | AP99: 17 | AQ99: 5.34 | AR99: 29.99 | AS99: 4.63 | AT99: 68.519997 | AU99: 33.75 | AV99: 32.970001 | AW99: 36.099998 | AX99: 181.539993 | AY99: 1135.00717 | BA99: 2017-04-06 | BB99: 0.07216630814 | BC99: 0.0796221122 | BD99: 0.1350071697
B100: 2017-04-07 | C100: 306575.4794 | D100: 231876.5956 | E100: 274384.8108 | F100: 205940.6293 | G100: 164316.2241 | H100: 120985.7509 | I100: 90648.48524 | J100: 78285.61751 | K100: 69986.56469 | L100: 57935.6872 | M100: 1600935.845 | O100: 51673.49298 | P100: 6128.444144 | Q100: 2140.843176 | R100: 1540.552255 | S100: 318.150345 | T100: 6198.160692 | U100: 1461.533506 | V100: 1608.672448 | W100: 1468.909193 | X100: 6868.8207 | Y100: 79407.57944 | AA100: 2355.54 | AC100: 86.18 | AD100: 23.16 | AE100: 54.84 | AF100: 88.739998 | AG100: 59.43 | AH100: 112.239998 | AI100: 227.880005 | AJ100: 41.950001 | AK100: 77.769997 | AL100: 119.169998 | AM100: 1074.420513 | AO100: 43.040001 | AP100: 16.690001 | AQ100: 5.35 | AR100: 30.040001 | AS100: 4.42 | AT100: 68.709999 | AU100: 33.650002 | AV100: 32.459999 | AW100: 36.299999 | AX100: 182.729996 | AY100: 1136.311103 | BA100: 2017-04-07 | BB100: 0.0712794648 | BC100: 0.07442051278 | BD100: 0.136311103
B101: 2017-04-10 | C101: 305508.2637 | D101: 230474.9236 | E101: 272883.7998 | F101: 206219.1156 | G101: 163901.4936 | H101: 121071.9845 | I101: 91050.25358 | J101: 78210.97092 | K101: 69734.58786 | L101: 57546.7592 | M101: 1596602.152 | O101: 51685.4989 | P101: 6238.601917 | Q101: 2148.846328 | R101: 1538.50092 | S101: 324.628519 | T101: 6249.578995 | U101: 1465.876845 | V101: 1629.487064 | W101: 1452.722866 | X101: 6888.7434 | Y101: 79622.48576 | AA101: 2357.16 | AC101: 85.879997 | AD101: 23.02 | AE101: 54.540001 | AF101: 88.860001 | AG101: 59.279999 | AH101: 112.32 | AI101: 228.889999 | AJ101: 41.91 | AK101: 77.489998 | AL101: 118.370003 | AM101: 1071.534763 | AO101: 43.049999 | AP101: 16.99 | AQ101: 5.37 | AR101: 30 | AS101: 4.51 | AT101: 69.279999 | AU101: 33.75 | AV101: 32.880001 | AW101: 35.900002 | AX101: 183.259995 | AY101: 1139.322826 | BA101: 2017-04-10 | BB101: 0.07201622696 | BC101: 0.07153476261 | BD101: 0.1393228264
B102: 2017-04-11 | C102: 304974.6559 | D102: 229473.7293 | E102: 270982.5192 | F102: 206195.9084 | G102: 163210.2761 | H102: 120845.6213 | I102: 90592.79458 | J102: 77595.1365 | K102: 69527.60689 | L102: 57381.4648 | M102: 1590779.713 | O102: 51253.28567 | P102: 6212.898437 | Q102: 2220.874697 | R102: 1615.425966 | S102: 331.106694 | T102: 6229.733334 | U102: 1494.108547 | V102: 1643.859061 | W102: 1454.746157 | X102: 6876.7146 | Y102: 79332.75316 | AA102: 2353.78 | AC102: 85.730003 | AD102: 22.92 | AE102: 54.16 | AF102: 88.849998 | AG102: 59.029999 | AH102: 112.110001 | AI102: 227.740005 | AJ102: 41.580002 | AK102: 77.260002 | AL102: 118.029999 | AM102: 1067.62502 | AO102: 42.689999 | AP102: 16.92 | AQ102: 5.55 | AR102: 31.5 | AS102: 4.6 | AT102: 69.059998 | AU102: 34.400002 | AV102: 33.169998 | AW102: 35.950001 | AX102: 182.940002 | AY102: 1135.096515 | BA102: 2017-04-11 | BB102: 0.07047903184 | BC102: 0.06762501979 | BD102: 0.1350965153
B103: 2017-04-12 | C103: 303800.7187 | D103: 226770.5048 | E103: 265779.0144 | F103: 205801.3861 | G103: 161772.5437 | H103: 120155.7524 | I103: 89801.1916 | J103: 76643.3924 | K103: 69005.65488 | L103: 56394.56 | M103: 1575924.719 | O103: 51013.16721 | P103: 6352.431617 | Q103: 2208.869969 | R103: 1600.55379 | S103: 331.826491 | T103: 6246.872768 | U103: 1487.593539 | V103: 1631.469408 | W103: 1464.862612 | X103: 6797.0238 | Y103: 79134.6712 | AA103: 2344.93 | AC103: 85.400002 | AD103: 22.65 | AE103: 53.119999 | AF103: 88.68 | AG103: 58.509998 | AH103: 111.470001 | AI103: 225.75 | AJ103: 41.07 | AK103: 76.68 | AL103: 116 | AM103: 1057.667271 | AO103: 42.490002 | AP103: 17.299999 | AQ103: 5.52 | AR103: 31.209999 | AS103: 4.61 | AT103: 69.25 | AU103: 34.25 | AV103: 32.919998 | AW103: 36.200001 | AX103: 180.820007 | AY103: 1132.161203 | BA103: 2017-04-12 | BB103: 0.06645412746 | BC103: 0.0576672713 | BD103: 0.1321612034
B104: 2017-04-13 | C104: 299856.32 | D104: 223666.8025 | E104: 256582.3217 | F104: 206242.3228 | G104: 159801.532 | H104: 119886.2724 | I104: 88834.56084 | J104: 75934.24974 | K104: 68213.7277 | L104: 56163 | M104: 1555181.11 | O104: 51085.20275 | P104: 6212.898437 | Q104: 2184.860512 | R104: 1559.014266 | S104: 321.029533 | T104: 6404.74076 | U104: 1468.048514 | V104: 1625.404649 | W104: 1434.513248 | X104: 6693.6513 | Y104: 78989.36397 | AA104: 2328.95 | AC104: 84.400002 | AD104: 22.34 | AE104: 51.349998 | AF104: 88.870003 | AG104: 58.040001 | AH104: 111.220001 | AI104: 223.320007 | AJ104: 40.689999 | AK104: 75.800003 | AL104: 115.800003 | AM104: 1044.803008 | AO104: 42.549999 | AP104: 16.92 | AQ104: 5.46 | AR104: 30.4 | AS104: 4.46 | AT104: 70.629997 | AU104: 33.799999 | AV104: 32.77 | AW104: 35.450001 | AX104: 178.070007 | AY104: 1129.675288 | BA104: 2017-04-13 | BB104: 0.05918656 | BC104: 0.04480300761 | BD104: 0.1296752881
B105: 2017-04-17 | C105: 305043.408 | D105: 228372.4156 | E105: 263427.8481 | F105: 208423.7989 | G105: 162417.167 | H105: 121449.2565 | I105: 90004.06473 | J105: 77427.18166 | K105: 68996.65571 | L105: 57428.85 | M105: 1582990.646 | O105: 51768.67761 | P105: 6271.649249 | Q105: 2184.860512 | R105: 1608.759129 | S105: 313.111765 | T105: 6501.768548 | U105: 1455.018498 | V105: 1646.732815 | W105: 1464.862612 | X105: 6867.693 | Y105: 80083.13374 | AA105: 2349.01 | AC105: 85.860001 | AD105: 22.809999 | AE105: 52.720001 | AF105: 89.809998 | AG105: 58.990002 | AH105: 112.669998 | AI105: 226.259995 | AJ105: 41.490002 | AK105: 76.669998 | AL105: 118.410004 | AM105: 1063.460571 | AO105: 43.099998 | AP105: 17.08 | AQ105: 5.46 | AR105: 31.370001 | AS105: 4.35 | AT105: 71.699997 | AU105: 33.5 | AV105: 33.200001 | AW105: 36.200001 | AX105: 182.699997 | AY105: 1144.991085 | BA105: 2017-04-17 | BB105: 0.0683096766 | BC105: 0.06346057073 | BD105: 0.1449910845
B106: 2017-04-18 | C106: 302556.448 | D106: 227371.2213 | E106: 262078.4885 | F106: 208238.1414 | G106: 160847.786 | H106: 121287.5685 | I106: 85759.64074 | J106: 76904.65549 | K106: 68204.72853 | L106: 56458.85 | M106: 1569707.528 | O106: 51756.66632 | P106: 6234.929991 | Q106: 2260.890457 | R106: 1644.657483 | S106: 315.990953 | T106: 6490.886927 | U106: 1465.876845 | V106: 1650.204842 | W106: 1477.002357 | X106: 6881.2254 | Y106: 80178.33158 | AA106: 2342.19 | AC106: 85.160004 | AD106: 22.709999 | AE106: 52.450001 | AF106: 89.730003 | AG106: 58.419998 | AH106: 112.519997 | AI106: 215.589996 | AJ106: 41.209999 | AK106: 75.790001 | AL106: 116.410004 | AM106: 1054.43044 | AO106: 43.09 | AP106: 16.98 | AQ106: 5.65 | AR106: 32.07 | AS106: 4.39 | AT106: 71.580002 | AU106: 33.75 | AV106: 33.27 | AW106: 36.5 | AX106: 183.059998 | AY106: 1146.34204 | BA106: 2017-04-18 | BB106: 0.06520799887 | BC106: 0.05443043968 | BD106: 0.1463420399
B107: 2017-04-19 | C107: 300069.488 | D107: 226813.0775 | E107: 260579.4695 | F107: 208284.5557 | G107: 158948.009 | H107: 121039.6469 | I107: 85162.95509 | J107: 77858.08 | K107: 67988.74839 | L107: 56492.8 | M107: 1563236.83 | O107: 52008.9035 | P107: 6315.712359 | Q107: 2288.901489 | R107: 1663.632328 | S107: 324.628519 | T107: 6587.007912 | U107: 1491.936878 | V107: 1658.636908 | W107: 1497.235266 | X107: 6878.5941 | Y107: 80715.18925 | AA107: 2338.17 | AC107: 84.459999 | AD107: 22.74 | AE107: 52.150002 | AF107: 89.75 | AG107: 57.73 | AH107: 112.290001 | AI107: 214.089996 | AJ107: 42.040001 | AK107: 75.550003 | AL107: 116.480003 | AM107: 1051.023593 | AO107: 43.299999 | AP107: 17.200001 | AQ107: 5.72 | AR107: 32.439999 | AS107: 4.51 | AT107: 72.639999 | AU107: 34.349998 | AV107: 33.439999 | AW107: 37 | AX107: 182.990005 | AY107: 1153.962937 | BA107: 2017-04-19 | BB107: 0.06337973722 | BC107: 0.05102359274 | BD107: 0.1539629372
B108: 2017-04-20 | C108: 303942.04 | D108: 230104.5601 | E108: 267325.055 | F108: 210267.8735 | G108: 160820.253 | H108: 123518.8631 | I108: 86742.18313 | J108: 78710 | K108: 71617.9 | L108: 57632.55 | M108: 1590681.278 | O108: 52477.34397 | P108: 6502.980574 | Q108: 2320.914097 | R108: 1692.863846 | S108: 331.106694 | T108: 6897.134111 | U108: 1502.795225 | V108: 1689.389147 | W108: 1509.375011 | X108: 6965.427 | Y108: 81889.32967 | AA108: 2355.84 | AC108: 85.550003 | AD108: 23.07 | AE108: 53.5 | AF108: 91.150002 | AG108: 58.41 | AH108: 114.589996 | AI108: 218.059998 | AJ108: 42.5 | AK108: 80.019997 | AL108: 118.830002 | AM108: 1070.581056 | AO108: 43.689999 | AP108: 17.709999 | AQ108: 5.8 | AR108: 33.009998 | AS108: 4.6 | AT108: 76.059998 | AU108: 34.599998 | AV108: 34.060001 | AW108: 37.299999 | AX108: 185.300003 | AY108: 1170.616849 | BA108: 2017-04-20 | BB108: 0.07141590224 | BC108: 0.07058105641 | BD108: 0.1706168492
B109: 2017-04-21 | C109: 300282.656 | D109: 226513.8518 | E109: 264826.69 | F109: 210161.5733 | G109: 158920.476 | H109: 123173.9287 | I109: 86264.8346 | J109: 77413.6 | K109: 71233.05 | L109: 57312.45 | M109: 1576103.11 | O109: 52621.4795 | P109: 6422.198207 | Q109: 2288.901489 | R109: 1681.581506 | S109: 327.507708 | T109: 6926.151767 | U109: 1481.078531 | V109: 1672.029012 | W109: 1505.32843 | X109: 6939.114 | Y109: 81865.37015 | AA109: 2348.69 | AC109: 84.519997 | AD109: 22.709999 | AE109: 53 | AF109: 91.150002 | AG109: 57.720001 | AH109: 114.269997 | AI109: 216.860001 | AJ109: 41.799999 | AK109: 79.589996 | AL109: 118.169998 | AM109: 1060.848026 | AO109: 43.810001 | AP109: 17.49 | AQ109: 5.72 | AR109: 32.790001 | AS109: 4.55 | AT109: 76.379997 | AU109: 34.099998 | AV109: 33.709999 | AW109: 37.200001 | AX109: 184.600006 | AY109: 1170.33597 | BA109: 2017-04-21 | BB109: 0.06816414333 | BC109: 0.0608480255 | BD109: 0.1703359697
B110: 2017-04-24 | C110: 310870 | D110: 235690.1065 | E110: 268074.5645 | F110: 211775.5404 | G110: 163656.152 | H110: 124715.3544 | I110: 88794.78179 | J110: 80673.12 | K110: 72002.75 | L110: 58617.1 | M110: 1614869.47 | O110: 53173.99902 | P110: 6554.387535 | Q110: 2340.921978 | R110: 1662.093827 | S110: 331.106694 | T110: 6876.27767 | U110: 1511.481902 | V110: 1701.789244 | W110: 1521.514757 | X110: 6977.0799 | Y110: 82650.65253 | AA110: 2374.15 | AC110: 87.5 | AD110: 23.629999 | AE110: 53.650002 | AF110: 91.849998 | AG110: 59.439999 | AH110: 115.699997 | AI110: 223.220001 | AJ110: 43.560001 | AK110: 80.449997 | AL110: 120.860001 | AM110: 1086.959536 | AO110: 44.27 | AP110: 17.85 | AQ110: 5.85 | AR110: 32.41 | AS110: 4.6 | AT110: 75.830002 | AU110: 34.799999 | AV110: 34.310001 | AW110: 37.599998 | AX110: 185.610001 | AY110: 1181.568856 | BA110: 2017-04-24 | BB110: 0.07974313379 | BC110: 0.08695953593 | BD110: 0.1815688559
B111: 2017-04-25 | C111: 313570.128 | D111: 239181.0729 | E111: 272621.5888 | F111: 212375.0139 | G111: 165776.193 | H111: 125178.8601 | I111: 90151.24719 | J111: 81988.04 | K111: 72163.85 | L111: 58738.35 | M111: 1631744.344 | O111: 53702.49597 | P111: 6690.248789 | Q111: 2379.766776 | R111: 1674.401835 | S111: 340.464057 | T111: 6950.635414 | U111: 1522.340249 | V111: 1700.301232 | W111: 1559.957284 | X111: 6941.7453 | Y111: 83462.3569 | AA111: 2388.61 | AC111: 88.260002 | AD111: 23.98 | AE111: 54.560001 | AF111: 92.110001 | AG111: 60.209999 | AH111: 116.129997 | AI111: 226.630005 | AJ111: 44.27 | AK111: 80.629997 | AL111: 121.110001 | AM111: 1098.326656 | AO111: 44.709999 | AP111: 18.219999 | AQ111: 5.9 | AR111: 32.650002 | AS111: 4.73 | AT111: 76.650002 | AU111: 35.049999 | AV111: 34.279999 | AW111: 38.549999 | AX111: 184.669998 | AY111: 1192.856493 | BA111: 2017-04-25 | BB111: 0.08631941823 | BC111: 0.09832665595 | BD111: 0.1928564934
B112: 2017-04-26 | C112: 314174.104 | D112: 238283.3958 | E112: 272521.6542 | F112: 211706.3403 | G112: 165473.33 | H112: 125221.9769 | I112: 89980.1973 | J112: 82173.24 | K112: 72065.4 | L112: 59170 | M112: 1630769.638 | O112: 53342.15714 | P112: 6638.841828 | Q112: 2432.202315 | R112: 1674.914668 | S112: 349.82142 | T112: 6721.214571 | U112: 1522.340249 | V112: 1731.549475 | W112: 1539.724375 | X112: 7313.1345 | Y112: 83265.90054 | AA112: 2387.45 | AC112: 88.43 | AD112: 23.889999 | AE112: 54.540001 | AF112: 91.82 | AG112: 60.099998 | AH112: 116.169998 | AI112: 226.199997 | AJ112: 44.369999 | AK112: 80.519997 | AL112: 122 | AM112: 1097.656528 | AO112: 44.41 | AP112: 18.08 | AQ112: 6.03 | AR112: 32.66 | AS112: 4.86 | AT112: 74.120003 | AU112: 35.049999 | AV112: 34.91 | AW112: 38.049999 | AX112: 194.550003 | AY112: 1190.096131 | BA112: 2017-04-26 | BB112: 0.08579186014 | BC112: 0.09765652832 | BD112: 0.1900961306
B113: 2017-04-27 | C113: 311260.808 | D113: 235889.5903 | E113: 272021.9812 | F113: 211199.0935 | G113: 163518.487 | H113: 126224.4425 | I113: 89825.05903 | J113: 80636.08 | K113: 71797.28201 | L113: 58694.7 | M113: 1621067.524 | O113: 56639.33729 | P113: 6693.920715 | Q113: 2416.068303 | R113: 1692.351012 | S113: 342.623448 | T113: 6627.813991 | U113: 1522.340249 | V113: 1711.709321 | W113: 1549.840829 | X113: 7351.233408 | Y113: 86547.23856 | AA113: 2388.77 | AC113: 87.610001 | AD113: 23.65 | AE113: 54.439999 | AF113: 91.599998 | AG113: 59.389999 | AH113: 117.099998 | AI113: 225.809998 | AJ113: 43.540001 | AK113: 80.330002 | AL113: 121.019997 | AM113: 1091.188098 | AO113: 47.150002 | AP113: 18.23 | AQ113: 5.99 | AR113: 33 | AS113: 4.76 | AT113: 73.089996 | AU113: 35.049999 | AV113: 34.509998 | AW113: 38.299999 | AX113: 195.880005 | AY113: 1237.440114 | BA113: 2017-04-27 | BB113: 0.08639218486 | BC113: 0.09118809805 | BD113: 0.2374401136
B114: 2017-04-28 | C114: 309093.6 | D114: 232797.5914 | E114: 269023.9432 | F114: 210322.9401 | G114: 162757.36 | H114: 125383.6649 | I114: 89025.50025 | J114: 80321.24 | K114: 70832.00049 | L114: 58078.75 | M114: 1607636.59 | O114: 57324.05462 | P114: 6818.687618 | Q114: 2359.599261 | R114: 1685.684175 | S114: 341.903651 | T114: 6887.159291 | U114: 1511.481902 | V114: 1700.797236 | W114: 1561.96885 | X114: 7225.13506 | Y114: 87416.47166 | AA114: 2384.2 | AC114: 87 | AD114: 23.34 | AE114: 53.84 | AF114: 91.220001 | AG114: 59.119999 | AH114: 116.32 | AI114: 223.800003 | AJ114: 43.369999 | AK114: 79.25 | AL114: 119.75 | AM114: 1082.167316 | AO114: 47.720001 | AP114: 18.24 | AQ114: 5.85 | AR114: 32.869999 | AS114: 4.75 | AT114: 75.949997 | AU114: 34.799999 | AV114: 34.290001 | AW114: 38.150002 | AX114: 192.520004 | AY114: 1247.899412 | BA114: 2017-04-28 | BB114: 0.08431378791 | BC114: 0.08216731627 | BD114: 0.2478994124
B115: 2017-05-01 | C115: 309306.768 | D115: 235490.6227 | E115: 272121.9158 | F115: 210415.1668 | G115: 163693.38 | H115: 125437.5609 | I115: 89443.18021 | J115: 81006.48 | K115: 70814.12491 | L115: 58757.75 | M115: 1616486.949 | O115: 57107.82809 | P115: 6957.005294 | Q115: 2416.068303 | R115: 1662.606661 | S115: 344.78284 | T115: 7005.950321 | U115: 1544.807714 | V115: 1709.229302 | W115: 1582.440264 | X115: 7210.123352 | Y115: 87540.84214 | AA115: 2388.33 | AC115: 87.059998 | AD115: 23.610001 | AE115: 54.459999 | AF115: 91.260002 | AG115: 59.459999 | AH115: 116.370003 | AI115: 224.850006 | AJ115: 43.740002 | AK115: 79.230003 | AL115: 121.150002 | AM115: 1088.115187 | AO115: 47.540001 | AP115: 18.610001 | AQ115: 5.99 | AR115: 32.419998 | AS115: 4.79 | AT115: 77.260002 | AU115: 35.400002 | AV115: 34.459999 | AW115: 38.650002 | AX115: 192.119995 | AY115: 1249.403706 | BA115: 2017-05-01 | BB115: 0.08619207662 | BC115: 0.08811518708 | BD115: 0.2494037063
B116: 2017-05-02 | C116: 307317.2 | D116: 234168.1812 | E116: 272521.6542 | F116: 213366.4205 | G116: 164381.63 | H116: 126610.5151 | I116: 89550.58363 | J116: 80284.2 | K116: 71091.19645 | L116: 58520.1 | M116: 1617811.681 | O116: 58921.72839 | P116: 7031.771606 | Q116: 2359.599261 | R116: 1673.376167 | S116: 336.865071 | T116: 7586.45347 | U116: 1533.898055 | V116: 1711.709321 | W116: 1580.393122 | X116: 7107.0561 | Y116: 89842.85057 | AA116: 2391.17 | AC116: 86.5 | AD116: 23.530001 | AE116: 54.540001 | AF116: 92.540001 | AG116: 59.709999 | AH116: 118.120003 | AI116: 225.119995 | AJ116: 43.349998 | AK116: 79.540001 | AL116: 120.660004 | AM116: 1089.860355 | AO116: 49.049999 | AP116: 18.809999 | AQ116: 5.85 | AR116: 32.630001 | AS116: 4.68 | AT116: 82.980003 | AU116: 35.150002 | AV116: 34.509998 | AW116: 38.599998 | AX116: 189.369995 | AY116: 1281.456768 | BA116: 2017-05-02 | BB116: 0.08748368436 | BC116: 0.08986035496 | BD116: 0.2814567679
B117: 2017-05-03 | C117: 309093.6 | D117: 236556.6369 | E117: 274070.6405 | F117: 213135.8538 | G117: 165840.72 | H117: 125763.4493 | I117: 90023.95425 | J117: 80524.96 | K117: 70456.61323 | L117: 59248.89244 | M117: 1624715.32 | O117: 58885.69064 | P117: 6833.64088 | Q117: 2436.235818 | R117: 1643.118983 | S117: 332.546288 | T117: 7471.257864 | U117: 1527.35226 | V117: 1699.805228 | W117: 1596.770253 | X117: 7012.1052 | Y117: 89438.52341 | AA117: 2388.13 | AC117: 87 | AD117: 23.77 | AE117: 54.849998 | AF117: 92.440002 | AG117: 60.240002 | AH117: 117.330002 | AI117: 226.309998 | AJ117: 43.48 | AK117: 78.830002 | AL117: 122.440002 | AM117: 1094.598184 | AO117: 49.02 | AP117: 18.280001 | AQ117: 6.04 | AR117: 32.040001 | AS117: 4.62 | AT117: 81.720001 | AU117: 35 | AV117: 34.27 | AW117: 39 | AX117: 186.839996 | AY117: 1275.850407 | BA117: 2017-05-03 | BB117: 0.08610111833 | BC117: 0.09459818427 | BD117: 0.2758504072
B118: 2017-05-04 | C118: 309448.88 | D118: 237352.7889 | E118: 275719.5614 | F118: 213550.8738 | G118: 165773.7846 | H118: 126395.8573 | I118: 89455.82026 | J118: 80058.5708 | K118: 70009.72364 | L118: 59737.63289 | M118: 1627503.494 | O118: 58753.55221 | P118: 7444.670277 | Q118: 2456.403333 | R118: 1651.837154 | S118: 331.826491 | T118: 7437.430583 | U118: 1540.443851 | V118: 1719.149379 | W118: 1564.302491 | X118: 6999.345 | Y118: 89898.96077 | AA118: 2389.52 | AC118: 87.099998 | AD118: 23.85 | AE118: 55.18 | AF118: 92.620003 | AG118: 60.209999 | AH118: 117.919998 | AI118: 226.589996 | AJ118: 43.279999 | AK118: 78.330002 | AL118: 123.449997 | AM118: 1096.971189 | AO118: 48.91 | AP118: 19.9 | AQ118: 6.09 | AR118: 32.209999 | AS118: 4.61 | AT118: 81.349998 | AU118: 35.299999 | AV118: 34.66 | AW118: 38.200001 | AX118: 186.5 | AY118: 1281.870999 | BA118: 2017-05-04 | BB118: 0.08673327846 | BC118: 0.09697118882 | BD118: 0.2818709993
B119: 2017-05-05 | C119: 309093.6 | D119: 236258.08 | E119: 275402.1953 | F119: 212328.8703 | G119: 165856.3824 | H119: 125945.6685 | I119: 89566.3619 | J119: 79688.61438 | K119: 70000.78585 | L119: 59577.94542 | M119: 1623718.504 | O119: 59222.04302 | P119: 7399.777793 | Q119: 2322.194414 | R119: 1685.171341 | S119: 333.985882 | T119: 7819.587435 | U119: 1549.171578 | V119: 1704.765267 | W119: 1572.492557 | X119: 7049.6352 | Y119: 90658.82448 | AA119: 2399.29 | AC119: 87 | AD119: 23.74 | AE119: 55.110001 | AF119: 92.089996 | AG119: 60.240002 | AH119: 117.5 | AI119: 226.869995 | AJ119: 43.080002 | AK119: 78.32 | AL119: 123.120003 | AM119: 1094.411505 | AO119: 49.299999 | AP119: 19.780001 | AQ119: 5.75 | AR119: 32.860001 | AS119: 4.64 | AT119: 85.529999 | AU119: 35.5 | AV119: 34.369999 | AW119: 38.400002 | AX119: 187.839996 | AY119: 1292.666812 | BA119: 2017-05-05 | BB119: 0.09117659097 | BC119: 0.09441150473 | BD119: 0.2926668115
B120: 2017-05-08 | C120: 309407.6858 | D120: 238447.4977 | E120: 275052.3831 | F120: 211936.907 | G120: 166572.23 | H120: 124991.6971 | I120: 88839.94542 | J120: 79577.62745 | K120: 69857.78118 | L120: 59848.752 | M120: 1624532.507 | O120: 59065.87941 | P120: 7317.474905 | Q120: 2261.615429 | R120: 1602.605125 | S120: 310.952373 | T120: 7933.86879 | U120: 1553.535442 | V120: 1707.245286 | W120: 1560.207459 | X120: 6980.9553 | Y120: 90294.33952 | AA120: 2399.38 | AC120: 87.099998 | AD120: 23.959999 | AE120: 55.040001 | AF120: 91.919998 | AG120: 60.5 | AH120: 116.610001 | AI120: 225.029999 | AJ120: 43.02 | AK120: 78.160004 | AL120: 123.68 | AM120: 1094.972384 | AO120: 49.169998 | AP120: 19.559999 | AQ120: 5.6 | AR120: 31.25 | AS120: 4.32 | AT120: 86.779999 | AU120: 35.599998 | AV120: 34.419998 | AW120: 38.099998 | AX120: 186.009995 | AY120: 1287.524484 | BA120: 2017-05-08 | BB120: 0.09121752221 | BC120: 0.09497238374 | BD120: 0.2875244837
B121: 2017-05-09 | C121: 308164.3713 | D121: 238646.5357 | E121: 273253.3486 | F121: 212121.3603 | G121: 165828.8498 | H121: 124777.3215 | I121: 88338.56014 | J121: 79226.16884 | K121: 70108.03935 | L121: 59016.444 | M121: 1619481 | O121: 59125.94234 | P121: 7407.259873 | Q121: 2378.734799 | R121: 1601.066624 | S121: 294.213487 | T121: 8150.546239 | U121: 1568.808964 | V121: 1710.717313 | W121: 1568.397524 | X121: 7000.8462 | Y121: 90806.53336 | AA121: 2396.92 | AC121: 86.75 | AD121: 23.98 | AE121: 54.68 | AF121: 92 | AG121: 60.23 | AH121: 116.410004 | AI121: 223.759995 | AJ121: 42.830002 | AK121: 78.440002 | AL121: 121.959999 | AM121: 1091.572793 | AO121: 49.220001 | AP121: 19.799999 | AQ121: 5.89 | AR121: 31.219999 | AS121: 4.06 | AT121: 89.150002 | AU121: 35.950001 | AV121: 34.490002 | AW121: 38.299999 | AX121: 186.539993 | AY121: 1294.644962 | BA121: 2017-05-09 | BB121: 0.09009873522 | BC121: 0.09157279289 | BD121: 0.294644962
B122: 2017-05-10 | C122: 310579.9537 | D122: 240338.3585 | E122: 273453.3504 | F122: 212697.7771 | G122: 166214.3062 | H122: 125034.5722 | I122: 88780.72669 | J122: 79725.61002 | K122: 70295.73298 | L122: 59253.555 | M122: 1626373.943 | O122: 59810.65967 | P122: 7463.300067 | Q122: 2398.927794 | R122: 1641.067648 | S122: 289.2095 | T122: 8508.018317 | U122: 1584.38614 | V122: 1780.074607 | W122: 1572.492557 | X122: 7061.6448 | Y122: 92109.7811 | AA122: 2399.63 | AC122: 87.43 | AD122: 24.15 | AE122: 54.720001 | AF122: 92.25 | AG122: 60.369999 | AH122: 116.650002 | AI122: 224.880005 | AJ122: 43.099998 | AK122: 78.650002 | AL122: 122.449997 | AM122: 1096.216263 | AO122: 49.790001 | AP122: 19.950001 | AQ122: 5.94 | AR122: 32 | AS122: 3.99 | AT122: 93.059998 | AU122: 36.150002 | AV122: 35.779999 | AW122: 38.400002 | AX122: 188.160004 | AY122: 1313.000304 | BA122: 2017-05-10 | BB122: 0.09133122007 | BC122: 0.09621626302 | BD122: 0.3130003037
B123: 2017-05-11 | C123: 309620.8254 | D123: 239542.2066 | E123: 268555.9768 | F123: 212351.927 | G123: 167122.882 | H123: 124905.9468 | I123: 88733.3517 | J123: 79300.16013 | K123: 69643.27417 | L123: 58909.986 | M123: 1618686.537 | O123: 59702.54641 | P123: 7373.516006 | Q123: 2386.811997 | R123: 1634.400811 | S123: 282.685978 | T123: 8412.746208 | U123: 1569.046302 | V123: 1785.547168 | W123: 1584.777655 | X123: 7068.0249 | Y123: 91800.10343 | AA123: 2394.44 | AC123: 87.160004 | AD123: 24.07 | AE123: 53.740002 | AF123: 92.099998 | AG123: 60.700001 | AH123: 116.529999 | AI123: 224.759995 | AJ123: 42.869999 | AK123: 77.919998 | AL123: 121.739998 | AM123: 1091.088851 | AO123: 49.700001 | AP123: 19.709999 | AQ123: 5.91 | AR123: 31.870001 | AS123: 3.9 | AT123: 92.019997 | AU123: 35.799999 | AV123: 35.889999 | AW123: 38.700001 | AX123: 188.330002 | AY123: 1308.677545 | BA123: 2017-05-11 | BB123: 0.08897085242 | BC123: 0.09108885107 | BD123: 0.3086775451
B124: 2017-05-12 | C124: 308768.2669 | D124: 238845.5737 | E124: 264957.9064 | F124: 213804.4972 | G124: 168141.5882 | H124: 125549.0737 | I124: 87967.45607 | J124: 79041.19063 | K124: 69258.94912 | L124: 58459.959 | M124: 1614794.461 | O124: 59306.13111 | P124: 7511.9331 | Q124: 2354.503205 | R124: 1639.72408 | S124: 271.81344 | T124: 8555.366118 | U124: 1553.706464 | V124: 1790.024717 | W124: 1566.350008 | X124: 6995.2167 | Y124: 91544.76894 | AA124: 2390.9 | AC124: 86.919998 | AD124: 24 | AE124: 53.02 | AF124: 92.730003 | AG124: 61.07 | AH124: 117.129997 | AI124: 222.820007 | AJ124: 42.73 | AK124: 77.489998 | AL124: 120.809998 | AM124: 1088.488898 | AO124: 49.369999 | AP124: 20.08 | AQ124: 5.83 | AR124: 31.92 | AS124: 3.75 | AT124: 93.580002 | AU124: 35.450001 | AV124: 35.98 | AW124: 38.25 | AX124: 186.389999 | AY124: 1304.799024 | BA124: 2017-05-12 | BB124: 0.08736089066 | BC124: 0.08848889753 | BD124: 0.3047990236
B125: 2017-05-15 | C125: 310260.2443 | D125: 239442.6876 | E125: 266457.1024 | F125: 214957.3307 | G125: 169105.2292 | H125: 126706.7019 | I125: 88875.47666 | J125: 80336.03812 | K125: 70009.72364 | L125: 59103.546 | M125: 1625254.081 | O125: 59786.6345 | P125: 7575.530144 | Q125: 2358.541804 | R125: 1614.552877 | S125: 268.189261 | T125: 8615.705311 | U125: 1573.429113 | V125: 1797.487299 | W125: 1584.777655 | X125: 7070.2767 | Y125: 92245.12466 | AA125: 2402.32 | AC125: 87.339996 | AD125: 24.059999 | AE125: 53.32 | AF125: 93.230003 | AG125: 61.419998 | AH125: 118.209999 | AI125: 225.119995 | AJ125: 43.43 | AK125: 78.330002 | AL125: 122.139999 | AM125: 1095.551069 | AO125: 49.77 | AP125: 20.25 | AQ125: 5.84 | AR125: 31.43 | AS125: 3.7 | AT125: 94.239998 | AU125: 35.900002 | AV125: 36.130001 | AW125: 38.700001 | AX125: 188.389999 | AY125: 1314.803027 | BA125: 2017-05-15 | BB125: 0.09255460908 | BC125: 0.09555106863 | BD125: 0.3148030267
B126: 2017-05-16 | C126: 311219.3726 | D126: 238746.0547 | E126: 266157.2632 | F126: 214772.8773 | G126: 172051.2174 | H126: 127006.8278 | I126: 89064.97661 | J126: 80243.54902 | K126: 69830.9678 | L126: 59335.818 | M126: 1628428.924 | O126: 60471.35183 | P126: 7609.199166 | Q126: 2362.580403 | R126: 1626.881629 | S126: 260.940902 | T126: 8678.787194 | U126: 1586.577546 | V126: 1801.964849 | W126: 1601.157786 | X126: 6932.5416 | Y126: 92931.98291 | AA126: 2400.67 | AC126: 87.610001 | AD126: 23.99 | AE126: 53.259998 | AF126: 93.150002 | AG126: 62.490002 | AH126: 118.489998 | AI126: 225.600006 | AJ126: 43.380001 | AK126: 78.129997 | AL126: 122.620003 | AM126: 1097.727701 | AO126: 50.34 | AP126: 20.34 | AQ126: 5.85 | AR126: 31.67 | AS126: 3.6 | AT126: 94.93 | AU126: 36.200001 | AV126: 36.220001 | AW126: 39.099998 | AX126: 184.720001 | AY126: 1324.627922 | BA126: 2017-05-16 | BB126: 0.09180420318 | BC126: 0.09772770111 | BD126: 0.3246279225
B127: 2017-05-17 | C127: 299354.6003 | D127: 224614.3583 | E127: 261059.9968 | F127: 211568.0003 | G127: 165140.5348 | H127: 125195.3539 | I127: 84374.85284 | J127: 75785.57407 | K127: 68257.91644 | L127: 56708.241 | M127: 1572059.429 | O127: 58921.72839 | P127: 7317.400968 | Q127: 2261.615429 | R127: 1620.717253 | S127: 246.444186 | T127: 8240.667164 | U127: 1505.495544 | V127: 1775.597058 | W127: 1564.302491 | X127: 6843.2202 | Y127: 90297.18869 | AA127: 2357.03 | AC127: 84.269997 | AD127: 22.57 | AE127: 52.240002 | AF127: 91.760002 | AG127: 59.98 | AH127: 116.800003 | AI127: 213.720001 | AJ127: 40.970001 | AK127: 76.370003 | AL127: 117.190002 | AM127: 1059.657567 | AO127: 49.049999 | AP127: 19.559999 | AQ127: 5.6 | AR127: 31.549999 | AS127: 3.4 | AT127: 89.839996 | AU127: 34.349998 | AV127: 35.689999 | AW127: 38.200001 | AX127: 182.339996 | AY127: 1286.843433 | BA127: 2017-05-17 | BB127: 0.07195710407 | BC127: 0.05965756678 | BD127: 0.2868434326
B128: 2017-05-18 | C128: 298253.3789 | D128: 226306.1811 | E128: 261759.6216 | F128: 211452.7169 | G128: 165415.8608 | H128: 124595.1022 | I128: 84943.35269 | J128: 76414.5 | K128: 68266.85423 | L128: 56790.504 | M128: 1574198.072 | O128: 58993.8039 | P128: 7362.292999 | Q128: 2241.422434 | R128: 1628.936421 | S128: 244.994514 | T128: 8955.490268 | U128: 1527.409599 | V128: 1778.084586 | W128: 1566.350008 | X128: 6832.3365 | Y128: 91131.12123 | AA128: 2365.72 | AC128: 83.959999 | AD128: 22.74 | AE128: 52.380001 | AF128: 91.709999 | AG128: 60.080002 | AH128: 116.239998 | AI128: 215.160004 | AJ128: 41.310001 | AK128: 76.379997 | AL128: 117.360001 | AM128: 1061.117363 | AO128: 49.110001 | AP128: 19.68 | AQ128: 5.55 | AR128: 31.709999 | AS128: 3.38 | AT128: 92.110001 | AU128: 34.849998 | AV128: 35.740002 | AW128: 38.25 | AX128: 182.050003 | AY128: 1291.411023 | BA128: 2017-05-18 | BB128: 0.07590924182 | BC128: 0.06111736306 | BD128: 0.2914110226
B129: 2017-05-19 | C129: 301166.287 | D129: 229391.2697 | E129: 265157.7992 | F129: 213228.0805 | G129: 168224.186 | H129: 126031.4188 | I129: 85034.15475 | J129: 77320.89324 | K129: 68642.24149 | L129: 57467.964 | M129: 1591664.295 | O129: 59330.15628 | P129: 7448.336057 | Q129: 2285.847023 | R129: 1660.785699 | S129: 245.71935 | T129: 8640.477908 | U129: 1558.089275 | V129: 1778.582091 | W129: 1603.205302 | X129: 6995.592 | Y129: 91546.79098 | AA129: 2381.73 | AC129: 84.779999 | AD129: 23.049999 | AE129: 53.060001 | AF129: 92.480003 | AG129: 61.099998 | AH129: 117.580002 | AI129: 215.389999 | AJ129: 41.799999 | AK129: 76.800003 | AL129: 118.760002 | AM129: 1072.874262 | AO129: 49.389999 | AP129: 19.91 | AQ129: 5.66 | AR129: 32.330002 | AS129: 3.39 | AT129: 88.870003 | AU129: 35.549999 | AV129: 35.75 | AW129: 39.150002 | AX129: 186.399994 | AY129: 1297.657205 | BA129: 2017-05-19 | BB129: 0.08319045302 | BC129: 0.07287426214 | BD129: 0.2976572054
B130: 2017-05-22 | C130: 300882.1009 | D130: 229291.7507 | E130: 264907.9332 | F130: 215141.784 | G130: 168114.0556 | H130: 127553.4856 | I130: 85282.87344 | J130: 77061.92374 | K130: 68803.12174 | L130: 57801.855 | M130: 1594840.884 | O130: 59786.6345 | P130: 7837.400321 | Q130: 2382.773398 | R130: 1678.765129 | S130: 263.11541 | T130: 8711.452915 | U130: 1540.558031 | V130: 1787.53719 | W130: 1617.537917 | X130: 6958.062 | Y130: 92563.83681 | AA130: 2394.02 | AC130: 84.699997 | AD130: 23.040001 | AE130: 53.009998 | AF130: 93.309998 | AG130: 61.060001 | AH130: 119 | AI130: 216.020004 | AJ130: 41.66 | AK130: 76.980003 | AL130: 119.449997 | AM130: 1075.021996 | AO130: 49.77 | AP130: 20.950001 | AQ130: 5.9 | AR130: 32.68 | AS130: 3.63 | AT130: 89.599998 | AU130: 35.150002 | AV130: 35.93 | AW130: 39.5 | AX130: 185.399994 | AY130: 1311.812363 | BA130: 2017-05-22 | BB130: 0.08877984 | BC130: 0.07502199595 | BD130: 0.3118123631
B131: 2017-05-23 | C131: 304647.5676 | D131: 232774.9154 | E131: 266806.9148 | F131: 216409.9009 | G131: 169903.6746 | H131: 128196.6124 | I131: 86712.0189 | J131: 78467.75817 | K131: 68999.75316 | L131: 58624.485 | M131: 1611543.601 | O131: 60219.08755 | P131: 8095.529497 | Q131: 2378.734799 | R131: 1674.655545 | S131: 276.887291 | T131: 8752.287851 | U131: 1562.472086 | V131: 1798.48231 | W131: 1631.870531 | X131: 7055.64 | Y131: 93445.64746 | AA131: 2398.42 | AC131: 85.760002 | AD131: 23.389999 | AE131: 53.389999 | AF131: 93.860001 | AG131: 61.709999 | AH131: 119.599998 | AI131: 219.639999 | AJ131: 42.419998 | AK131: 77.199997 | AL131: 121.150002 | AM131: 1086.294184 | AO131: 50.130001 | AP131: 21.639999 | AQ131: 5.89 | AR131: 32.599998 | AS131: 3.82 | AT131: 90.019997 | AU131: 35.650002 | AV131: 36.150002 | AW131: 39.849998 | AX131: 188 | AY131: 1324.213981 | BA131: 2017-05-23 | BB131: 0.09078092241 | BC131: 0.08629418384 | BD131: 0.3242139811
B132: 2017-05-24 | C132: 304469.9512 | D132: 232476.3584 | E132: 265307.7188 | F132: 218600.2845 | G132: 171445.5002 | H132: 129375.6782 | I132: 88366.19555 | J132: 78856.21242 | K132: 68928.25082 | L132: 58532.544 | M132: 1616358.694 | O132: 61324.24535 | P132: 8200.277568 | Q132: 2362.580403 | R132: 1715.237689 | S132: 264.565082 | T132: 8829.09642 | U132: 1582.194735 | V132: 1808.43242 | W132: 1633.918047 | X132: 7193.7504 | Y132: 94914.29812 | AA132: 2404.39 | AC132: 85.709999 | AD132: 23.360001 | AE132: 53.09 | AF132: 94.809998 | AG132: 62.27 | AH132: 120.699997 | AI132: 223.830002 | AJ132: 42.630001 | AK132: 77.120003 | AL132: 120.959999 | AM132: 1089.616937 | AO132: 51.049999 | AP132: 21.92 | AQ132: 5.85 | AR132: 33.389999 | AS132: 3.65 | AT132: 90.809998 | AU132: 36.099998 | AV132: 36.349998 | AW132: 39.900002 | AX132: 191.679993 | AY132: 1345.148988 | BA132: 2017-05-24 | BB132: 0.0934960274 | BC132: 0.08961693672 | BD132: 0.345148988
B133: 2017-05-25 | C133: 303191.1135 | D133: 231381.6495 | E133: 263758.5496 | F133: 219130.5879 | G133: 170564.457 | H133: 130683.3694 | I133: 87829.27902 | J133: 78856.21242 | K133: 69214.26016 | L133: 58769.655 | M133: 1613379.133 | O133: 61180.09434 | P133: 8353.658672 | Q133: 2310.078617 | R133: 1797.429372 | S133: 257.316723 | T133: 8771.733058 | U133: 1571.237708 | V133: 1807.934914 | W133: 1646.203145 | X133: 7339.3668 | Y133: 95035.05334 | AA133: 2415.07 | AC133: 85.349998 | AD133: 23.25 | AE133: 52.779999 | AF133: 95.040001 | AG133: 61.950001 | AH133: 121.919998 | AI133: 222.470001 | AJ133: 42.630001 | AK133: 77.440002 | AL133: 121.449997 | AM133: 1087.601489 | AO133: 50.93 | AP133: 22.33 | AQ133: 5.72 | AR133: 34.990002 | AS133: 3.55 | AT133: 90.220001 | AU133: 35.849998 | AV133: 36.34 | AW133: 40.200001 | AX133: 195.559998 | AY133: 1346.786915 | BA133: 2017-05-25 | BB133: 0.09835320014 | BC133: 0.08760148892 | BD133: 0.3467869146
B134: 2017-05-26 | C134: 303226.6367 | D134: 231282.1305 | E134: 261909.5412 | F134: 218277.4911 | G134: 170894.8482 | H134: 130372.5248 | I134: 88247.75808 | J134: 79244.66666 | K134: 69232.13575 | L134: 58706.748 | M134: 1611394.481 | O134: 61492.42154 | P134: 8353.658672 | Q134: 2257.57683 | R134: 1784.586921 | S134: 258.766395 | T134: 8822.290597 | U134: 1573.429113 | V134: 1809.427431 | W134: 1640.060596 | X134: 7287.2001 | Y134: 95279.4182 | AA134: 2415.82 | AC134: 85.360001 | AD134: 23.24 | AE134: 52.41 | AF134: 94.669998 | AG134: 62.07 | AH134: 121.629997 | AI134: 223.529999 | AJ134: 42.84 | AK134: 77.459999 | AL134: 121.32 | AM134: 1086.294525 | AO134: 51.189999 | AP134: 22.33 | AQ134: 5.59 | AR134: 34.740002 | AS134: 3.57 | AT134: 90.739998 | AU134: 35.900002 | AV134: 36.369999 | AW134: 40.049999 | AX134: 194.169998 | AY134: 1350.275109 | BA134: 2017-05-26 | BB134: 0.09869429373 | BC134: 0.08629452478 | BD134: 0.3502751089
B135: 2017-05-30 | C135: 298040.2392 | D135: 227998.0039 | E135: 260660.2112 | F135: 218392.7745 | G135: 169710.9464 | H135: 130393.9624 | I135: 86230.37319 | J135: 78208.78867 | K135: 68901.43745 | L135: 57516.354 | M135: 1596053.091 | O135: 61336.25794 | P135: 8507.039776 | Q135: 2213.152241 | R135: 1746.573268 | S135: 257.316723 | T135: 8805.762171 | U135: 1549.323653 | V135: 1804.949881 | W135: 1625.727982 | X135: 7176.1113 | Y135: 95022.21493 | AA135: 2412.91 | AC135: 83.900002 | AD135: 22.91 | AE135: 52.16 | AF135: 94.720001 | AG135: 61.639999 | AH135: 121.650002 | AI135: 218.419998 | AJ135: 42.279999 | AK135: 77.089996 | AL135: 118.860001 | AM135: 1075.933237 | AO135: 51.060001 | AP135: 22.74 | AQ135: 5.48 | AR135: 34 | AS135: 3.55 | AT135: 90.57 | AU135: 35.349998 | AV135: 36.279999 | AW135: 39.700001 | AX135: 191.210007 | AY135: 1346.511968 | BA135: 2017-05-30 | BB135: 0.0973708506 | BC135: 0.07593323717 | BD135: 0.3465119682
B136: 2017-05-31 | C136: 291823.6669 | D136: 223022.0544 | E136: 255562.9448 | F136: 219568.6646 | G136: 166682.3604 | H136: 131712.3723 | I136: 83403.6656 | J136: 77209.90632 | K136: 68767.37057 | L136: 57438.93 | M136: 1575191.936 | O136: 62717.70519 | P136: 8600.564839 | Q136: 2221.229439 | R136: 1734.244516 | S136: 256.591887 | T136: 8931.183759 | U136: 1571.237708 | V136: 1827.835134 | W136: 1621.632949 | X136: 7152.4674 | Y136: 96634.69282 | AA136: 2411.8 | AC136: 82.150002 | AD136: 22.41 | AE136: 51.139999 | AF136: 95.230003 | AG136: 60.540001 | AH136: 122.879997 | AI136: 211.259995 | AJ136: 41.740002 | AK136: 76.940002 | AL136: 118.699997 | AM136: 1061.833149 | AO136: 52.209999 | AP136: 22.99 | AQ136: 5.5 | AR136: 33.759998 | AS136: 3.54 | AT136: 91.860001 | AU136: 35.849998 | AV136: 36.740002 | AW136: 39.599998 | AX136: 190.580002 | AY136: 1369.496837 | BA136: 2017-05-31 | BB136: 0.09686603208 | BC136: 0.06183314939 | BD136: 0.3694968368
B137: 2017-06-01 | C137: 295056.2845 | D137: 225211.4722 | E137: 260260.4256 | F137: 219960.628 | G137: 168169.1208 | H137: 132269.7489 | I137: 84884.13396 | J137: 78819.21677 | K137: 69965.03468 | L137: 58130.907 | M137: 1592726.972 | O137: 63858.90074 | P137: 8690.3489 | Q137: 2302.001419 | R137: 1751.19655 | S137: 289.2095 | T137: 9084.800897 | U137: 1604.108789 | V137: 1851.715397 | W137: 1607.300335 | X137: 7204.6341 | Y137: 98244.21663 | AA137: 2430.06 | AC137: 83.059998 | AD137: 22.629999 | AE137: 52.080002 | AF137: 95.400002 | AG137: 61.080002 | AH137: 123.400002 | AI137: 215.009995 | AJ137: 42.610001 | AK137: 78.279999 | AL137: 120.129997 | AM137: 1073.653545 | AO137: 53.16 | AP137: 23.23 | AQ137: 5.7 | AR137: 34.09 | AS137: 3.99 | AT137: 93.440002 | AU137: 36.599998 | AV137: 37.220001 | AW137: 39.25 | AX137: 191.970001 | AY137: 1392.346173 | BA137: =B137 -> 2017-06-01 | BB137: 0.1051705241 | BC137: 0.07365354534 | BD137: 0.3923461733
B138: 2017-06-02 | C138: 293564.3072 | D138: 223420.1304 | E138: 258911.1492 | F138: 221689.8782 | G138: 168251.7186 | H138: 134199.1294 | I138: 84212.9883 | J138: 78652.73638 | K138: 70152.72831 | L138: 57661.524 | M138: =SUM(C138:L138) -> 1590716.29 | O138: 64291.3538 | P138: 8679.125893 | Q138: 2261.615429 | R138: 1794.347184 | S138: 286.310157 | T138: 9562.917639 | U138: 1601.917384 | V138: 1870.620605 | W138: 1635.965564 | X138: 7190.748 | Y138: =SUM(O138:X138) -> 99174.92165 | AA138: 2439.07 | AC138: 82.639999 | AD138: 22.450001 | AE138: 51.810001 | AF138: 96.150002 | AG138: 61.110001 | AH138: 125.199997 | AI138: 213.309998 | AJ138: 42.52 | AK138: 78.489998 | AL138: 119.160004 | AM138: =SUMPRODUCT($C$11:$L$11,AC138:AL138) -> 1072.303166 | AO138: 53.52 | AP138: 23.200001 | AQ138: 5.6 | AR138: 34.93 | AS138: 3.95 | AT138: 97.529999 | AU138: 36.549999 | AV138: 37.599998 | AW138: 39.950001 | AX138: 191.600006 | AY138: 1404.076507 | BA138: 2017-06-02 | BB138: 0.1092681951 | BC138: 0.07230316561 | BD138: 0.4040765071
B139: 2017-06-05 | C139: 294097.1562 | D139: 223022.0544 | E139: 258461.3904 | F139: 222612.145 | G139: 168637.175 | H139: 134949.444 | I139: 84481.44657 | J139: 79337.15577 | K139: 70581.74232 | L139: 57380.862 | M139: 1593560.572 | O139: 64627.70617 | P139: 8750.204941 | Q139: 2306.040018 | R139: 1790.751298 | S139: 284.860485 | T139: 9526.405735 | U139: 1619.448628 | V139: 1881.565725 | W139: 1603.205302 | X139: 7149.465 | Y139: 99539.6533 | AA139: 2436.1 | AC139: 82.790001 | AD139: 22.41 | AE139: 51.720001 | AF139: 96.550003 | AG139: 61.25 | AH139: 125.900002 | AI139: 213.990005 | AJ139: 42.889999 | AK139: 78.970001 | AL139: 118.580002 | AM139: 1074.234778 | AO139: 53.799999 | AP139: 23.389999 | AQ139: 5.71 | AR139: 34.860001 | AS139: 3.93 | AT139: 97.480003 | AU139: 36.950001 | AV139: 37.82 | AW139: 39.150002 | AX139: 190.5 | AY139: 1409.721616 | BA139: 2017-06-05 | BB139: 0.1079174644 | BC139: 0.0742347776 | BD139: 0.4097216159
B140: 2017-06-06 | C140: 294701.0518 | D140: 221230.7126 | E140: 258911.1492 | F140: 220859.8381 | G140: 167976.3926 | H140: 134242.0045 | I140: 84694.63401 | J140: 79429.64488 | K140: 70474.48882 | L140: 57172.785 | M140: 1589692.702 | O140: 64147.20278 | P140: 9056.967149 | Q140: 2285.847023 | R140: 1722.943159 | S140: 281.961142 | T140: 9636.836987 | U140: 1577.811924 | V140: 1928.828746 | W140: 1582.730139 | X140: 7055.2647 | Y140: 99276.39375 | AA140: 2429.33 | AC140: 82.959999 | AD140: 22.23 | AE140: 51.810001 | AF140: 95.790001 | AG140: 61.009998 | AH140: 125.239998 | AI140: 214.529999 | AJ140: 42.939999 | AK140: 78.849998 | AL140: 118.150002 | AM140: 1071.622651 | AO140: 53.400002 | AP140: 24.209999 | AQ140: 5.66 | AR140: 33.540001 | AS140: 3.89 | AT140: 98.610001 | AU140: 36 | AV140: 38.77 | AW140: 38.650002 | AX140: 187.990005 | AY140: 1405.581493 | BA140: 2017-06-06 | BB140: 0.1048385263 | BC140: 0.07162265104 | BD140: 0.4055814929
B141: 2017-06-07 | C141: 298075.7625 | D141: 224912.9152 | E141: 260310.3988 | F141: 221551.5382 | G141: 170371.7288 | H141: 134188.4106 | I141: 85188.12346 | J141: 80058.5708 | K141: 71332.51684 | L141: 58019.61 | M141: 1604009.575 | O141: 64687.76909 | P141: 9086.89517 | Q141: 2297.96282 | R141: 1695.717164 | S141: 284.135649 | T141: 9478.519616 | U141: 1588.768951 | V141: 1912.908571 | W141: 1584.777655 | X141: 7308.9675 | Y141: 99926.42219 | AA141: 2433.14 | AC141: 83.910004 | AD141: 22.6 | AE141: 52.09 | AF141: 96.089996 | AG141: 61.880001 | AH141: 125.190002 | AI141: 215.779999 | AJ141: 43.279999 | AK141: 79.809998 | AL141: 119.900002 | AM141: 1081.278524 | AO141: 53.849998 | AP141: 24.290001 | AQ141: 5.69 | AR141: 33.009998 | AS141: 3.92 | AT141: 96.989998 | AU141: 36.25 | AV141: 38.450001 | AW141: 38.700001 | AX141: 194.75 | AY141: =SUMPRODUCT($O$11:$X$11,AO141:AX141) -> 1415.127449 | BA141: 2017-06-07 | BB141: 0.1065712817 | BC141: 0.08127852426 | BD141: 0.4151274492
B142: 2017-06-08 | C142: 301770.1826 | D142: 228595.1178 | E142: 262659.1392 | F142: 221551.5382 | G142: 174033.5646 | H142: 133727.503 | I142: 86364.60232 | J142: 81575.39215 | K142: 71457.64592 | L142: 58556.739 | M142: 1620291.425 | O142: 65336.44867 | P142: 9270.204294 | Q142: 2330.271611 | R142: 1742.977382 | S142: 302.981381 | T142: 9659.314144 | U142: 1623.831438 | V142: 1952.211504 | W142: 1627.775498 | X142: 7480.8549 | Y142: 101326.8708 | AA142: 2433.79 | AC142: 84.949997 | AD142: 22.969999 | AE142: 52.560001 | AF142: 96.089996 | AG142: 63.209999 | AH142: 124.760002 | AI142: 218.759995 | AJ142: 44.099998 | AK142: 79.949997 | AL142: 121.010002 | AM142: 1092.28239 | AO142: 54.389999 | AP142: 24.780001 | AQ142: 5.77 | AR142: 33.93 | AS142: 4.18 | AT142: 98.839996 | AU142: 37.049999 | AV142: 39.240002 | AW142: 39.75 | AX142: 199.330002 | AY142: 1434.812076 | BA142: 2017-06-08 | BB142: =(AA142-$AA$12)/$AA$12 -> 0.1068668962 | BC142: =(AM142-$AM$12)/$AM$12 -> 0.09228239018 | BD142: =(AY142-$AY$12)/$AY$12 -> 0.4348120761
B143: 2017-06-09 | C143: 308910.36 | D143: 235561.4471 | E143: 268855.816 | F143: 218023.8677 | G143: 177447.607 | H143: 131883.8728 | I143: 87817.43527 | J143: 83073.71568 | K143: 71779.40643 | L143: 59601.963 | M143: 1642955.491 | O143: 64147.20278 | P143: 8615.52885 | Q143: 2334.31021 | R143: 1705.991124 | S143: 306.60556 | T143: 8937.113299 | U143: 1639.171277 | V143: 1972.609228 | W143: 1556.112426 | X143: 7578.8082 | Y143: 98793.45295 | AA143: 2431.77 | AC143: 86.959999 | AD143: 23.67 | AE143: 53.799999 | AF143: 94.559998 | AG143: 64.449997 | AH143: 123.040001 | AI143: 222.440002 | AJ143: 44.91 | AK143: 80.309998 | AL143: 123.169998 | AM143: 1107.541863 | AO143: 53.400002 | AP143: 23.030001 | AQ143: 5.78 | AR143: 33.209999 | AS143: 4.23 | AT143: 91.449997 | AU143: 37.400002 | AV143: 39.650002 | AW143: 38 | AX143: 201.940002 | AY143: 1399.923219 | BA143: 2017-06-09 | BB143: 0.1059482174 | BC143: 0.1075418629 | BD143: 0.3999232195
B144: 2017-06-12 | C144: 308981.4065 | D144: 236656.1559 | E144: 270305.0388 | F144: 215579.8608 | G144: 177089.6832 | H144: 129439.9909 | I144: 87608.19575 | J144: 82962.72876 | K144: 71654.27734 | L144: 59442.276 | M144: 1639719.614 | O144: 62657.64227 | P144: 8828.765994 | Q144: 2269.692627 | R144: 1677.737733 | S144: 311.679411 | T144: 8686.932763 | U144: 1665.468142 | V144: 1974.59925 | W144: 1558.159942 | X144: 7668.8802 | Y144: 97299.55833 | AA144: 2429.39 | AC144: 86.980003 | AD144: 23.780001 | AE144: 54.09 | AF144: 93.5 | AG144: 64.32 | AH144: 120.760002 | AI144: 221.910004 | AJ144: 44.849998 | AK144: 80.169998 | AL144: 122.839996 | AM144: 1105.341525 | AO144: 52.16 | AP144: 23.6 | AQ144: 5.62 | AR144: 32.66 | AS144: 4.3 | AT144: 88.889999 | AU144: 38 | AV144: 39.689999 | AW144: 38.049999 | AX144: 204.339996 | AY144: 1378.576868 | BA144: 2017-06-12 | BB144: 0.1048658138 | BC144: 0.1053415248 | BD144: 0.378576868
B145: 2017-06-13 | C145: 310011.5814 | D145: 236556.6369 | E145: 272104.074 | F145: 219222.8146 | G145: 178108.3894 | H145: 131112.1206 | I145: 88512.26843 | J145: 83517.66339 | K145: 72029.6646 | L145: 59911.659 | M145: 1651086.872 | O145: 62537.51642 | P145: 8783.873964 | Q145: 2342.387408 | R145: 1708.559615 | S145: 307.330396 | T145: 8495.38829 | U145: 1656.70252 | V145: 1966.141657 | W145: 1556.112426 | X145: 7736.8095 | Y145: 97090.82219 | AA145: 2440.35 | AC145: 87.269997 | AD145: 23.77 | AE145: 54.450001 | AF145: 95.080002 | AG145: 64.690002 | AH145: 122.32 | AI145: 224.199997 | AJ145: 45.150002 | AK145: 80.589996 | AL145: 123.809998 | AM145: 1113.015576 | AO145: 52.060001 | AP145: 23.48 | AQ145: 5.8 | AR145: 33.259998 | AS145: 4.24 | AT145: 86.93 | AU145: 37.799999 | AV145: 39.52 | AW145: 38 | AX145: 206.149994 | AY145: 1375.821526 | BA145: 2017-06-13 | BB145: 0.1098503281 | BC145: 0.1130155763 | BD145: 0.3758215258
B146: 2017-06-14 | C146: 309372.1625 | D146: 236457.118 | E146: 272503.8596 | F146: 219776.1746 | G146: 178190.9872 | H146: 131305.0587 | I146: 89424.23693 | J146: 83073.71568 | K146: 72253.1094 | L146: 59989.083 | M146: 1652345.506 | O146: 62345.31506 | P146: 8780.132961 | Q146: 2302.001419 | R146: 1730.648629 | S146: 312.404247 | T146: 8341.957258 | U146: 1669.850953 | V146: 1971.116712 | W146: 1554.06491 | X146: 7759.7028 | Y146: 96767.19495 | AA146: 2437.92 | AC146: 87.089996 | AD146: 23.76 | AE146: 54.529999 | AF146: 95.32 | AG146: 64.720001 | AH146: 122.5 | AI146: 226.509995 | AJ146: 44.91 | AK146: 80.839996 | AL146: 123.970001 | AM146: 1113.893846 | AO146: 51.900002 | AP146: 23.469999 | AQ146: 5.7 | AR146: 33.689999 | AS146: 4.31 | AT146: 85.360001 | AU146: 38.099998 | AV146: 39.619999 | AW146: 37.950001 | AX146: 206.759995 | AY146: 1371.366908 | BA146: 2017-06-14 | BB146: 0.1087451849 | BC146: 0.1138938461 | BD146: 0.3713669077
B147: 2017-06-15 | C147: 307524.9525 | D147: 234267.7002 | E147: 269355.548 | F147: 217124.6576 | G147: 176483.966 | H147: 130147.4304 | I147: 88129.32061 | J147: 82666.76361 | K147: 72127.98031 | L147: 59505.183 | M147: 1637333.502 | O147: 62813.80587 | P147: 8974.665093 | Q147: 2281.808424 | R147: 1735.271912 | S147: 305.155889 | T147: 8353.684471 | U147: 1669.850953 | V147: 1976.091767 | W147: 1552.017393 | X147: 7781.4702 | Y147: 97443.82197 | AA147: 2432.46 | AC147: 86.57 | AD147: 23.540001 | AE147: 53.900002 | AF147: 94.169998 | AG147: 64.099998 | AH147: 121.419998 | AI147: 223.229996 | AJ147: 44.689999 | AK147: 80.699997 | AL147: 122.970001 | AM147: 1103.759831 | AO147: 52.290001 | AP147: 23.99 | AQ147: 5.65 | AR147: 33.779999 | AS147: 4.21 | AT147: 85.480003 | AU147: 38.099998 | AV147: 39.720001 | AW147: 37.900002 | AX147: 207.339996 | AY147: 1380.92931 | BA147: 2017-06-15 | BB147: 0.1062620235 | BC147: 0.1037598312 | BD147: 0.3809293096
B148: 2017-06-16 | C148: 306139.5449 | D148: 233172.9913 | E148: 269305.5748 | F148: 217124.6576 | G148: 175905.7814 | H148: 130726.2445 | I148: 87568.71659 | J148: 82278.30936 | K148: 72798.3147 | L148: 59282.589 | M148: 1634302.724 | O148: 62273.23955 | P148: 8813.801984 | Q148: 2265.654028 | R148: 1809.758124 | S148: 303.706217 | T148: 8495.38829 | U148: 1672.042358 | V148: 1966.639162 | W148: 1560.207459 | X148: 7719.1704 | Y148: 96879.60757 | AA148: 2433.15 | AC148: 86.18 | AD148: 23.43 | AE148: 53.889999 | AF148: 94.169998 | AG148: 63.889999 | AH148: 121.959999 | AI148: 221.809998 | AJ148: 44.48 | AK148: 81.449997 | AL148: 122.510002 | AM148: 1101.709073 | AO148: 51.84 | AP148: 23.559999 | AQ148: 5.61 | AR148: 35.23 | AS148: 4.19 | AT148: 86.93 | AU148: 38.150002 | AV148: 39.529999 | AW148: 38.099998 | AX148: 205.679993 | AY148: 1372.714086 | BA148: 2017-06-16 | BB148: 0.1065758297 | BC148: 0.1017090731 | BD148: 0.3727140859
B149: 2017-06-19 | C149: 312853.443 | D149: 237949.9028 | E149: 271054.6368 | F149: 218554.1711 | G149: 177530.2048 | H149: 131937.4667 | I149: 89274.21614 | J149: 84572.03921 | K149: 73182.63975 | L149: 59901.981 | M149: 1656810.701 | O149: 63582.61129 | P149: 9053.226147 | Q149: 2334.31021 | R149: 1834.415629 | S149: 310.22974 | T149: 8850.136472 | U149: 1707.104846 | V149: 1972.609228 | W149: 1578.635106 | X149: 7803.6129 | Y149: 99026.89157 | AA149: 2453.46 | AC149: 88.07 | AD149: 23.91 | AE149: 54.240002 | AF149: 94.790001 | AG149: 64.480003 | AH149: 123.089996 | AI149: 226.130005 | AJ149: 45.720001 | AK149: 81.879997 | AL149: 123.790001 | AM149: 1116.882393 | AO149: 52.93 | AP149: 24.200001 | AQ149: 5.78 | AR149: 35.709999 | AS149: 4.28 | AT149: 90.559998 | AU149: 38.950001 | AV149: 39.650002 | AW149: 38.549999 | AX149: 207.929993 | AY149: 1402.884921 | BA149: 2017-06-19 | BB149: 0.1158126441 | BC149: 0.1168823929 | BD149: 0.4028849214
B150: 2017-06-20 | C150: 310899.6632 | D150: 233770.1053 | E150: 267156.7272 | F150: 217608.8477 | G150: 175960.8466 | H150: 131765.9662 | I150: 88867.58083 | J150: 84165.08714 | K150: 73745.72064 | L150: 59514.861 | M150: 1643455.406 | O150: 63090.09532 | P150: 8922.291058 | Q150: 2281.808424 | R150: 1874.997773 | S150: 314.578755 | T150: 8691.819102 | U150: 1693.956413 | V150: 1960.669097 | W150: 1543.827328 | X150: 7785.2232 | Y150: 98159.26647 | AA150: 2437.03 | AC150: 87.519997 | AD150: 23.49 | AE150: 53.459999 | AF150: 94.379997 | AG150: 63.91 | AH150: 122.93 | AI150: 225.100006 | AJ150: 45.5 | AK150: 82.510002 | AL150: 122.989998 | AM150: 1107.901423 | AO150: 52.52 | AP150: 23.85 | AQ150: 5.65 | AR150: 36.5 | AS150: 4.34 | AT150: 88.940002 | AU150: 38.650002 | AV150: 39.41 | AW150: 37.700001 | AX150: 207.440002 | AY150: 1390.729423 | BA150: 2017-06-20 | BB150: 0.1083404205 | BC150: 0.107901423 | BD150: 0.3907294233
B151: 2017-06-21 | C151: 309478.7323 | D151: 230187.4217 | E151: 264758.0136 | F151: 217977.7544 | G151: 175740.5858 | H151: 131948.1855 | I151: 87837.17485 | J151: 83073.71568 | K151: 73477.58688 | L151: 59195.487 | M151: 1633674.658 | O151: 64315.37897 | P151: 9038.262137 | Q151: 2233.345236 | R151: 1918.662105 | S151: 317.478098 | T151: 8917.567945 | U151: 1693.956413 | V151: 1963.156624 | W151: 1529.494713 | X151: 7597.9485 | Y151: 99525.25074 | AA151: 2435.61 | AC151: 87.120003 | AD151: 23.129999 | AE151: 52.98 | AF151: 94.540001 | AG151: 63.830002 | AH151: 123.099998 | AI151: 222.490005 | AJ151: 44.91 | AK151: 82.209999 | AL151: 122.330002 | AM151: 1101.308714 | AO151: 53.540001 | AP151: 24.16 | AQ151: 5.53 | AR151: 37.349998 | AS151: 4.38 | AT151: 91.25 | AU151: 38.650002 | AV151: 39.459999 | AW151: 37.349998 | AX151: 202.449997 | AY151: 1410.002122 | BA151: 2017-06-21 | BB151: 0.1076946166 | BC151: 0.1013087142 | BD151: 0.4100021222
B152: 2017-06-22 | C152: 309123.4996 | D152: 228197.0419 | E152: 262309.3268 | F152: 216617.4109 | G152: 175162.4012 | H152: 132162.5611 | I152: 86763.3418 | J152: 82518.78104 | K152: 73513.33805 | L152: 58435.764 | M152: 1624803.466 | O152: 64711.79426 | P152: 9083.154167 | Q152: 2302.001419 | R152: 1933.045649 | S152: 326.176128 | T152: 8929.295158 | U152: 1687.382197 | V152: 1947.733954 | W152: 1525.399681 | X152: 7572.4281 | Y152: 100018.4107 | AA152: 2434.5 | AC152: 87.019997 | AD152: 22.93 | AE152: 52.490002 | AF152: 93.949997 | AG152: 63.619999 | AH152: 123.300003 | AI152: 219.770004 | AJ152: 44.610001 | AK152: 82.25 | AL152: 120.760002 | AM152: 1095.321439 | AO152: 53.869999 | AP152: 24.280001 | AQ152: 5.7 | AR152: 37.630001 | AS152: 4.5 | AT152: 91.370003 | AU152: 38.5 | AV152: 39.150002 | AW152: 37.25 | AX152: 201.770004 | AY152: 1417.0144 | BA152: 2017-06-22 | BB152: 0.1071897981 | BC152: 0.09532143934 | BD152: 0.4170143998
B153: 2017-06-23 | C153: 308555.1273 | D153: 227102.333 | E153: 262109.434 | F153: 220375.648 | G153: 174584.2166 | H153: 132923.5945 | I153: 85744.77957 | J153: 80816.98148 | K153: 73486.52467 | L153: 57850.245 | M153: 1623548.884 | O153: 65264.37316 | P153: 9042.003139 | Q153: 2289.885622 | R153: 1955.134664 | S153: 332.699651 | T153: 9233.225419 | U153: 1709.296251 | V153: 1954.699031 | W153: 1549.969877 | X153: 7558.1667 | Y153: 100889.4535 | AA153: 2438.3 | AC153: 86.860001 | AD153: 22.82 | AE153: 52.450001 | AF153: 95.580002 | AG153: 63.41 | AH153: 124.010002 | AI153: 217.190002 | AJ153: 43.689999 | AK153: 82.220001 | AL153: 119.550003 | AM153: 1094.448825 | AO153: 54.330002 | AP153: 24.17 | AQ153: 5.67 | AR153: 38.060001 | AS153: 4.59 | AT153: 94.480003 | AU153: 39 | AV153: 39.290001 | AW153: 37.849998 | AX153: 201.389999 | AY153: 1429.163832 | BA153: 2017-06-23 | BB153: 0.1089180056 | BC153: 0.09444882453 | BD153: 0.4291638321
B154: 2017-06-26 | C154: 309905.0116 | D154: 227798.9659 | E154: 264358.228 | F154: 219545.6079 | G154: 175602.9228 | H154: 132398.3743 | I154: 87027.85215 | J154: 81390.41394 | K154: 74147.92127 | L154: 58251.882 | M154: 1630427.18 | O154: 64555.63066 | P154: 8952.219078 | Q154: 2310.078617 | R154: 1941.778516 | S154: 336.32383 | T154: 8994.772095 | U154: 1696.147818 | V154: 1914.401087 | W154: 1521.304648 | X154: 7537.9005 | Y154: 99760.55685 | AA154: 2439.07 | AC154: 87.239998 | AD154: 22.889999 | AE154: 52.900002 | AF154: 95.220001 | AG154: 63.779999 | AH154: 123.519997 | AI154: 220.440002 | AJ154: 44 | AK154: 82.959999 | AL154: 120.379997 | AM154: 1099.109296 | AO154: 53.740002 | AP154: 23.93 | AQ154: 5.72 | AR154: 37.799999 | AS154: 4.64 | AT154: 92.040001 | AU154: 38.700001 | AV154: 38.48 | AW154: 37.150002 | AX154: 200.850006 | AY154: 1413.316624 | BA154: 2017-06-26 | BB154: 0.1092681951 | BC154: 0.09910929643 | BD154: 0.413316624
B155: 2017-06-27 | C155: 312782.3965 | D155: 231580.6875 | E155: 265657.5312 | F155: 218807.7945 | G155: 176841.8898 | H155: 131562.3094 | I155: 86964.6855 | J155: 81797.36601 | K155: 74255.17477 | L155: 58609.968 | M155: 1638859.803 | O155: 63342.3596 | P155: 8724.017923 | Q155: 2245.461033 | R155: 1888.353922 | S155: 334.874158 | T155: 8506.138235 | U155: 1691.765007 | V155: 1898.978417 | W155: 1494.686936 | X155: 7417.4292 | Y155: 97544.06443 | AA155: 2419.38 | AC155: 88.050003 | AD155: 23.27 | AE155: 53.16 | AF155: 94.900002 | AG155: 64.230003 | AH155: 122.739998 | AI155: 220.279999 | AJ155: 44.220001 | AK155: 83.080002 | AL155: 121.120003 | AM155: 1104.774092 | AO155: 52.73 | AP155: 23.32 | AQ155: 5.56 | AR155: 36.759998 | AS155: 4.62 | AT155: 87.040001 | AU155: 38.599998 | AV155: 38.169998 | AW155: 36.5 | AX155: 197.639999 | AY155: 1382.328833 | BA155: 2017-06-27 | BB155: 0.1003133513 | BC155: 0.1047740921 | BD155: 0.3823288334
B156: 2017-06-28 | C156: 319070.0154 | D156: 237651.3458 | E156: 271504.3956 | F156: 221874.3316 | G156: 179457.4868 | H156: 133781.0969 | I156: 88125.37269 | J156: 81982.34422 | K156: 75050.63825 | L156: 59713.26 | M156: 1668210.287 | O156: 65336.44867 | P156: 9090.636172 | Q156: 2269.692627 | R156: 1901.71007 | S156: 333.424486 | T156: 8748.500629 | U156: 1746.550144 | V156: 1940.768877 | W156: 1539.732295 | X156: 7572.0528 | Y156: 100479.5168 | AA156: 2440.69 | AC156: 89.82 | AD156: 23.879999 | AE156: 54.330002 | AF156: 96.230003 | AG156: 65.18 | AH156: 124.809998 | AI156: 223.220001 | AJ156: 44.32 | AK156: 83.970001 | AL156: 123.400002 | AM156: 1124.528558 | AO156: 54.389999 | AP156: 24.299999 | AQ156: 5.62 | AR156: 37.02 | AS156: 4.6 | AT156: 89.519997 | AU156: 39.849998 | AV156: 39.009998 | AW156: 37.599998 | AX156: 201.759995 | AY156: 1423.901178 | BA156: 2017-06-28 | BB156: 0.1100049572 | BC156: 0.1245285585 | BD156: 0.4239011777
B157: 2017-06-29 | C157: 323794.6103 | D157: 242030.1813 | E157: 278750.5096 | F157: 217701.0744 | G157: 184413.3548 | H157: 130243.8994 | I157: 88595.17465 | J157: 82777.75054 | K157: 74746.75332 | L157: 60608.475 | M157: 1683661.783 | O157: 64171.22795 | P157: 8753.945944 | Q157: 2261.615429 | R157: 1862.669021 | S157: 341.397681 | T157: 8443.593101 | U157: 1713.679062 | V157: 1908.928527 | W157: 1513.114583 | X157: 7638.1056 | Y157: 98608.2769 | AA157: 2419.7 | AC157: 91.150002 | AD157: 24.32 | AE157: 55.779999 | AF157: 94.419998 | AG157: 66.980003 | AH157: 121.510002 | AI157: 224.410004 | AJ157: 44.75 | AK157: 83.629997 | AL157: 125.25 | AM157: 1134.925706 | AO157: 53.419998 | AP157: 23.4 | AQ157: 5.6 | AR157: 36.259998 | AS157: 4.71 | AT157: 86.400002 | AU157: 39.099998 | AV157: 38.369999 | AW157: 36.950001 | AX157: 203.520004 | AY157: 1397.702219 | BA157: 2017-06-29 | BB157: 0.1004588846 | BC157: 0.1349257065 | BD157: 0.3977022193
B158: 2017-06-30 | C158: 324682.6921 | D158: 241433.0674 | E158: 276901.5012 | F158: 216225.4475 | G158: 184138.0288 | H158: 130179.5867 | I158: 87604.24783 | J158: 82426.29194 | K158: 75291.95863 | L158: 60424.593 | M158: 1679307.415 | O158: 64471.54257 | P158: 8776.391959 | Q158: 2225.268038 | R158: 1835.956723 | S158: 337.773501 | T158: 8492.456487 | U158: 1735.593116 | V158: 1916.888614 | W158: 1513.114583 | X158: 7547.283 | Y158: 98852.26859 | AA158: 2423.41 | AC158: 91.400002 | AD158: 24.26 | AE158: 55.41 | AF158: 93.779999 | AG158: 66.879997 | AH158: 121.449997 | AI158: 221.899994 | AJ158: 44.560001 | AK158: 84.239998 | AL158: 124.870003 | AM158: 1131.973858 | AO158: 53.669998 | AP158: 23.459999 | AQ158: 5.51 | AR158: 35.740002 | AS158: 4.66 | AT158: 86.900002 | AU158: 39.599998 | AV158: 38.529999 | AW158: 36.950001 | AX158: 201.100006 | AY158: 1401.160982 | BA158: 2017-06-30 | BB158: 0.1021461609 | BC158: 0.1319738577 | BD158: 0.4011609817
B159: 2017-07-03 | C159: 329478.3336 | D159: 245612.865 | E159: 278750.5096 | F159: 215234.0107 | G159: 187937.5276 | H159: 129461.4285 | I159: 89728.22644 | J159: 84368.56318 | K159: 76060.60873 | L159: 60971.4 | M159: 1697603.473 | O159: 63510.53579 | P159: 8540.708799 | Q159: 2261.615429 | R159: 1849.312872 | S159: 352.270218 | T159: 8404.502392 | U159: 1718.061873 | V159: 1919.376142 | W159: 1502.877001 | X159: 7633.2267 | Y159: 97692.48721 | AA159: 2429.01 | AC159: 92.75 | AD159: 24.68 | AE159: 55.779999 | AF159: 93.349998 | AG159: 68.260002 | AH159: 120.779999 | AI159: 227.279999 | AJ159: 45.610001 | AK159: 85.099998 | AL159: 126 | AM159: 1144.364834 | AO159: 52.869999 | AP159: 22.83 | AQ159: 5.6 | AR159: 36 | AS159: 4.86 | AT159: 86 | AU159: 39.200001 | AV159: 38.580002 | AW159: 36.700001 | AX159: 203.389999 | AY159: 1384.764246 | BA159: 2017-07-03 | BB159: 0.104692993 | BC159: 0.1443648343 | BD159: 0.3847642457
B160: 2017-07-05 | C160: 332781.9978 | D160: 248001.3207 | E160: 278750.5096 | F160: 216755.7509 | G160: 188460.647 | H160: 130747.6821 | I160: 90028.26803 | J160: 85385.94335 | K160: 75872.9151 | L160: 61010.112 | M160: 1707795.147 | O160: 65600.72554 | P160: 8888.622035 | Q160: 2249.499632 | R160: 1860.10053 | S160: 344.297024 | T160: 8610.705881 | U160: 1709.296251 | V160: 1926.341219 | W160: 1511.067066 | X160: 7721.7975 | Y160: 100422.4527 | AA160: 2432.54 | AC160: 93.68 | AD160: 24.92 | AE160: 55.779999 | AF160: 94.010002 | AG160: 68.449997 | AH160: 121.980003 | AI160: 228.039993 | AJ160: 46.16 | AK160: 84.889999 | AL160: 126.080002 | AM160: 1151.222104 | AO160: 54.610001 | AP160: 23.76 | AQ160: 5.57 | AR160: 36.209999 | AS160: 4.75 | AT160: 88.110001 | AU160: 39 | AV160: 38.720001 | AW160: 36.900002 | AX160: 205.75 | AY160: 1423.494172 | BA160: 2017-07-05 | BB160: 0.1062984069 | BC160: 0.1512221037 | BD160: 0.4234941721
B161: 2017-07-06 | C161: 331716.2996 | D161: 245911.4219 | E161: 277651.0992 | F161: 215003.444 | G161: 186202.9738 | H161: 129482.866 | I161: 89495.29942 | J161: 85330.44989 | K161: 74845.06904 | L161: 60976.239 | M161: 1696615.162 | O161: 64231.29087 | P161: 8686.607898 | Q161: 2168.727652 | R161: 1846.744382 | S161: 334.149322 | T161: 8954.429331 | U161: 1645.745493 | V161: 1922.85868 | W161: 1492.639419 | X161: 7257.5514 | Y161: 98540.74445 | AA161: 2409.75 | AC161: 93.379997 | AD161: 24.709999 | AE161: 55.560001 | AF161: 93.25 | AG161: 67.629997 | AH161: 120.800003 | AI161: 226.690002 | AJ161: 46.130001 | AK161: 83.739998 | AL161: 126.010002 | AM161: 1143.656368 | AO161: 53.470001 | AP161: 23.219999 | AQ161: 5.37 | AR161: 35.950001 | AS161: 4.61 | AT161: 86.209999 | AU161: 37.549999 | AV161: 38.650002 | AW161: 36.450001 | AX161: 193.380005 | AY161: 1389.285456 | BA161: 2017-07-06 | BB161: 0.0959337096 | BC161: 0.1436563677 | BD161: 0.3892854555
B162: 2017-07-07 | C162: 333385.8934 | D162: 247105.6498 | E162: 278550.6168 | F162: 216548.2409 | G162: 186973.8866 | H162: 130983.4953 | I162: 88938.64331 | J162: 85182.46732 | K162: 75372.39876 | L162: 61232.706 | M162: 1704273.998 | O162: 64831.92011 | P162: 8825.024992 | Q162: 2192.959246 | R162: 1871.915585 | S162: 345.02186 | T162: 9243.181373 | U162: 1667.659547 | V162: 1955.196536 | W162: 1527.447197 | X162: 7282.3212 | Y162: 99742.64765 | AA162: 2425.18 | AC162: 93.849998 | AD162: 24.83 | AE162: 55.740002 | AF162: 93.919998 | AG162: 67.910004 | AH162: 122.199997 | AI162: 225.279999 | AJ162: 46.049999 | AK162: 84.330002 | AL162: 126.540001 | AM162: 1148.793402 | AO162: 53.970001 | AP162: 23.59 | AQ162: 5.43 | AR162: 36.439999 | AS162: 4.76 | AT162: 88.989998 | AU162: 38.049999 | AV162: 39.299999 | AW162: 37.299999 | AX162: 194.039993 | AY162: 1405.814479 | BA162: 2017-07-07 | BB162: 0.1029511418 | BC162: 0.1487934018 | BD162: 0.4058144791
B163: 2017-07-10 | C163: 331041.3575 | D163: 247702.7637 | E163: 277801.0188 | F163: 219245.8712 | G163: 186258.039 | H163: 131551.5906 | I163: 88897.58733 | J163: 85071.48039 | K163: 75345.58538 | L163: 61552.08 | M163: 1704467.374 | O163: 65997.14084 | P163: 8955.960081 | Q163: 2156.611855 | R163: 1898.114184 | S163: 336.32383 | T163: 9450.916655 | U163: 1663.276737 | V163: 1957.186558 | W163: 1531.54223 | X163: 7317.9747 | Y163: 101265.0477 | AA163: 2427.43 | AC163: 93.190002 | AD163: 24.889999 | AE163: 55.59 | AF163: 95.089996 | AG163: 67.650002 | AH163: 122.730003 | AI163: 225.839996 | AJ163: 45.990002 | AK163: 84.300003 | AL163: 127.199997 | AM163: 1149.112508 | AO163: 54.939999 | AP163: 23.940001 | AQ163: 5.34 | AR163: 36.950001 | AS163: 4.64 | AT163: 90.989998 | AU163: 37.950001 | AV163: 39.34 | AW163: 37.400002 | AX163: 194.990005 | AY163: 1427.185043 | BA163: 2017-07-10 | BB163: 0.1039744225 | BC163: 0.1491125084 | BD163: 0.4271850434
B164: 2017-07-11 | C164: 329762.5198 | D164: 244816.713 | E164: 275052.4928 | F164: 219983.6847 | G164: 183972.8332 | H164: 133159.4077 | I164: 89334.51755 | J164: 84128.0915 | K164: 75220.45629 | L164: 61644.021 | M164: 1697074.737 | O164: 65780.91431 | P164: 9517.110462 | Q164: 2168.727652 | R164: 1922.257991 | S164: 335.598994 | T164: 9482.076947 | U164: 1685.190791 | V164: 1971.116712 | W164: 1572.492557 | X164: 7252.2972 | Y164: 101687.7836 | AA164: 2425.53 | AC164: 92.830002 | AD164: 24.6 | AE164: 55.040001 | AF164: 95.410004 | AG164: 66.82 | AH164: 124.230003 | AI164: 226.949997 | AJ164: 45.48 | AK164: 84.160004 | AL164: 127.389999 | AM164: 1144.14637 | AO164: 54.759998 | AP164: 25.440001 | AQ164: 5.37 | AR164: 37.419998 | AS164: 4.63 | AT164: 91.290001 | AU164: 38.450001 | AV164: 39.619999 | AW164: 38.400002 | AX164: 193.240005 | AY164: 1432.662737 | BA164: 2017-07-11 | BB164: 0.1031103188 | BC164: 0.1441463703 | BD164: 0.4326627371
B165: 2017-07-12 | C165: 328625.7751 | D165: 242328.7383 | E165: 275702.1444 | F165: 221759.0482 | G165: 184248.1592 | H165: 134284.8796 | I165: 89507.71512 | J165: 83166.20479 | K165: 75810.35056 | L165: 61561.758 | M165: 1696994.773 | O165: 67931.16699 | P165: 9805.167657 | Q165: 2176.80485 | R165: 1934.073045 | S165: 339.223173 | T165: 9834.18825 | U165: 1689.573602 | V165: 1983.056843 | W165: 1584.777655 | X165: 7271.4375 | Y165: 104549.4696 | AA165: 2443.25 | AC165: 92.510002 | AD165: 24.35 | AE165: 55.169998 | AF165: 96.18 | AG165: 66.919998 | AH165: 125.279999 | AI165: 227.389999 | AJ165: 44.959999 | AK165: 84.82 | AL165: 127.220001 | AM165: 1144.109221 | AO165: 56.549999 | AP165: 26.209999 | AQ165: 5.39 | AR165: 37.650002 | AS165: 4.68 | AT165: 94.68 | AU165: 38.549999 | AV165: 39.860001 | AW165: 38.700001 | AX165: 193.75 | AY165: 1472.861416 | BA165: 2017-07-12 | BB165: 0.1111692234 | BC165: 0.1441092209 | BD165: 0.472861416
B166: 2017-07-13 | C166: 330721.6481 | D166: 245015.751 | E166: 277850.992 | F166: 221205.6881 | G166: 184523.4852 | H166: 134488.5364 | I166: 90692.54392 | J166: 84202.08279 | K166: 76301.92911 | L166: 61610.148 | M166: 1706612.805 | O166: 69552.86593 | P166: 9719.124599 | Q166: 2184.882048 | R166: 1919.689501 | S166: 337.048666 | T166: 9661.767966 | U166: 1689.573602 | V166: 1978.579294 | W166: 1595.015237 | X166: 7287.2001 | Y166: 105925.7469 | AA166: 2447.83 | AC166: 93.099998 | AD166: 24.620001 | AE166: 55.599998 | AF166: 95.940002 | AG166: 67.019997 | AH166: 125.470001 | AI166: 230.399994 | AJ166: 45.52 | AK166: 85.370003 | AL166: 127.32 | AM166: 1150.601827 | AO166: 57.900002 | AP166: 25.98 | AQ166: 5.41 | AR166: 37.369999 | AS166: 4.65 | AT166: 93.019997 | AU166: 38.549999 | AV166: 39.77 | AW166: 38.950001 | AX166: 194.169998 | AY166: 1493.133679 | BA166: 2017-07-13 | BB166: 0.1132521682 | BC166: 0.1506018265 | BD166: 0.4931336791
B167: 2017-07-14 | C167: 327702.1701 | D167: 240935.4725 | E167: 273122.685 | F167: 223488.2984 | G167: 181785.312 | H167: 136139.2286 | I167: 89984.00842 | J167: 83610.1525 | K167: 76221.48898 | L167: 61041.6 | M167: 1694030.417 | O167: 68663.93466 | P167: 9850.059688 | Q167: 2176.80485 | R167: 1915.579917 | S167: 335.598994 | T167: 9690.924237 | U167: 1691.765007 | V167: 1990.519425 | W167: 1586.825171 | X167: 7146.0873 | Y167: 105048.0992 | AA167: 2459.27 | AC167: 92.25 | AD167: 24.209999 | AE167: 54.990002 | AF167: 96.93 | AG167: 66.720001 | AH167: 127.010002 | AI167: 228.600006 | AJ167: 45.200001 | AK167: 85.279999 | AL167: 127.169998 | AM167: 1144.88756 | AO167: 57.16 | AP167: 26.33 | AQ167: 5.39 | AR167: 37.290001 | AS167: 4.63 | AT167: 92.410004 | AU167: 38.599998 | AV167: 40.009998 | AW167: 38.75 | AX167: 190.410004 | AY167: 1479.189103 | BA167: 2017-07-14 | BB167: 0.1184549825 | BC167: 0.1448875602 | BD167: 0.4791891034
B168: 2017-07-17 | C168: 324647.1688 | D168: 239044.6117 | E168: 271731.9894 | F168: 223257.7317 | G168: 182085.018 | H168: 136589.4174 | I168: 90243.80477 | J168: 83850.62418 | K168: 76167.86223 | L168: 61132.8 | M168: 1688751.028 | O168: 69168.46322 | P168: 9797.685652 | Q168: 2140.457459 | R168: 1892.977204 | S168: 326.176128 | T168: 9489.576174 | U168: 1682.999386 | V168: 1976.091767 | W168: 1586.825171 | X168: 7147.5885 | Y168: 105208.8407 | AA168: 2459.14 | AC168: 91.389999 | AD168: 24.02 | AE168: 54.709999 | AF168: 96.830002 | AG168: 66.830002 | AH168: 127.43 | AI168: 229.259995 | AJ168: 45.330002 | AK168: 85.220001 | AL168: 127.360001 | AM168: 1141.367274 | AO168: 57.580002 | AP168: 26.190001 | AQ168: 5.3 | AR168: 36.849998 | AS168: 4.5 | AT168: 90.489998 | AU168: 38.400002 | AV168: 39.720001 | AW168: 38.75 | AX168: 190.449997 | AY168: 1482.036624 | BA168: 2017-07-17 | BB168: 0.1183958596 | BC168: 0.1413672743 | BD168: 0.4820366236
B169: 2017-07-18 | C169: 323510.4242 | D169: 237850.3838 | E169: 272178.9987 | F169: 224986.982 | G169: 182248.494 | H169: 136910.9808 | I169: 87901.70132 | J169: 83499.16557 | K169: 76435.99599 | L169: 60273.6 | M169: 1685796.726 | O169: 70826.19992 | P169: 9947.325754 | Q169: 2136.41886 | R169: 1906.84705 | S169: 325.451292 | T169: 9771.6732 | U169: 1698.339224 | V169: 1977.584283 | W169: 1578.635106 | X169: 7227.9027 | Y169: 107396.3774 | AA169: 2460.61 | AC169: 91.07 | AD169: 23.9 | AE169: 54.799999 | AF169: 97.580002 | AG169: 66.889999 | AH169: 127.730003 | AI169: 223.309998 | AJ169: 45.139999 | AK169: 85.519997 | AL169: 125.57 | AM169: 1139.31358 | AO169: 58.959999 | AP169: 26.59 | AQ169: 5.29 | AR169: 37.119999 | AS169: 4.49 | AT169: 93.18 | AU169: 38.75 | AV169: 39.75 | AW169: 38.549999 | AX169: 192.589996 | AY169: 1512.769616 | BA169: 2017-07-18 | BB169: 0.119064403 | BC169: 0.1393135804 | BD169: 0.512769616
B170: 2017-07-19 | C170: 320932.8 | D170: 237667.5191 | E170: 272874.3465 | F170: 226531.7788 | G170: 181730.82 | H170: 137243.263 | I170: 87728.50375 | J170: 85780.8 | K170: 76802.44545 | L170: 60672 | M170: 1687964.277 | O170: 70093.43225 | P170: 9861.282695 | Q170: 2100.07147 | R170: 1937.155233 | S170: 327.6258 | T170: 9637.441158 | U170: 1702.722035 | V170: 1992.509447 | W170: 1603.205302 | X170: 7304.0886 | Y170: 106559.534 | AA170: 2473.83 | AC170: 91.199997 | AD170: 24.059999 | AE170: 54.939999 | AF170: 98.25 | AG170: 66.699997 | AH170: 128.039993 | AI170: 222.869995 | AJ170: 46.619999 | AK170: 85.93 | AL170: 126.400002 | AM170: 1144.297284 | AO170: 58.349998 | AP170: 26.360001 | AQ170: 5.2 | AR170: 37.709999 | AS170: 4.52 | AT170: 91.900002 | AU170: 38.849998 | AV170: 40.049999 | AW170: 39.150002 | AX170: 194.619995 | AY170: 1501.07537 | BA170: 2017-07-19 | BB170: 0.1250767461 | BC170: 0.1442972843 | BD170: 0.5010753703
B171: 2017-07-20 | C171: 320932.8 | D171: 236482.1449 | E171: 272576.3403 | F171: 224354.5568 | G171: 180804.456 | H171: 137704.1705 | I171: 87504.13418 | J171: 85578.4 | K171: 75534.75 | L171: 60936 | M171: 1682407.753 | O171: 70982.36352 | P171: 9872.505703 | Q171: 2100.07147 | R171: 1933.559347 | S171: 331.974815 | T171: 9529.426311 | U171: 1720.253278 | V171: 1994.499469 | W171: 1584.777655 | X171: 7306.3404 | Y171: 107355.772 | AA171: 2473.45 | AC171: 91.199997 | AD171: 23.940001 | AE171: 54.880001 | AF171: 98.110001 | AG171: 66.360001 | AH171: 128.470001 | AI171: 222.300003 | AJ171: 46.509998 | AK171: 85.349998 | AL171: 126.949997 | AM171: 1142.274856 | AO171: 59.09 | AP171: 26.389999 | AQ171: 5.2 | AR171: 37.639999 | AS171: 4.58 | AT171: 90.870003 | AU171: 39.25 | AV171: 40.09 | AW171: 38.700001 | AX171: 194.679993 | AY171: 1512.779592 | BA171: 2017-07-20 | BB171: 0.1249039253 | BC171: 0.1422748562 | BD171: 0.5127795917
B172: 2017-07-21 | C172: 319841.91 | D172: 235099.2084 | E172: 269049.9336 | F172: 227761.8373 | G172: 179823.6 | H172: 138561.6729 | I172: 86669.63681 | J172: 85725.6 | K172: 75747.15 | L172: 60595.2 | M172: 1678875.749 | O172: 70477.83496 | P172: 10044.59182 | Q172: 2096.032871 | R172: 1935.614139 | S172: 322.551949 | T172: 9377.366576 | U172: 1718.061873 | V172: 1969.624195 | W172: 1554.06491 | X172: 7315.3476 | Y172: 106811.0909 | AA172: 2472.54 | AC172: 90.889999 | AD172: 23.799999 | AE172: 54.169998 | AF172: 99.599998 | AG172: 66 | AH172: 129.270004 | AI172: 220.179993 | AJ172: 46.59 | AK172: 85.589996 | AL172: 126.239998 | AM172: 1139.873115 | AO172: 58.669998 | AP172: 26.85 | AQ172: 5.19 | AR172: 37.68 | AS172: 4.45 | AT172: 89.419998 | AU172: 39.200001 | AV172: 39.59 | AW172: 37.950001 | AX172: 194.919998 | AY172: 1505.129988 | BA172: 2017-07-21 | BB172: 0.1244900651 | BC172: 0.1398731147 | BD172: 0.5051299884
B173: 2017-07-24 | C173: 321214.32 | D173: 236185.8014 | E173: 269546.6106 | F173: 229522.6467 | G173: 180096.06 | H173: 138829.6424 | I173: 85882.37514 | J173: 85946.4 | K173: 75225 | L173: 61027.2 | M173: 1683476.056 | O173: 70369.7217 | P173: 10007.1818 | Q173: 2051.608282 | R173: 1973.627793 | S173: 313.129083 | T173: 9816.766777 | U173: 1744.358738 | V173: 1976.091767 | W173: 1582.730139 | X173: 7384.0275 | Y173: 107219.2436 | AA173: 2469.91 | AC173: 91.279999 | AD173: 23.91 | AE173: 54.27 | AF173: 100.370003 | AG173: 66.099998 | AH173: 129.520004 | AI173: 218.179993 | AJ173: 46.709999 | AK173: 85 | AL173: 127.139999 | AM173: 1142.958647 | AO173: 58.580002 | AP173: 26.75 | AQ173: 5.08 | AR173: 38.419998 | AS173: 4.32 | AT173: 93.610001 | AU173: 39.799999 | AV173: 39.720001 | AW173: 38.650002 | AX173: 196.75 | AY173: 1510.034762 | BA173: 2017-07-24 | BB173: 0.1232939636 | BC173: 0.142958647 | BD173: 0.5100347621
B174: 2017-07-25 | C174: 326563.2 | D174: 241816.3286 | E174: 273470.359 | F174: 228653.6758 | G174: 185354.538 | H174: 139322.7063 | I174: 87220.71998 | J174: 87602.4 | K174: 75500.70139 | L174: 62078.4 | M174: 1707583.029 | O174: 69985.31899 | P174: 10059.55583 | Q174: 2075.839876 | R174: 2012.155144 | S174: 315.30359 | T174: 9664.707041 | U174: 1742.167333 | V174: 2012.409667 | W174: 1584.777655 | X174: 7486.4844 | Y174: 106938.7195 | AA174: 2477.13 | AC174: 92.800003 | AD174: 24.48 | AE174: 55.060001 | AF174: 99.989998 | AG174: 68.029999 | AH174: 129.979996 | AI174: 221.580002 | AJ174: 47.610001 | AK174: 85.410004 | AL174: 129.330002 | AM174: 1159.42302 | AO174: 58.259998 | AP174: 26.889999 | AQ174: 5.14 | AR174: 39.169998 | AS174: 4.35 | AT174: 92.160004 | AU174: 39.75 | AV174: 40.450001 | AW174: 38.700001 | AX174: 199.479996 | AY174: 1506.249556 | BA174: 2017-07-25 | BB174: 0.1265775579 | BC174: 0.1594230203 | BD174: 0.5062495555
B175: 2017-07-26 | C175: 323501.67 | D175: 239149.2368 | E175: 272725.3434 | F175: 230620.2941 | G175: 185218.308 | H175: 140405.3031 | I175: 87484.45263 | J175: 86866.4 | K175: 75403.46363 | L175: 61132.8 | M175: 1702507.272 | O175: 70621.98598 | P175: 10216.67794 | Q175: 2104.110069 | R175: 2018.319521 | S175: 318.202934 | T175: 9849.276099 | U175: 1761.889982 | V175: 2019.374743 | W175: 1590.920204 | X175: 7699.2795 | Y175: 108200.037 | AA175: 2477.83 | AC175: 91.93 | AD175: 24.209999 | AE175: 54.91 | AF175: 100.849998 | AG175: 67.980003 | AH175: 130.990005 | AI175: 222.25 | AJ175: 47.209999 | AK175: 85.300003 | AL175: 127.360001 | AM175: 1156.006553 | AO175: 58.790001 | AP175: 27.309999 | AQ175: 5.21 | AR175: 39.290001 | AS175: 4.39 | AT175: 93.919998 | AU175: 40.200001 | AV175: 40.59 | AW175: 38.849998 | AX175: 205.149994 | AY175: 1523.830262 | BA175: 2017-07-26 | BB175: 0.1268959119 | BC175: 0.1560065526 | BD175: 0.523830262
B176: 2017-07-27 | C176: 322164.45 | D176: 238161.425 | E176: 271731.9894 | F176: 227693.2344 | G176: 184182.96 | H176: 137297.2081 | I176: 87181.35689 | J176: 86645.6 | K176: 74121.69315 | L176: 61281.6 | M176: 1690461.517 | O176: 72324.18099 | P176: 9696.678584 | Q176: 2096.032871 | R176: 2019.346917 | S176: 316.753262 | T176: 9483.284047 | U176: 1729.0189 | V176: 2012.409667 | W176: 1588.872688 | X176: 7714.619654 | Y176: 108981.1976 | AA176: 2475.42 | AC176: 91.550003 | AD176: 24.110001 | AE176: 54.709999 | AF176: 99.57 | AG176: 67.599998 | AH176: 128.929993 | AI176: 221.479996 | AJ176: 47.09 | AK176: 83.849998 | AL176: 127.669998 | AM176: 1148.433453 | AO176: 60.150002 | AP176: 25.92 | AQ176: 5.19 | AR176: 39.310001 | AS176: 4.37 | AT176: 90.43 | AU176: 39.450001 | AV176: 40.450001 | AW176: 38.799999 | AX176: 205.520004 | AY176: 1535.38028 | BA176: 2017-07-27 | BB176: 0.1257998645 | BC176: 0.1484334531 | BD176: 0.5353802801
B177: 2017-07-28 | C177: 321214.32 | D177: 237371.1755 | E177: 264728.8437 | F177: 226732.7929 | G177: 183719.778 | H177: 136211.0129 | I177: 88019.79057 | J177: 85854.4 | K177: 74961.47381 | L177: 61272 | M177: 1680085.587 | O177: 71181.90382 | P177: 9801.426655 | Q177: 2108.148668 | R177: 2008.559258 | S177: 315.30359 | T177: 9750.699443 | U177: 1713.679062 | V177: 2004.947084 | W177: 1586.825171 | X177: 7801.705668 | Y177: 108273.1984 | AA177: 2472.1 | AC177: 91.279999 | AD177: 24.030001 | AE177: 53.299999 | AF177: 99.150002 | AG177: 67.43 | AH177: 127.910004 | AI177: 223.610001 | AJ177: 46.66 | AK177: 84.800003 | AL177: 127.650002 | AM177: 1141.478622 | AO177: 59.200001 | AP177: 26.200001 | AQ177: 5.22 | AR177: 39.099998 | AS177: 4.35 | AT177: 92.980003 | AU177: 39.099998 | AV177: 40.299999 | AW177: 38.75 | AX177: 207.839996 | AY177: 1524.505853 | BA177: 2017-07-28 | BB177: 0.1242899568 | BC177: 0.1414786216 | BD177: 0.524505853
B178: 2017-07-31 | C178: 323044.2 | D178: 237595.9979 | E178: 267907.5765 | F178: 227670.3667 | G178: 186498.87 | H178: 136093.8742 | I178: 88696.8356 | J178: 86296 | K178: 75341.58506 | L178: 61824 | M178: 1690969.306 | O178: 70400.34576 | P178: 9857.541693 | Q178: 2047.569683 | R178: 1991.607224 | S178: 311.679411 | T178: 9686.729486 | U178: 1711.487656 | V178: 2001.962052 | W178: 1592.96772 | X178: 7615.897147 | Y178: 107217.7878 | AA178: 2470.3 | AC178: 91.800003 | AD178: 24.120001 | AE178: 53.939999 | AF178: 99.559998 | AG178: 68.449997 | AH178: 127.800003 | AI178: 225.330002 | AJ178: 46.900002 | AK178: 85.230003 | AL178: 128.800003 | AM178: 1149.338825 | AO178: 58.549999 | AP178: 26.35 | AQ178: 5.07 | AR178: 38.77 | AS178: 4.3 | AT178: 92.370003 | AU178: 39.049999 | AV178: 40.240002 | AW178: 38.900002 | AX178: 202.889999 | AY178: 1509.448407 | BA178: 2017-07-31 | BB178: 0.1234713322 | BC178: 0.1493388246 | BD178: 0.5094484066
B179: 2017-08-01 | C179: 327372.57 | D179: 240846.6894 | E179: 268602.9243 | F179: 230666.0294 | G179: 189629.1042 | H179: 137893.5506 | I179: 89354.19909 | J179: 86866.4 | K179: 75350.42486 | L179: 62596.8 | M179: 1709178.692 | O179: 71350.2394 | P179: 10029.62781 | Q179: 2055.646881 | R179: 1966.436021 | S179: 305.155889 | T179: 10257.63646 | U179: 1713.679062 | V179: 2000.967041 | W179: 1582.730139 | X179: 7665.821457 | Y179: 108927.9402 | AA179: 2476.35 | AC179: 93.029999 | AD179: 24.450001 | AE179: 54.080002 | AF179: 100.870003 | AG179: 69.599998 | AH179: 129.490005 | AI179: 227 | AJ179: 47.209999 | AK179: 85.239998 | AL179: 130.410004 | AM179: 1161.735658 | AO179: 59.34 | AP179: 26.809999 | AQ179: 5.09 | AR179: 38.279999 | AS179: 4.21 | AT179: 104.080002 | AU179: 39.099998 | AV179: 40.220001 | AW179: 38.650002 | AX179: 204.220001 | AY179: 1540.645553 | BA179: 2017-08-01 | BB179: 0.1262228205 | BC179: 0.1617356576 | BD179: 0.5406455534
B180: 2017-08-02 | C180: 327654.09 | D180: 242225.7707 | E180: 266318.2101 | F180: 231603.6033 | G180: 189138.6841 | H180: 139086.2356 | I180: 89066.84858 | J180: 87087.2 | K180: 75403.46363 | L180: 62622.71143 | M180: 1710206.817 | O180: 71085.71206 | P180: 10152.65842 | Q180: 2003.145094 | R180: 1914.552521 | S180: 297.182694 | T180: 9692.914542 | U180: 1696.147818 | V180: 1980.569316 | W180: 1515.162099 | X180: 7716.496508 | Y180: 108054.5411 | AA180: 2477.57 | AC180: 93.110001 | AD180: 24.59 | AE180: 53.619999 | AF180: 101.279999 | AG180: 69.419998 | AH180: 130.610001 | AI180: 226.270004 | AJ180: 47.330002 | AK180: 85.300003 | AL180: 130.679993 | AM180: 1162.50659 | AO180: 59.119999 | AP180: 26.459999 | AQ180: 4.96 | AR180: 37.27 | AS180: 4.1 | AT180: 98.349998 | AU180: 38.700001 | AV180: 39.810001 | AW180: 37 | AX180: 205.570007 | AY180: 1525.433888 | BA180: 2017-08-02 | BB180: 0.1267776661 | BC180: 0.1625065895 | BD180: 0.5254338879
B181: 2017-08-03 | C181: 325507.5 | D181: 240058.643 | E181: 265225.5207 | F181: 230025.7351 | G181: 185624.0068 | H181: 138319.5095 | I181: 88169.37028 | J181: 86796.80346 | K181: 75615.61875 | L181: 62541.24632 | M181: 1697883.954 | O181: 70244.03414 | P181: 9676.872463 | Q181: 2055.646881 | R181: 1923.799085 | S181: 303.706217 | T181: 9575.633725 | U181: 1689.573602 | V181: 1966.141657 | W181: 1556.518392 | X181: 7697.72797 | Y181: 106689.6541 | AA181: 2472.16 | AC181: 92.5 | AD181: 24.370001 | AE181: 53.400002 | AF181: 100.589996 | AG181: 68.129997 | AH181: 129.889999 | AI181: 223.990005 | AJ181: 47.259998 | AK181: 85.540001 | AL181: 130.509995 | AM181: 1154.194577 | AO181: 58.419998 | AP181: 25.219999 | AQ181: 5.09 | AR181: 37.450001 | AS181: 4.19 | AT181: 97.160004 | AU181: 38.549999 | AV181: 39.52 | AW181: 37.700001 | AX181: 205.070007 | AY181: 1506.326756 | BA181: 2017-08-03 | BB181: 0.1243172443 | BC181: 0.1541945772 | BD181: 0.5063267556
B182: 2017-08-04 | C182: 329589.54 | D182: 245968.9912 | E182: 262294.8348 | F182: 230711.7647 | G182: 187939.8794 | H182: 138244.9667 | I182: 88900.03612 | J182: 88302.79962 | K182: 75995.73 | L182: 63336.72918 | M182: 1711285.272 | O182: 70773.08883 | P182: 9673.035479 | Q182: 2104.110069 | R182: 1563.183075 | S182: 305.880724 | T182: 9488.905054 | U182: 1707.104846 | V182: 1973.604239 | W182: 1550.325348 | X182: 7733.012821 | Y182: 106872.2505 | AA182: 2476.83 | AC182: 93.660004 | AD182: 24.969999 | AE182: 52.84 | AF182: 100.889999 | AG182: 68.980003 | AH182: 129.820007 | AI182: 229.789993 | AJ182: 48.080002 | AK182: 85.970001 | AL182: 132.169998 | AM182: 1164.549135 | AO182: 58.860001 | AP182: 25.209999 | AQ182: 5.21 | AR182: 30.43 | AS182: 4.22 | AT182: 96.279999 | AU182: 38.950001 | AV182: 39.669998 | AW182: 37.549999 | AX182: 206.009995 | AY182: 1509.285837 | BA182: 2017-08-04 | BB182: 0.1264411204 | BC182: 0.1645491346 | BD182: 0.5092858367
B183: 2017-08-07 | C183: 330856.38 | D183: 245870.4854 | E183: 260805.6514 | F183: 232083.824 | G183: 188103.3528 | H183: 138841.3092 | I183: 90110.95528 | J183: 88725.21318 | K183: 75889.65244 | L183: 62828.77025 | M183: 1714115.594 | O183: 71686.91057 | P183: 9853.373705 | Q183: 2205.075043 | R183: 1530.8201 | S183: 362.41792 | T183: 9637.723569 | U183: 1700.530629 | V183: 1980.07181 | W183: 1552.389696 | X183: 7578.360072 | Y183: 108087.6731 | AA183: 2480.91 | AC183: 94.019997 | AD183: 24.959999 | AE183: 52.540001 | AF183: 101.489998 | AG183: 69.040001 | AH183: 130.380005 | AI183: 232.919998 | AJ183: 48.310001 | AK183: 85.849998 | AL183: 131.110001 | AM183: 1166.526064 | AO183: 59.619999 | AP183: 25.68 | AQ183: 5.46 | AR183: 29.799999 | AS183: 5 | AT183: 97.790001 | AU183: 38.799999 | AV183: 39.799999 | AW183: 37.599998 | AX183: 201.889999 | AY183: 1526.314046 | BA183: 2017-08-07 | BB183: 0.1282966696 | BC183: 0.166526064 | BD183: 0.5263140463
B184: 2017-08-08 | C184: 329611.8666 | D184: 245279.4506 | E184: 261649.522 | F184: 231603.6033 | G184: 187667.4238 | H184: 138266.2647 | I184: 89774.37392 | J184: 88027.31252 | K184: 75969.21061 | L184: 63427.77843 | M184: 1711276.806 | O184: 71518.57499 | P184: 9983.831145 | Q184: 2653.530664 | R184: 1558.046095 | S184: 366.399136 | T184: 9511.572775 | U184: 1676.425169 | V184: 2030.77515 | W184: 1548.261 | X184: 7410.944717 | Y184: 108258.3608 | AA184: 2474.92 | AC184: 93.68 | AD184: 24.9 | AE184: 52.709999 | AF184: 101.279999 | AG184: 68.879997 | AH184: 129.839996 | AI184: 232.050003 | AJ184: 47.93 | AK184: 85.940002 | AL184: 132.360001 | AM184: 1164.609508 | AO184: 59.48 | AP184: 26.02 | AQ184: 6.45 | AR184: 30.33 | AS184: 5.01 | AT184: 96.510002 | AU184: 38.25 | AV184: 40.349998 | AW184: 37.5 | AX184: 197.429993 | AY184: 1527.553756 | BA184: 2017-08-08 | BB184: 0.1255724687 | BC184: 0.1646095078 | BD184: 0.5275537559
B185: 2017-08-09 | C185: 329084.0935 | D185: 243703.3577 | E185: 262046.6376 | F185: 230894.706 | G185: 186441.3736 | H185: 138138.477 | I185: 89372.02378 | J185: 87513.06993 | K185: 75748.21569 | L185: 63125.8783 | M185: 1706067.833 | O185: 71747.03042 | P185: 9818.840853 | Q185: 2501.312626 | R185: 1567.292659 | S185: 352.503759 | T185: 9381.479769 | U185: 1963.292268 | V185: 2316.919545 | W185: 1529.681868 | X185: 7471.754779 | Y185: 108650.1085 | AA185: 2474.02 | AC185: 93.529999 | AD185: 24.74 | AE185: 52.790001 | AF185: 100.970001 | AG185: 68.43 | AH185: 129.720001 | AI185: 231.009995 | AJ185: 47.650002 | AK185: 85.690002 | AL185: 131.729996 | AM185: 1161.038324 | AO185: 59.669998 | AP185: 25.59 | AQ185: 6.08 | AR185: 30.51 | AS185: 4.82 | AT185: 95.190002 | AU185: 44.599998 | AV185: 45.919998 | AW185: 37.049999 | AX185: 199.050003 | AY185: 1533.370911 | BA185: 2017-08-09 | BB185: 0.1251631564 | BC185: 0.1610383239 | BD185: 0.5333709106
B186: 2017-08-10 | C186: 324369.3209 | D186: 237595.9979 | E186: 257876.9241 | F186: 227510.2931 | G186: 183144.6607 | H186: 135955.4375 | I186: 87240.34182 | J186: 85033.68599 | K186: 74749.3187 | L186: 61812.85237 | M186: 1675288.833 | O186: 69763.07533 | P186: 9458.164401 | Q186: 2427.260608 | R186: 1567.807574 | S186: 353.96643 | T186: 8712.289227 | U186: 1890.659258 | V186: 2335.083548 | W186: 1496.6523 | X186: 7335.119826 | Y186: 105340.0785 | AA186: 2438.21 | AC186: 92.190002 | AD186: 24.120001 | AE186: 51.950001 | AF186: 99.489998 | AG186: 67.220001 | AH186: 127.669998 | AI186: 225.5 | AJ186: 46.299999 | AK186: 84.559998 | AL186: 128.990005 | AM186: 1140.066268 | AO186: 58.02 | AP186: 24.65 | AQ186: 5.9 | AR186: 29.879999 | AS186: 4.84 | AT186: 88.400002 | AU186: 42.950001 | AV186: 46.279999 | AW186: 36.25 | AX186: 195.410004 | AY186: 1486.782863 | BA186: 2017-08-10 | BB186: 0.1088770744 | BC186: 0.1400662678 | BD186: 0.4867828629
B187: 2017-08-11 | C187: 321660.0858 | D187: 235034.847 | E187: 257827.2847 | F187: 228882.3524 | G187: 182000.3471 | H187: 136892.5471 | I187: 86718.06039 | J187: 83839.90854 | K187: 74510.64419 | L187: 61362.39822 | M187: 1668728.476 | O187: 69787.12327 | P187: 9523.393121 | Q187: 2386.120597 | R187: 1567.807574 | S187: 348.847081 | T187: 9038.507297 | U187: 1879.654256 | V187: 2264.445757 | W187: 1548.261 | X187: 7224.385455 | Y187: 105568.5454 | AA187: 2441.32 | AC187: 91.419998 | AD187: 23.860001 | AE187: 51.939999 | AF187: 100.089996 | AG187: 66.800003 | AH187: 128.550003 | AI187: 224.149994 | AJ187: 45.650002 | AK187: 84.290001 | AL187: 128.050003 | AM187: 1135.587521 | AO187: 58.040001 | AP187: 24.82 | AQ187: 5.8 | AR187: 29.879999 | AS187: 4.77 | AT187: 91.709999 | AU187: 42.700001 | AV187: 44.880001 | AW187: 37.5 | AX187: 192.460007 | AY187: 1489.540695 | BA187: 2017-08-11 | BB187: 0.1102914758 | BC187: 0.1355875212 | BD187: 0.4895406952
B188: 2017-08-14 | C188: 325424.867 | D188: 240551.172 | E188: 262294.8348 | F188: 232952.7949 | G188: 184970.1133 | H188: 139597.3863 | I188: 87959.92956 | J188: 85419.36794 | K188: 75553.74017 | L188: 62728.13687 | M188: 1697452.343 | O188: 71013.56824 | P188: 9669.198496 | Q188: 2390.234598 | R188: 1585.122718 | S188: 358.354444 | T188: 9270.11227 | U188: 1910.46826 | V188: 2313.892211 | W188: 1593.676656 | X188: 7254.415115 | Y188: 107359.043 | AA188: 2465.84 | AC188: 92.489998 | AD188: 24.42 | AE188: 52.84 | AF188: 101.870003 | AG188: 67.889999 | AH188: 131.089996 | AI188: 227.360001 | AJ188: 46.509998 | AK188: 85.470001 | AL188: 130.899994 | AM188: 1155.12799 | AO188: 59.060001 | AP188: 25.200001 | AQ188: 5.81 | AR188: 30.209999 | AS188: 4.9 | AT188: 94.059998 | AU188: 43.400002 | AV188: 45.860001 | AW188: 38.599998 | AX188: 193.259995 | AY188: 1514.734238 | BA188: 2017-08-14 | BB188: 0.1214429623 | BC188: 0.1551279902 | BD188: 0.5147342376
B189: 2017-08-15 | C189: 326269.3039 | D189: 241043.701 | E189: 262344.4743 | F189: 234690.7366 | G189: 185188.0778 | H189: 140119.1859 | I189: 88048.91084 | J189: 85272.44148 | K189: 76720.5933 | L189: 62459.78121 | M189: 1702157.206 | O189: 71771.07836 | P189: 9527.230105 | Q189: 2398.4626 | R189: 1564.659366 | S189: 351.772424 | T189: 9180.42694 | U189: 1958.890267 | V189: 2343.660994 | W189: 1585.419264 | X189: 7225.511567 | Y189: 107907.1119 | AA189: 2464.61 | AC189: 92.730003 | AD189: 24.469999 | AE189: 52.849998 | AF189: 102.629997 | AG189: 67.970001 | AH189: 131.580002 | AI189: 227.589996 | AJ189: 46.43 | AK189: 86.790001 | AL189: 130.339996 | AM189: 1158.335088 | AO189: 59.689999 | AP189: 24.83 | AQ189: 5.83 | AR189: 29.82 | AS189: 4.81 | AT189: 93.150002 | AU189: 44.5 | AV189: 46.450001 | AW189: 38.400002 | AX189: 192.490005 | AY189: 1522.925613 | BA189: 2017-08-15 | BB189: 0.1208835688 | BC189: 0.1583350875 | BD189: 0.5229256127
B190: 2017-08-16 | C190: 324017.4722 | D190: 238285.5385 | E190: 261550.2431 | F190: 236268.6047 | G190: 184479.6932 | H190: 140960.4548 | I190: 87282.89808 | J190: 84501.07759 | K190: 77250.98109 | L190: 62344.77163 | M190: 1696941.735 | O190: 72492.51658 | P190: 9588.621841 | Q190: 2439.602611 | R190: 1563.609963 | S190: 357.623108 | T190: 9324.31769 | U190: 1910.46826 | V190: 2368.888777 | W190: 1556.518392 | X190: 7243.904734 | Y190: 108846.072 | AA190: 2468.11 | AC190: 92.089996 | AD190: 24.190001 | AE190: 52.689999 | AF190: 103.32 | AG190: 67.709999 | AH190: 132.369995 | AI190: 225.610001 | AJ190: 46.009998 | AK190: 87.389999 | AL190: 130.100006 | AM190: 1154.772694 | AO190: 60.290001 | AP190: 24.99 | AQ190: 5.93 | AR190: 29.799999 | AS190: 4.89 | AT190: 94.610001 | AU190: 43.400002 | AV190: 46.950001 | AW190: 37.700001 | AX190: 192.979996 | AY190: 1536.154483 | BA190: 2017-08-16 | BB190: 0.1224753389 | BC190: 0.1547726939 | BD190: 0.5361544831
B191: 2017-08-17 | C191: 318950.8508 | D191: 232867.7193 | E191: 257132.3324 | F191: 233615.9568 | G191: 181455.4359 | H191: 139373.7578 | I191: 85661.89129 | J191: 82811.42336 | K191: 76101.80755 | L191: 61002.99331 | M191: 1668974.169 | O191: 71290.11955 | P191: 9415.957583 | Q191: 2398.4626 | R191: 1566.23347 | S191: 348.847081 | T191: 9214.921298 | U191: 1917.071261 | V191: 2362.329553 | W191: 1506.97404 | X191: 7208.244512 | Y191: 107229.161 | AA191: 2430.01 | AC191: 90.650002 | AD191: 23.639999 | AE191: 51.799999 | AF191: 102.160004 | AG191: 66.599998 | AH191: 130.880005 | AI191: 221.419998 | AJ191: 45.09 | AK191: 86.089996 | AL191: 127.300003 | AM191: 1135.734086 | AO191: 59.290001 | AP191: 24.540001 | AQ191: 5.83 | AR191: 29.85 | AS191: 4.77 | AT191: 93.5 | AU191: 43.549999 | AV191: 46.82 | AW191: 36.5 | AX191: 192.029999 | AY191: 1513.303968 | BA191: 2017-08-17 | BB191: 0.1051477845 | BC191: 0.1357340864 | BD191: 0.5133039681
B192: 2017-08-18 | C192: 319267.5146 | D192: 232670.7077 | E192: 256536.659 | F192: 234416.3247 | G192: 181400.9448 | H192: 139650.6311 | I192: 85944.31013 | J192: 83362.39756 | K192: 75474.182 | L192: 60911.94406 | M192: 1669635.616 | O192: 71470.47911 | P192: 9527.230105 | Q192: 2451.944614 | R192: 1564.134665 | S192: 342.996396 | T192: 9321.361031 | U192: 1901.664259 | V192: 2334.578993 | W192: 1564.775784 | X192: 7083.621423 | Y192: 107562.7864 | AA192: 2425.55 | AC192: 90.739998 | AD192: 23.620001 | AE192: 51.68 | AF192: 102.510002 | AG192: 66.580002 | AH192: 131.139999 | AI192: 222.149994 | AJ192: 45.389999 | AK192: 85.379997 | AL192: 127.110001 | AM192: 1136.190107 | AO192: 59.439999 | AP192: 24.83 | AQ192: 5.96 | AR192: 29.809999 | AS192: 4.69 | AT192: 94.580002 | AU192: 43.200001 | AV192: 46.27 | AW192: 37.900002 | AX192: 188.710007 | AY192: 1517.771496 | BA192: 2017-08-18 | BB192: 0.1031194146 | BC192: 0.136190107 | BD192: 0.5177714961
B193: 2017-08-21 | C193: 318880.4811 | D193: 230306.5684 | E193: 257231.6113 | F193: 236039.9282 | G193: 179684.4745 | H193: 140502.549 | I193: 85418.15995 | J193: 82058.42527 | K193: 75403.46363 | L193: 60667.54872 | M193: 1666193.21 | O193: 71422.38323 | P193: 9385.261714 | Q193: 2488.970623 | R193: 1568.856977 | S193: 343.727732 | T193: 9487.919501 | U193: 1884.056257 | V193: 2350.220218 | W193: 1595.741004 | X193: 7191.728199 | Y193: 107718.8655 | AA193: 2428.37 | AC193: 90.629997 | AD193: 23.379999 | AE193: 51.82 | AF193: 103.220001 | AG193: 65.949997 | AH193: 131.940002 | AI193: 220.789993 | AJ193: 44.68 | AK193: 85.300003 | AL193: 126.599998 | AM193: 1133.803577 | AO193: 59.400002 | AP193: 24.459999 | AQ193: 6.05 | AR193: 29.9 | AS193: 4.7 | AT193: 96.269997 | AU193: 42.799999 | AV193: 46.580002 | AW193: 38.650002 | AX193: 191.589996 | AY193: 1519.909787 | BA193: 2017-08-21 | BB193: 0.1044019265 | BC193: 0.1338035767 | BD193: 0.5199097868
B194: 2017-08-22 | C194: 322152.674 | D194: 234739.3296 | E194: 259217.1892 | F194: 237983.6788 | G194: 182136.575 | H194: 142483.2579 | I194: 86497.54157 | J194: 83692.98209 | K194: 75403.46363 | L194: 61103.62668 | M194: 1685410.318 | O194: 73153.83494 | P194: 9722.916265 | Q194: 2468.400618 | R194: 1537.374897 | S194: 341.533725 | T194: 9718.538922 | U194: 1925.875263 | V194: 2363.338665 | W194: 1696.894056 | X194: 7257.418081 | Y194: 110186.1254 | AA194: 2452.51 | AC194: 91.559998 | AD194: 23.83 | AE194: 52.220001 | AF194: 104.07 | AG194: 66.849998 | AH194: 133.800003 | AI194: 223.580002 | AJ194: 45.57 | AK194: 85.300003 | AL194: 127.510002 | AM194: 1146.894911 | AO194: 60.84 | AP194: 25.34 | AQ194: 6 | AR194: 29.299999 | AS194: 4.67 | AT194: 98.610001 | AU194: 43.75 | AV194: 46.84 | AW194: 41.099998 | AX194: 193.339996 | AY194: 1554.647772 | BA194: 2017-08-22 | BB194: 0.1153805922 | BC194: 0.1468949113 | BD194: 0.5546477717
B195: 2017-08-23 | C195: 322539.7076 | D195: 234049.789 | E195: 258274.0397 | F195: 235948.4576 | G195: 183171.9063 | H195: 141705.8829 | I195: 86172.56646 | J195: 84115.39565 | K195: 75385.78404 | L195: 61113.21081 | M195: 1682476.74 | O195: 72203.94129 | P195: 9776.634034 | Q195: 2484.856622 | R195: 1530.55378 | S195: 343.727732 | T195: 10097.97686 | U195: 1917.071261 | V195: 2359.302219 | W195: 1651.4784 | X195: 7285.570887 | Y195: 109651.1131 | AA195: 2444.04 | AC195: 91.669998 | AD195: 23.76 | AE195: 52.029999 | AF195: 103.18 | AG195: 67.230003 | AH195: 133.070007 | AI195: 222.740005 | AJ195: 45.799999 | AK195: 85.279999 | AL195: 127.529999 | AM195: 1144.910581 | AO195: 60.049999 | AP195: 25.48 | AQ195: 6.04 | AR195: 29.17 | AS195: 4.7 | AT195: 102.459999 | AU195: 43.549999 | AV195: 46.759998 | AW195: 40 | AX195: 194.089996 | AY195: 1546.350455 | BA195: 2017-08-23 | BB195: 0.1115285086 | BC195: 0.1449105814 | BD195: 0.546350455
B196: 2017-08-24 | C196: 322011.9345 | D196: 234837.8354 | E196: 258919.3525 | F196: 236039.9282 | G196: 184425.2021 | H196: 141588.7442 | I196: 86269.28524 | J196: 84482.71179 | K196: 75456.50241 | L196: 61180.29973 | M196: 1685211.796 | O196: 72143.82144 | P196: 9845.699738 | Q196: 2550.680639 | R196: 1532.127884 | S196: 344.459068 | T196: 10499.09696 | U196: 1919.272262 | V196: 2392.098337 | W196: 1684.507968 | X196: 7154.941866 | Y196: 110066.7062 | AA196: 2438.97 | AC196: 91.519997 | AD196: 23.84 | AE196: 52.16 | AF196: 103.220001 | AG196: 67.690002 | AH196: 132.960007 | AI196: 222.990005 | AJ196: 46 | AK196: 85.360001 | AL196: 127.669998 | AM196: 1146.787142 | AO196: 60 | AP196: 25.66 | AQ196: 6.2 | AR196: 29.200001 | AS196: 4.71 | AT196: 106.529999 | AU196: 43.599998 | AV196: 47.41 | AW196: 40.799999 | AX196: 190.610001 | AY196: 1551.606666 | BA196: 2017-08-24 | BB196: 0.1092227159 | BC196: 0.1467871425 | BD196: 0.5516066664
B197: 2017-08-25 | C197: 323313.7747 | D197: 234148.2948 | E197: 256983.4141 | F197: 236337.2077 | G197: 184861.131 | H197: 141365.1158 | I197: 86068.11017 | J197: 84372.51694 | K197: 75553.74017 | L197: 61280.9331 | M197: 1684284.239 | O197: 72107.74953 | P197: 9588.621841 | Q197: 2530.110633 | R197: 1555.739443 | S197: 340.80239 | T197: 10224.12765 | U197: 1892.860258 | V197: 2403.703117 | W197: 1690.701012 | X197: 7154.566495 | Y197: 109488.9824 | AA197: 2443.05 | AC197: 91.889999 | AD197: 23.77 | AE197: 51.77 | AF197: 103.349998 | AG197: 67.849998 | AH197: 132.75 | AI197: 222.470001 | AJ197: 45.939999 | AK197: 85.470001 | AL197: 127.879997 | AM197: 1146.16491 | AO197: 59.970001 | AP197: 24.99 | AQ197: 6.15 | AR197: 29.65 | AS197: 4.66 | AT197: 103.739998 | AU197: 43 | AV197: 47.639999 | AW197: 40.950001 | AX197: 190.600006 | AY197: 1544.004938 | BA197: 2017-08-25 | BB197: 0.1110782651 | BC197: 0.1461649095 | BD197: 0.5440049385
B198: 2017-08-28 | C198: 322293.4135 | D198: 233655.7658 | E198: 256288.4618 | F198: 237320.5168 | G198: 184752.1488 | H198: 142536.5028 | I198: 85247.9349 | J198: 83527.68983 | K198: 75500.70139 | L198: 61122.79494 | M198: 1682245.931 | O198: 72781.09186 | P198: 9557.925973 | Q198: 2509.540628 | R198: 1569.906379 | S198: 345.921739 | T198: 10229.05542 | U198: 1875.252256 | V198: 2411.271451 | W198: 1698.958404 | X198: 7129.041284 | Y198: 110107.9654 | AA198: 2444.24 | AC198: 91.599998 | AD198: 23.719999 | AE198: 51.630001 | AF198: 103.779999 | AG198: 67.809998 | AH198: 133.850006 | AI198: 220.350006 | AJ198: 45.48 | AK198: 85.410004 | AL198: 127.550003 | AM198: 1144.758963 | AO198: 60.529999 | AP198: 24.91 | AQ198: 6.1 | AR198: 29.92 | AS198: 4.73 | AT198: 103.790001 | AU198: 42.599998 | AV198: 47.790001 | AW198: 41.150002 | AX198: 189.919998 | AY198: 1552.945151 | BA198: 2017-08-28 | BB198: 0.1116194669 | BC198: 0.1447589625 | BD198: 0.5529451505
B199: 2017-08-29 | C199: 320534.17 | D199: 232276.6845 | E199: 255246.0334 | F199: 237297.6492 | G199: 183853.0453 | H199: 142525.8538 | I199: 85097.0536 | J199: 83288.93434 | K199: 75509.54119 | L199: 60509.41056 | M199: 1676138.376 | O199: 73358.24243 | P199: 9607.806759 | Q199: 2521.882631 | R199: 1563.609963 | S199: 351.772424 | T199: 10286.2175 | U199: 1877.453256 | V199: 2401.684894 | W199: 1696.894056 | X199: 7089.627355 | Y199: 110755.1913 | AA199: 2446.3 | AC199: 91.099998 | AD199: 23.58 | AE199: 51.419998 | AF199: 103.769997 | AG199: 67.480003 | AH199: 133.839996 | AI199: 219.960007 | AJ199: 45.349998 | AK199: 85.419998 | AL199: 126.269997 | AM199: 1140.612133 | AO199: 61.009998 | AP199: 25.040001 | AQ199: 6.13 | AR199: 29.799999 | AS199: 4.81 | AT199: 104.370003 | AU199: 42.650002 | AV199: 47.599998 | AW199: 41.099998 | AX199: 188.869995 | AY199: 1562.114165 | BA199: 2017-08-29 | BB199: 0.1125563373 | BC199: 0.1406121331 | BD199: 0.5621141654
B200: 2017-08-30 | C200: 321273.0523 | D200: 235133.3528 | E200: 254948.1968 | F200: 237206.1786 | G200: 185297.06 | H200: 142483.2579 | I200: 86048.76642 | J200: 83858.27435 | K200: 75748.21569 | L200: 60279.39142 | M200: 1682275.746 | O200: 74272.06417 | P200: 9884.069573 | Q200: 2525.996632 | R200: 1575.153393 | S200: 352.503759 | T200: 10687.3376 | U200: 1906.06626 | V200: 2415.307897 | W200: 1686.572316 | X200: 7184.596155 | Y200: 112489.6678 | AA200: 2457.59 | AC200: 91.309998 | AD200: 23.870001 | AE200: 51.360001 | AF200: 103.730003 | AG200: 68.010002 | AH200: 133.800003 | AI200: 222.419998 | AJ200: 45.66 | AK200: 85.690002 | AL200: 125.790001 | AM200: 1144.841691 | AO200: 61.77 | AP200: 25.76 | AQ200: 6.14 | AR200: 30.02 | AS200: 4.82 | AT200: 108.440002 | AU200: 43.299999 | AV200: 47.869999 | AW200: 40.849998 | AX200: 191.399994 | AY200: 1586.132366 | BA200: 2017-08-30 | BB200: 0.1176909328 | BC200: 0.144841691 | BD200: 0.5861323662
B201: 2017-08-31 | C201: 319795.2877 | D201: 252039.5 | E201: 253508.6528 | F201: 236725.9578 | G201: 185351.5511 | H201: 141950.8093 | I201: 86559.44159 | J201: 83564.42144 | K201: 76110.64735 | L201: 60097.29293 | M201: 1695703.562 | O201: 74163.84844 | P201: 10018.364 | Q201: 2546.566638 | R201: 1619.753006 | S201: 353.235095 | T201: 10931.75476 | U201: 1956.689267 | V201: 2430.949122 | W201: 1676.250576 | X201: 7242.778621 | Y201: 112940.1895 | AA201: 2471.65 | AC201: 90.889999 | AD201: 23.889999 | AE201: 51.07 | AF201: 103.519997 | AG201: 68.029999 | AH201: 133.300003 | AI201: 223.740005 | AJ201: 45.5 | AK201: 86.099998 | AL201: 125.410004 | AM201: 1142.658222 | AO201: 61.68 | AP201: 26.110001 | AQ201: 6.19 | AR201: 30.870001 | AS201: 4.83 | AT201: 110.919998 | AU201: 44.450001 | AV201: 48.18 | AW201: 40.599998 | AX201: 192.949997 | AY201: 1592.025445 | BA201: =B201 -> 2017-08-31 | BB201: 0.1240853007 | BC201: 0.1426582222 | BD201: 0.5920254447
B202: 2017-09-01 | C202: 322645.2622 | D202: 254149.5 | E202: 253012.2584 | F202: 237594.9287 | G202: 186850.057 | H202: 141886.9155 | I202: 87387.35436 | J202: 84831.66212 | K202: 76146.00653 | L202: 60686.71698 | M202: =SUM(C202:L202) -> 1705190.662 | O202: 73899.3211 | P202: 9949.298293 | Q202: 2595.93465 | R202: 1610.308382 | S202: 346.653074 | T202: 10925.84145 | U202: 1945.684265 | V202: 2432.967344 | W202: 1670.057532 | X202: 7093.756434 | Y202: =SUM(O202:X202) -> 112469.8225 | AA202: 2476.55 | AC202: 91.699997 | AD202: 24.09 | AE202: 50.970001 | AF202: 103.900002 | AG202: 68.580002 | AH202: 133.240005 | AI202: 225.880005 | AJ202: 46.189999 | AK202: 86.139999 | AL202: 126.639999 | AM202: =SUMPRODUCT($C$11:$L$11,AC202:AL202) -> 1149.045069 | AO202: 61.459999 | AP202: 25.93 | AQ202: 6.31 | AR202: 30.690001 | AS202: 4.74 | AT202: 110.860001 | AU202: 44.200001 | AV202: 48.220001 | AW202: 40.450001 | AX202: 188.979996 | AY202: 1585.340195 | BA202: 2017-09-01 | BB202: 0.1263137788 | BC202: 0.1490450691 | BD202: 0.5853401947
... 63 more rows

Sheet Public Companies
B2: Public U.S. Companies
B3: Source: CapIQ, StockRow, Yahoo Finance
B4: As of: 12/1/2017
B6: Incumbents
B7: Company | C7: Ticker | D7: Price ($/share) | E7: Market Cap ($M) | F7: EV ($M) | G7: 2017 FY Revenue ($M) | H7: 2018 FY Revenue ($M) | I7: EV / 2017 Rev | J7: EV / 2018 Rev | K7: P/E (FY 2017) | L7: FCF Margin | M7: 2017 - 2018 Growth Rate
B8: JP Morgan Chase | C8: JPM | D8: 104.790001 | E8: 363540.3023 | F8: 281900 | G8: 100918.71 | H8: 106054.55 | I8: =F8/G8 -> 2.793337331 | J8: =F8/H8 -> 2.658066061 | K8: 15.49 | L8: 0.2314 | M8: =(H8-G8)/G8 -> 0.05089086057
B9: Bank of America | C9: BAC | D9: 28.1 | E9: 293100.2443 | F9: 404908 | G9: 89454.7 | H9: 92290.75 | I9: =F9/G9 -> 4.526402749 | J9: =F9/H9 -> 4.387308587 | K9: 15.92 | L9: 0.1047 | M9: =(H9-G9)/G9 -> 0.0317037562
B10: Wells Fargo | C10: WFC | D10: 56.200001 | E10: 276743.4934 | F10: 622572 | G10: 88345.82 | H10: 90769.89 | I10: 7.046988754 | J10: 6.858794254 | K10: 14.27 | L10: 0.2725 | M10: 0.02743842323
B11: Visa | C11: V | D11: 110.730003 | E11: 251224.9662 | F11: 254193 | G11: 18358 | H11: 20098.54 | I11: 13.84644297 | J11: 12.64733657 | K11: =107.43/3.84 -> 27.9765625 | L11: 0.4638 | M11: 0.09481098159
B12: Citi | C12: C | D12: 75.510002 | E12: 199648.44 | F12: 308807 | G12: 71772.77 | H12: 73999.39 | I12: 4.302564886 | J12: 4.173101967 | K12: 15.01 | L12: 0.2755 | M12: 0.03102318609
B13: MasterCard | C13: MA | D13: 149.690002 | E13: 158471.3598 | F13: 149840 | G13: 12442.65 | H13: 14060.59 | I13: 12.04245076 | J13: 10.65673631 | K13: 31.53 | L13: 0.3671 | M13: 0.1300317858
B14: Goldman Sachs | C14: GS | D14: 248.949997 | E14: 94376.59224 | F14: 268446 | G14: 32006.77 | H14: 32467.06 | I14: 8.387163091 | J14: 8.26825712 | K14: 13.14 | L14: -0.3042 | M14: 0.01438102002
B15: Morgan Stanley | C15: MS | D15: 51.950001 | E15: 93920.36141 | F15: 269087 | G15: 37657.4 | H15: 39315.01 | I15: 7.145660614 | J15: 6.844383354 | K15: 14.75 | L15: -0.3468 | M15: 0.04401817438
B16: American Express | C16: AXP | D16: 97.860001 | E16: 84942.11302 | F16: 249469 | G16: 33409.65 | H16: 35421.96 | I16: 7.466974362 | J16: 7.042777983 | K16: 16.84 | L16: 0.3557 | M16: 0.06023140021
B17: PNC Bank | C17: PNC | D17: 141 | E17: 67087.95242 | F17: 96618 | G17: 16209.99 | H17: 16981.91 | I17: 5.960398495 | J17: 5.689466026 | K17: 17.19 | L17: 0.3868 | M17: 0.04762001704
B20: FInTechs
B21: Company | C21: Ticker | D21: =D7 -> Price ($/share) | E21: =E7 -> Market Cap ($M) | F21: EV ($M) | G21: 2017 FY Revenue ($M) | H21: 2018 FY Revenue ($M) | I21: EV / 2017 Rev | J21: EV / 2018 Rev | K21: P/E (FY 2017) | L21: FCF Margin | M21: 2017 - 2018 Growth Rate
B22: PayPal | C22: PYPL | D22: 75.300003 | E22: 90503.84664 | F22: 80379 | G22: 12974.26 | H22: 15415.44 | I22: =F22/G22 -> 6.195266628 | J22: =F22/H22 -> 5.214187853 | K22: 37.87 | L22: 0.2402 | M22: =(H22-G22)/G22 -> 0.1881556251
B23: Square | C23: SQ | D23: 38.220001 | E23: 14851.05528 | F23: 13812 | G23: 967.82 | H23: 1272.7 | I23: =F23/G23 -> 14.27124879 | J23: =F23/H23 -> 10.85251827 | K23: 143.92 | L23: 0.042 | M23: =(H23-G23)/G23 -> 0.3150172553
B24: Shopify | C24: SHOP | D24: 103.269997 | E24: 10254.53234 | F24: 8665.1 | G24: 660.32 | H24: 954.72 | I24: =F24/G24 -> 13.12257693 | J24: =F24/H24 -> 9.076064186 | K24: -- | L24: -0.0314 | M24: =(H24-G24)/G24 -> 0.4458444391
B25: MarketAxess Holdings | C25: MKTX | D25: 195.350006 | E25: 7332.841034 | F25: 7025.7 | G25: 397.56 | H25: 457.55 | I25: 17.6720495 | J25: 15.35504316 | K25: 49.97 | L25: 0.4073 | M25: 0.1508954623
B26: Green Dot | C26: GDOT | D26: 61.27 | E26: 3032.517354 | F26: 2393.8 | G26: 883.31 | H26: 987.74 | I26: 2.71003385 | J26: 2.42351226 | K26: 28.05 | L26: 0.1576 | M26: 0.1182257645
B27: Envestnet | C27: ENV | D27: 48.549999 | E27: 2151.046153 | F27: 2359.1 | G27: 680.03 | H27: 786.44 | I27: 3.469111657 | J27: 2.999720258 | K27: 37.27 | L27: 0.1072 | M27: 0.1564783907
B28: Blackline | C28: BL | D28: 36.130001 | E28: 1909.860415 | F28: 1783.1 | G28: 174.5 | H28: 224.39 | I28: 10.21833811 | J28: 7.94643255 | K28: -- | L28: -0.0655 | M28: 0.2859025788
B29: Lending Club | C29: LC | D29: 4.3 | E29: 1783.939865 | F29: 4950.7 | G29: 580.21 | H29: 730.84 | I29: 8.532600265 | J29: 6.773986098 | K29: 192.26 | L29: -0.3592 | M29: 0.2596128988
B30: Q2 eBanking | C30: QTWO | D30: 41.400002 | E30: 1725.242452 | F30: 1571.8 | G30: 193.95 | H30: 240.41 | I30: 8.104150554 | J30: 6.537997587 | K30: -- | L30: -0.0422 | M30: 0.2395462748
B31: OnDeck Capital | C31: ONDK | D31: 5.01 | E31: 368.911575 | F31: 1053.2 | G31: 346.76 | H31: 387.52 | I31: =F31/G31 -> 3.037259199 | J31: =F31/H31 -> 2.717795211 | K31: -- | L31: 0.5485 | M31: =(H31-G31)/G31 -> 0.1175452763

Sheet Private Companies
B2: Private U.S. Companies
B3: Source: CBInsights, Crunchbase, LinkedIn
B4: As of: 12/1/2017
B6: Unicorns
B7: Company | C7: Most Recent Valuation ($M) | D7: Total Capital Raised ($M)* | E7: Date of Last Round | F7: Founders | G7: Crunchbase Link
B8: Stripe | C8: 9200 | D8: 467.3 | E8: 2016-11-25 | F8: Patrick Collison, John Collison | G8: https://www.crunchbase.com/organization/stripe
B9: SoFi | C9: 4500 | D9: 2190 | E9: 2017-02-24 | F9: Daniel Macklin, Ian Brady, James Finnigan, Michael Cagney | G9: https://www.crunchbase.com/organization/social-finance
B10: Greensky | C10: 3800 | D10: 300 | E10: 2014-10-24 | F10: David Zalik | G10: https://www.crunchbase.com/organization/greensky
B11: Credit Karma | C11: 3500 | D11: 368.5 | E11: 2015-06-23 | F11: Kenneth Lin, Nichole Mustard, Ryan Graciano | G11: https://www.crunchbase.com/organization/credit-karma
B12: Oscar | C12: 2900 | D12: 727.5 | E12: 2016-02-22 | F12: Joshua Kushner, Kevin Nazemi, Mario Schlosser | G12: https://www.crunchbase.com/organization/oscar
B13: Mozido | C13: 2390 | D13: 295 | E13: 2014-10-22 | F13: Michael Liberty | G13: https://www.crunchbase.com/organization/mozido
B14: Avant | C14: 1900 | D14: 795 | E14: 2015-09-30 | F14: Al Goldstein, John Sun, Paul Zhang | G14: https://www.crunchbase.com/organization/avant-credit
B15: Prosper | C15: 1800 | D15: 391.9 | E15: 2017-09-22 | F15: Chris Larsen, John Witchel | G15: https://www.crunchbase.com/organization/prosper
B16: AvidXchange | C16: 1400 | D16: 574.2 | E16: 2016-11-28 | F16: Chris Tinsley, Michael Praeger | G16: https://www.crunchbase.com/organization/avidxchange
B17: Robinhood | C17: 1300 | D17: 176 | E17: 2017-04-26 | F17: Baiju Bhatt, Vlad Tenev | G17: https://www.crunchbase.com/organization/analyst
B18: Clover | C18: 1200 | D18: 425 | E18: 2017-05-10 | F18: Kris Gale, Vivek Garipalli | G18: https://www.crunchbase.com/organization/clover-health
B19: Kabbage | C19: 1000 | D19: 490 | E19: 2017-08-03 | F19: Kathryn Petralia, Marc Gorlin, Rob Frohwein | G19: https://www.crunchbase.com/organization/kabbage
B21: *Does not include PE and Debt Financing
